{"text_format":"1","workbook":"xlsx","n_sheets":2,"sheets":["2018","noDel"],"not_rendered":{"charts":0,"images":0,"macros":0,"external_links":0,"defined_names":0,"comments":0,"pivot_tables":0},"unopened":[],"bounds":{"document_bytes":16777216,"sheet_cells":100000,"rows_first":2000,"rows_last":500,"rows_between":2000,"halvings":0,"cell_chars":16384,"cell_head_chars":4096},"cells_cut":0,"cells_raw":0,"read":"whole","date_system":"1900"}

{"sheet":"2018","index":0,"n_rows":690,"n_cols":15,"rows_kept":690,"cut":false,"hidden":false,"merged":[]}
[]
[null,"№п/п","Вид роботи","№ справи","Приріотет","Замовник","Марка КТЗ","Модель КТЗ","Державний номер","Дата замовлення","Рек. термін викон","Дата Завершення","Стан","% Заверш.","%"]
[null,null,null,null,"Ч","Е","Р","В","Е","Н","Ь"]
[null,1,"Експертиза","06-18-M088","Низький ","СК \"Уніка\"","MERCEDES-BENZ","E 320 ","AB9080CA","2018-06-08",5,{"$f":"IF(Таблица6[[#This Row],[Дата замовлення]]=\"\",\"\",Таблица6[[#This Row],[Дата замовлення]]+Таблица6[[#This Row],[Рек. термін викон]])","v":"2018-06-13"},"Завершене",1,{"$f":"IF(Таблица6[[#This Row],[% Заверш.]]=\"\",\"\",Таблица6[[#This Row],[% Заверш.]])","v":1}]
[null,2,"Акт огляду","06-18-M089","Високий","СК \"АСКА\"","MITSUBISHI","PAJERO","AH1609IH","2018-06-01",3,{"$f":"IF(Таблица6[[#This Row],[Дата замовлення]]=\"\",\"\",Таблица6[[#This Row],[Дата замовлення]]+Таблица6[[#This Row],[Рек. термін викон]])","v":"2018-06-04"},"Завершене",1,{"$f":"IF(Таблица6[[#This Row],[% Заверш.]]=\"\",\"\",Таблица6[[#This Row],[% Заверш.]])","v":1}]
[null,3,"Експертиза","06-18-M090","Середній","СК \"Арсенал\"","CHEVROLET ","EPICA","AB0909BP","2018-06-11",5,{"$f":"IF(Таблица6[[#This Row],[Дата замовлення]]=\"\",\"\",Таблица6[[#This Row],[Дата замовлення]]+Таблица6[[#This Row],[Рек. термін викон]])","v":"2018-06-16"},"Завершене",1,{"$f":"IF(Таблица6[[#This Row],[% Заверш.]]=\"\",\"\",Таблица6[[#This Row],[% Заверш.]])","v":1}]
[null,4,"Експертиза","06-18-M091","Високий","СК \"АСКА\"","Be 4/6 ","\"Міраж\"","№309","2018-06-11",1,{"$f":"IF(Таблица6[[#This Row],[Дата замовлення]]=\"\",\"\",Таблица6[[#This Row],[Дата замовлення]]+Таблица6[[#This Row],[Рек. термін викон]])","v":"2018-06-12"},"Завершене",1,{"$f":"IF(Таблица6[[#This Row],[% Заверш.]]=\"\",\"\",Таблица6[[#This Row],[% Заверш.]])","v":1}]
[null,5,"Акт огляду","06-18-M092","Середній","СК \"АСКА\"","MAZDA",6,"AB1450CI","2018-06-13",1,{"$f":"IF(Таблица6[[#This Row],[Дата замовлення]]=\"\",\"\",Таблица6[[#This Row],[Дата замовлення]]+Таблица6[[#This Row],[Рек. термін викон]])","v":"2018-06-14"},"Завершене",1,{"$f":"IF(Таблица6[[#This Row],[% Заверш.]]=\"\",\"\",Таблица6[[#This Row],[% Заверш.]])","v":1}]
[null,6,"Експертиза","06-18-M093","Низький ","Фізична Особа","MITSUBISHI","PAJERO","AH1609IH","2018-06-01",10,{"$f":"IF(Таблица6[[#This Row],[Дата замовлення]]=\"\",\"\",Таблица6[[#This Row],[Дата замовлення]]+Таблица6[[#This Row],[Рек. термін викон]])","v":"2018-06-11"},"Завершене",1,{"$f":"IF(Таблица6[[#This Row],[% Заверш.]]=\"\",\"\",Таблица6[[#This Row],[% Заверш.]])","v":1}]
[null,7,"Акт огляду","06-18-M094","Низький ","СК \"Країна\"","ВАЗ",210999,"АВ4576АО","2018-06-07",15,{"$f":"IF(Таблица6[[#This Row],[Дата замовлення]]=\"\",\"\",Таблица6[[#This Row],[Дата замовлення]]+Таблица6[[#This Row],[Рек. термін викон]])","v":"2018-06-22"},"Не почато",0.5,{"$f":"IF(Таблица6[[#This Row],[% Заверш.]]=\"\",\"\",Таблица6[[#This Row],[% Заверш.]])","v":0.5}]
[null,8,"Експертиза","06-18-M095","Високий","Фізична Особа","ВАЗ",2113,"AI5066EA","2018-06-12",3,{"$f":"IF(Таблица6[[#This Row],[Дата замовлення]]=\"\",\"\",Таблица6[[#This Row],[Дата замовлення]]+Таблица6[[#This Row],[Рек. термін викон]])","v":"2018-06-15"},"Завершене",1,{"$f":"IF(Таблица6[[#This Row],[% Заверш.]]=\"\",\"\",Таблица6[[#This Row],[% Заверш.]])","v":1}]
[null,9,"Експертиза","06-18-M096","Високий","СК \"АСКА\"","ЗАЗ",110308,"АВ9937СК","2018-06-13",1,{"$f":"IF(Таблица6[[#This Row],[Дата замовлення]]=\"\",\"\",Таблица6[[#This Row],[Дата замовлення]]+Таблица6[[#This Row],[Рек. термін викон]])","v":"2018-06-14"},"Завершене",1,{"$f":"IF(Таблица6[[#This Row],[% Заверш.]]=\"\",\"\",Таблица6[[#This Row],[% Заверш.]])","v":1}]
[null,10,"Акт огляду","06-18-M097","Низький ","СК \"Країна\"","TOYOTA","COROLLA","AB5506BH","2018-06-10",10,{"$f":"IF(Таблица6[[#This Row],[Дата замовлення]]=\"\",\"\",Таблица6[[#This Row],[Дата замовлення]]+Таблица6[[#This Row],[Рек. термін викон]])","v":"2018-06-20"},"Завершене",1,{"$f":"IF(Таблица6[[#This Row],[% Заверш.]]=\"\",\"\",Таблица6[[#This Row],[% Заверш.]])","v":1}]
[null,11,"Акт огляду","06-18-M098","Високий","СК \"АСКА\"","VOLKSWAGEN","LT31","15957BT","2018-06-14",1,{"$f":"IF(Таблица6[[#This Row],[Дата замовлення]]=\"\",\"\",Таблица6[[#This Row],[Дата замовлення]]+Таблица6[[#This Row],[Рек. термін викон]])","v":"2018-06-15"},"Завершене",1,{"$f":"IF(Таблица6[[#This Row],[% Заверш.]]=\"\",\"\",Таблица6[[#This Row],[% Заверш.]])","v":1}]
[null,12,"Експертиза","06-18-M099","Низький ","Фізична Особа","DAEWOO","LANOS",null,"2018-06-14",10,{"$f":"IF(Таблица6[[#This Row],[Дата замовлення]]=\"\",\"\",Таблица6[[#This Row],[Дата замовлення]]+Таблица6[[#This Row],[Рек. термін викон]])","v":"2018-06-24"},"Не почато",0.25,{"$f":"IF(Таблица6[[#This Row],[% Заверш.]]=\"\",\"\",Таблица6[[#This Row],[% Заверш.]])","v":0.25}]
[null,13,"Акт огляду","06-18-M100","Низький ","СК \"Країна\"","MERCEDES-BENZ","2041S","AB1935AE","2018-06-15",10,{"$f":"IF(Таблица6[[#This Row],[Дата замовлення]]=\"\",\"\",Таблица6[[#This Row],[Дата замовлення]]+Таблица6[[#This Row],[Рек. термін викон]])","v":"2018-06-25"},"Не почато",0.5,{"$f":"IF(Таблица6[[#This Row],[% Заверш.]]=\"\",\"\",Таблица6[[#This Row],[% Заверш.]])","v":0.5}]
[null,14,"Експертиза","06-18-M101","Середній","СК \"Арсенал\"","MERCEDES-BENZ"," E200","AB6621BK","2018-06-18",5,{"$f":"IF(Таблица6[[#This Row],[Дата замовлення]]=\"\",\"\",Таблица6[[#This Row],[Дата замовлення]]+Таблица6[[#This Row],[Рек. термін викон]])","v":"2018-06-23"},"Відкладено",0.25,{"$f":"IF(Таблица6[[#This Row],[% Заверш.]]=\"\",\"\",Таблица6[[#This Row],[% Заверш.]])","v":0.25}]
[null,15,"Експертиза","06-18-M102","Середній","СК \"Арсенал\"","VOLKSWAGEN ","GOLF","AB9131CK","2018-06-18",5,{"$f":"IF(Таблица6[[#This Row],[Дата замовлення]]=\"\",\"\",Таблица6[[#This Row],[Дата замовлення]]+Таблица6[[#This Row],[Рек. термін викон]])","v":"2018-06-23"},"Відкладено",0.25,{"$f":"IF(Таблица6[[#This Row],[% Заверш.]]=\"\",\"\",Таблица6[[#This Row],[% Заверш.]])","v":0.25}]
[null,16,"Експертиза","06-18-M103","Високий","СК \"Арсенал\"","VOLKSWAGEN ","TAUAREG","AB0020BE","2018-06-18",3,{"$f":"IF(Таблица6[[#This Row],[Дата замовлення]]=\"\",\"\",Таблица6[[#This Row],[Дата замовлення]]+Таблица6[[#This Row],[Рек. термін викон]])","v":"2018-06-21"},"Виконується",0.25,{"$f":"IF(Таблица6[[#This Row],[% Заверш.]]=\"\",\"\",Таблица6[[#This Row],[% Заверш.]])","v":0.25}]
[null,17,"Експертиза","06-18-M104","Високий","СК \"Арсенал\"","KIA ","SOUL ","AB4381CH","2018-06-18",3,{"$f":"IF(Таблица6[[#This Row],[Дата замовлення]]=\"\",\"\",Таблица6[[#This Row],[Дата замовлення]]+Таблица6[[#This Row],[Рек. термін викон]])","v":"2018-06-21"},"Виконується",0.25,{"$f":"IF(Таблица6[[#This Row],[% Заверш.]]=\"\",\"\",Таблица6[[#This Row],[% Заверш.]])","v":0.25}]
[null,18,"Експертиза","06-18-M105","Високий","СК \"Арсенал\"","CHEVROLET"," NUBIRA","BX0357BA","2018-06-18",3,{"$f":"IF(Таблица6[[#This Row],[Дата замовлення]]=\"\",\"\",Таблица6[[#This Row],[Дата замовлення]]+Таблица6[[#This Row],[Рек. термін викон]])","v":"2018-06-21"},"Виконується",0.25,{"$f":"IF(Таблица6[[#This Row],[% Заверш.]]=\"\",\"\",Таблица6[[#This Row],[% Заверш.]])","v":0.25}]
[null,19,"Експертиза","06-18-M106","Високий","СК \"Арсенал\"","DAEWOO"," LANOS","AB6263CI","2018-06-18",3,{"$f":"IF(Таблица6[[#This Row],[Дата замовлення]]=\"\",\"\",Таблица6[[#This Row],[Дата замовлення]]+Таблица6[[#This Row],[Рек. термін викон]])","v":"2018-06-21"},"Виконується",0.25,{"$f":"IF(Таблица6[[#This Row],[% Заверш.]]=\"\",\"\",Таблица6[[#This Row],[% Заверш.]])","v":0.25}]
[null,20,"Експертиза","06-18-M107","Високий","СК \"Арсенал\"","ВАЗ ",21150,"АВ2282AH","2018-06-18",3,{"$f":"IF(Таблица6[[#This Row],[Дата замовлення]]=\"\",\"\",Таблица6[[#This Row],[Дата замовлення]]+Таблица6[[#This Row],[Рек. термін викон]])","v":"2018-06-21"},"Виконується",0.25,{"$f":"IF(Таблица6[[#This Row],[% Заверш.]]=\"\",\"\",Таблица6[[#This Row],[% Заверш.]])","v":0.25}]
[null,21,"Експертиза","06-18-M108","Середній","СК \"Арсенал\"","SKODA ","PRAKTIK","BC2359EA","2018-06-18",5,{"$f":"IF(Таблица6[[#This Row],[Дата замовлення]]=\"\",\"\",Таблица6[[#This Row],[Дата замовлення]]+Таблица6[[#This Row],[Рек. термін викон]])","v":"2018-06-23"},"Відкладено",0.25,{"$f":"IF(Таблица6[[#This Row],[% Заверш.]]=\"\",\"\",Таблица6[[#This Row],[% Заверш.]])","v":0.25}]
[null,22,"Експертиза","06-18-M109","Середній","СК \"Арсенал\"","PORSCHE ","CAYENNE","AB5152CB","2018-06-18",5,{"$f":"IF(Таблица6[[#This Row],[Дата замовлення]]=\"\",\"\",Таблица6[[#This Row],[Дата замовлення]]+Таблица6[[#This Row],[Рек. термін викон]])","v":"2018-06-23"},"Відкладено",0.25,{"$f":"IF(Таблица6[[#This Row],[% Заверш.]]=\"\",\"\",Таблица6[[#This Row],[% Заверш.]])","v":0.25}]
[null,23,"Експертиза","06-18-M110","Середній","СК \"Арсенал\"","RENAULT ","KANGO","AB7816BC","2018-06-18",5,{"$f":"IF(Таблица6[[#This Row],[Дата замовлення]]=\"\",\"\",Таблица6[[#This Row],[Дата замовлення]]+Таблица6[[#This Row],[Рек. термін викон]])","v":"2018-06-23"},"Відкладено",0.25,{"$f":"IF(Таблица6[[#This Row],[% Заверш.]]=\"\",\"\",Таблица6[[#This Row],[% Заверш.]])","v":0.25}]
[null,24,"Акт огляду","06-18-M111","Низький ","СК \"Країна\"","ВАЗ ",21173,null,"2018-06-19",10,{"$f":"IF(Таблица6[[#This Row],[Дата замовлення]]=\"\",\"\",Таблица6[[#This Row],[Дата замовлення]]+Таблица6[[#This Row],[Рек. термін викон]])","v":"2018-06-29"},"Виконується",0.25,{"$f":"IF(Таблица6[[#This Row],[% Заверш.]]=\"\",\"\",Таблица6[[#This Row],[% Заверш.]])","v":0.25}]
[null,25,"Експертиза","06-18-M112","Середній","СК \"АСКА\"","RENAULT","LOGAN",null,"2018-06-19",3,{"$f":"IF(Таблица6[[#This Row],[Дата замовлення]]=\"\",\"\",Таблица6[[#This Row],[Дата замовлення]]+Таблица6[[#This Row],[Рек. термін викон]])","v":"2018-06-22"},"Не почато",0.25,{"$f":"IF(Таблица6[[#This Row],[% Заверш.]]=\"\",\"\",Таблица6[[#This Row],[% Заверш.]])","v":0.25}]
[null,26,"Експертиза","06-18-M113","Високий","СК \"Арсенал\"","TOYOTA","AVENSIS","AB1113AA","2018-06-20",1,{"$f":"IF(Таблица6[[#This Row],[Дата замовлення]]=\"\",\"\",Таблица6[[#This Row],[Дата замовлення]]+Таблица6[[#This Row],[Рек. термін викон]])","v":"2018-06-21"},"Виконується",0.25,{"$f":"IF(Таблица6[[#This Row],[% Заверш.]]=\"\",\"\",Таблица6[[#This Row],[% Заверш.]])","v":0.25}]
[null,27,null,null,null,null,null,null,null,null,null,{"$f":"IF(Таблица6[[#This Row],[Дата замовлення]]=\"\",\"\",Таблица6[[#This Row],[Дата замовлення]]+Таблица6[[#This Row],[Рек. термін викон]])","v":""},null,null,{"$f":"IF(Таблица6[[#This Row],[% Заверш.]]=\"\",\"\",Таблица6[[#This Row],[% Заверш.]])","v":""}]
[null,28,null,null,null,null,null,null,null,null,null,{"$f":"IF(Таблица6[[#This Row],[Дата замовлення]]=\"\",\"\",Таблица6[[#This Row],[Дата замовлення]]+Таблица6[[#This Row],[Рек. термін викон]])","v":""},null,null,{"$f":"IF(Таблица6[[#This Row],[% Заверш.]]=\"\",\"\",Таблица6[[#This Row],[% Заверш.]])","v":""}]
[null,29,null,null,null,null,null,null,null,null,null,{"$f":"IF(Таблица6[[#This Row],[Дата замовлення]]=\"\",\"\",Таблица6[[#This Row],[Дата замовлення]]+Таблица6[[#This Row],[Рек. термін викон]])","v":""},null,null,{"$f":"IF(Таблица6[[#This Row],[% Заверш.]]=\"\",\"\",Таблица6[[#This Row],[% Заверш.]])","v":""}]
[null,30,null,null,null,null,null,null,null,null,null,{"$f":"IF(Таблица6[[#This Row],[Дата замовлення]]=\"\",\"\",Таблица6[[#This Row],[Дата замовлення]]+Таблица6[[#This Row],[Рек. термін викон]])","v":""},null,null,{"$f":"IF(Таблица6[[#This Row],[% Заверш.]]=\"\",\"\",Таблица6[[#This Row],[% Заверш.]])","v":""}]
[null,31,null,null,null,null,null,null,null,null,null,{"$f":"IF(Таблица6[[#This Row],[Дата замовлення]]=\"\",\"\",Таблица6[[#This Row],[Дата замовлення]]+Таблица6[[#This Row],[Рек. термін викон]])","v":""},null,null,{"$f":"IF(Таблица6[[#This Row],[% Заверш.]]=\"\",\"\",Таблица6[[#This Row],[% Заверш.]])","v":""}]
[null,32,null,null,null,null,null,null,null,null,null,{"$f":"IF(Таблица6[[#This Row],[Дата замовлення]]=\"\",\"\",Таблица6[[#This Row],[Дата замовлення]]+Таблица6[[#This Row],[Рек. термін викон]])","v":""},null,null,{"$f":"IF(Таблица6[[#This Row],[% Заверш.]]=\"\",\"\",Таблица6[[#This Row],[% Заверш.]])","v":""}]
[null,33,null,null,null,null,null,null,null,null,null,{"$f":"IF(Таблица6[[#This Row],[Дата замовлення]]=\"\",\"\",Таблица6[[#This Row],[Дата замовлення]]+Таблица6[[#This Row],[Рек. термін викон]])","v":""},null,null,{"$f":"IF(Таблица6[[#This Row],[% Заверш.]]=\"\",\"\",Таблица6[[#This Row],[% Заверш.]])","v":""}]
[null,34,null,null,null,null,null,null,null,null,null,{"$f":"IF(Таблица6[[#This Row],[Дата замовлення]]=\"\",\"\",Таблица6[[#This Row],[Дата замовлення]]+Таблица6[[#This Row],[Рек. термін викон]])","v":""},null,null,{"$f":"IF(Таблица6[[#This Row],[% Заверш.]]=\"\",\"\",Таблица6[[#This Row],[% Заверш.]])","v":""}]
[null,35,null,null,null,null,null,null,null,null,null,{"$f":"IF(Таблица6[[#This Row],[Дата замовлення]]=\"\",\"\",Таблица6[[#This Row],[Дата замовлення]]+Таблица6[[#This Row],[Рек. термін викон]])","v":""},null,null,{"$f":"IF(Таблица6[[#This Row],[% Заверш.]]=\"\",\"\",Таблица6[[#This Row],[% Заверш.]])","v":""}]
[null,36,null,null,null,null,null,null,null,null,null,{"$f":"IF(Таблица6[[#This Row],[Дата замовлення]]=\"\",\"\",Таблица6[[#This Row],[Дата замовлення]]+Таблица6[[#This Row],[Рек. термін викон]])","v":""},null,null,{"$f":"IF(Таблица6[[#This Row],[% Заверш.]]=\"\",\"\",Таблица6[[#This Row],[% Заверш.]])","v":""}]
[null,37,null,null,null,null,null,null,null,null,null,{"$f":"IF(Таблица6[[#This Row],[Дата замовлення]]=\"\",\"\",Таблица6[[#This Row],[Дата замовлення]]+Таблица6[[#This Row],[Рек. термін викон]])","v":""},null,null,{"$f":"IF(Таблица6[[#This Row],[% Заверш.]]=\"\",\"\",Таблица6[[#This Row],[% Заверш.]])","v":""}]
[null,38,null,null,null,null,null,null,null,null,null,{"$f":"IF(Таблица6[[#This Row],[Дата замовлення]]=\"\",\"\",Таблица6[[#This Row],[Дата замовлення]]+Таблица6[[#This Row],[Рек. термін викон]])","v":""},null,null,{"$f":"IF(Таблица6[[#This Row],[% Заверш.]]=\"\",\"\",Таблица6[[#This Row],[% Заверш.]])","v":""}]
[null,39,null,null,null,null,null,null,null,null,null,{"$f":"IF(Таблица6[[#This Row],[Дата замовлення]]=\"\",\"\",Таблица6[[#This Row],[Дата замовлення]]+Таблица6[[#This Row],[Рек. термін викон]])","v":""},null,null,{"$f":"IF(Таблица6[[#This Row],[% Заверш.]]=\"\",\"\",Таблица6[[#This Row],[% Заверш.]])","v":""}]
[null,40,null,null,null,null,null,null,null,null,null,{"$f":"IF(Таблица6[[#This Row],[Дата замовлення]]=\"\",\"\",Таблица6[[#This Row],[Дата замовлення]]+Таблица6[[#This Row],[Рек. термін викон]])","v":""},null,null,{"$f":"IF(Таблица6[[#This Row],[% Заверш.]]=\"\",\"\",Таблица6[[#This Row],[% Заверш.]])","v":""}]
[null,41,null,null,null,null,null,null,null,null,null,{"$f":"IF(Таблица6[[#This Row],[Дата замовлення]]=\"\",\"\",Таблица6[[#This Row],[Дата замовлення]]+Таблица6[[#This Row],[Рек. термін викон]])","v":""},null,null,{"$f":"IF(Таблица6[[#This Row],[% Заверш.]]=\"\",\"\",Таблица6[[#This Row],[% Заверш.]])","v":""}]
[null,42,null,null,null,null,null,null,null,null,null,{"$f":"IF(Таблица6[[#This Row],[Дата замовлення]]=\"\",\"\",Таблица6[[#This Row],[Дата замовлення]]+Таблица6[[#This Row],[Рек. термін викон]])","v":""},null,null,{"$f":"IF(Таблица6[[#This Row],[% Заверш.]]=\"\",\"\",Таблица6[[#This Row],[% Заверш.]])","v":""}]
[null,43,null,null,null,null,null,null,null,null,null,{"$f":"IF(Таблица6[[#This Row],[Дата замовлення]]=\"\",\"\",Таблица6[[#This Row],[Дата замовлення]]+Таблица6[[#This Row],[Рек. термін викон]])","v":""},null,null,{"$f":"IF(Таблица6[[#This Row],[% Заверш.]]=\"\",\"\",Таблица6[[#This Row],[% Заверш.]])","v":""}]
[null,44,null,null,null,null,null,null,null,null,null,{"$f":"IF(Таблица6[[#This Row],[Дата замовлення]]=\"\",\"\",Таблица6[[#This Row],[Дата замовлення]]+Таблица6[[#This Row],[Рек. термін викон]])","v":""},null,null,{"$f":"IF(Таблица6[[#This Row],[% Заверш.]]=\"\",\"\",Таблица6[[#This Row],[% Заверш.]])","v":""}]
[null,45,null,null,null,null,null,null,null,null,null,{"$f":"IF(Таблица6[[#This Row],[Дата замовлення]]=\"\",\"\",Таблица6[[#This Row],[Дата замовлення]]+Таблица6[[#This Row],[Рек. термін викон]])","v":""},null,null,{"$f":"IF(Таблица6[[#This Row],[% Заверш.]]=\"\",\"\",Таблица6[[#This Row],[% Заверш.]])","v":""}]
[null,46,null,null,null,null,null,null,null,null,null,{"$f":"IF(Таблица6[[#This Row],[Дата замовлення]]=\"\",\"\",Таблица6[[#This Row],[Дата замовлення]]+Таблица6[[#This Row],[Рек. термін викон]])","v":""},null,null,{"$f":"IF(Таблица6[[#This Row],[% Заверш.]]=\"\",\"\",Таблица6[[#This Row],[% Заверш.]])","v":""}]
[null,47,null,null,null,null,null,null,null,null,null,{"$f":"IF(Таблица6[[#This Row],[Дата замовлення]]=\"\",\"\",Таблица6[[#This Row],[Дата замовлення]]+Таблица6[[#This Row],[Рек. термін викон]])","v":""},null,null,{"$f":"IF(Таблица6[[#This Row],[% Заверш.]]=\"\",\"\",Таблица6[[#This Row],[% Заверш.]])","v":""}]
[null,48,null,null,null,null,null,null,null,null,null,{"$f":"IF(Таблица6[[#This Row],[Дата замовлення]]=\"\",\"\",Таблица6[[#This Row],[Дата замовлення]]+Таблица6[[#This Row],[Рек. термін викон]])","v":""},null,null,{"$f":"IF(Таблица6[[#This Row],[% Заверш.]]=\"\",\"\",Таблица6[[#This Row],[% Заверш.]])","v":""}]
[null,49,null,null,null,null,null,null,null,null,null,{"$f":"IF(Таблица6[[#This Row],[Дата замовлення]]=\"\",\"\",Таблица6[[#This Row],[Дата замовлення]]+Таблица6[[#This Row],[Рек. термін викон]])","v":""},null,null,{"$f":"IF(Таблица6[[#This Row],[% Заверш.]]=\"\",\"\",Таблица6[[#This Row],[% Заверш.]])","v":""}]
[null,50,null,null,null,null,null,null,null,null,null,{"$f":"IF(Таблица6[[#This Row],[Дата замовлення]]=\"\",\"\",Таблица6[[#This Row],[Дата замовлення]]+Таблица6[[#This Row],[Рек. термін викон]])","v":""},null,null,{"$f":"IF(Таблица6[[#This Row],[% Заверш.]]=\"\",\"\",Таблица6[[#This Row],[% Заверш.]])","v":""}]
[null,51,null,null,null,null,null,null,null,null,null,{"$f":"IF(Таблица6[[#This Row],[Дата замовлення]]=\"\",\"\",Таблица6[[#This Row],[Дата замовлення]]+Таблица6[[#This Row],[Рек. термін викон]])","v":""},null,null,{"$f":"IF(Таблица6[[#This Row],[% Заверш.]]=\"\",\"\",Таблица6[[#This Row],[% Заверш.]])","v":""}]
[null,52,null,null,null,null,null,null,null,null,null,{"$f":"IF(Таблица6[[#This Row],[Дата замовлення]]=\"\",\"\",Таблица6[[#This Row],[Дата замовлення]]+Таблица6[[#This Row],[Рек. термін викон]])","v":""},null,null,{"$f":"IF(Таблица6[[#This Row],[% Заверш.]]=\"\",\"\",Таблица6[[#This Row],[% Заверш.]])","v":""}]
[null,53,null,null,null,null,null,null,null,null,null,{"$f":"IF(Таблица6[[#This Row],[Дата замовлення]]=\"\",\"\",Таблица6[[#This Row],[Дата замовлення]]+Таблица6[[#This Row],[Рек. термін викон]])","v":""},null,null,{"$f":"IF(Таблица6[[#This Row],[% Заверш.]]=\"\",\"\",Таблица6[[#This Row],[% Заверш.]])","v":""}]
[null,54,null,null,null,null,null,null,null,null,null,{"$f":"IF(Таблица6[[#This Row],[Дата замовлення]]=\"\",\"\",Таблица6[[#This Row],[Дата замовлення]]+Таблица6[[#This Row],[Рек. термін викон]])","v":""},null,null,{"$f":"IF(Таблица6[[#This Row],[% Заверш.]]=\"\",\"\",Таблица6[[#This Row],[% Заверш.]])","v":""}]
[null,55,null,null,null,null,null,null,null,null,null,{"$f":"IF(Таблица6[[#This Row],[Дата замовлення]]=\"\",\"\",Таблица6[[#This Row],[Дата замовлення]]+Таблица6[[#This Row],[Рек. термін викон]])","v":""},null,null,{"$f":"IF(Таблица6[[#This Row],[% Заверш.]]=\"\",\"\",Таблица6[[#This Row],[% Заверш.]])","v":""}]
[null,56,null,null,null,null,null,null,null,null,null,{"$f":"IF(Таблица6[[#This Row],[Дата замовлення]]=\"\",\"\",Таблица6[[#This Row],[Дата замовлення]]+Таблица6[[#This Row],[Рек. термін викон]])","v":""},null,null,{"$f":"IF(Таблица6[[#This Row],[% Заверш.]]=\"\",\"\",Таблица6[[#This Row],[% Заверш.]])","v":""}]
[null,57,null,null,null,null,null,null,null,null,null,{"$f":"IF(Таблица6[[#This Row],[Дата замовлення]]=\"\",\"\",Таблица6[[#This Row],[Дата замовлення]]+Таблица6[[#This Row],[Рек. термін викон]])","v":""},null,null,{"$f":"IF(Таблица6[[#This Row],[% Заверш.]]=\"\",\"\",Таблица6[[#This Row],[% Заверш.]])","v":""}]
[null,58,null,null,null,null,null,null,null,null,null,{"$f":"IF(Таблица6[[#This Row],[Дата замовлення]]=\"\",\"\",Таблица6[[#This Row],[Дата замовлення]]+Таблица6[[#This Row],[Рек. термін викон]])","v":""},null,null,{"$f":"IF(Таблица6[[#This Row],[% Заверш.]]=\"\",\"\",Таблица6[[#This Row],[% Заверш.]])","v":""}]
[null,59,null,null,null,null,null,null,null,null,null,{"$f":"IF(Таблица6[[#This Row],[Дата замовлення]]=\"\",\"\",Таблица6[[#This Row],[Дата замовлення]]+Таблица6[[#This Row],[Рек. термін викон]])","v":""},null,null,{"$f":"IF(Таблица6[[#This Row],[% Заверш.]]=\"\",\"\",Таблица6[[#This Row],[% Заверш.]])","v":""}]
[null,60,null,null,null,null,null,null,null,null,null,{"$f":"IF(Таблица6[[#This Row],[Дата замовлення]]=\"\",\"\",Таблица6[[#This Row],[Дата замовлення]]+Таблица6[[#This Row],[Рек. термін викон]])","v":""},null,null,{"$f":"IF(Таблица6[[#This Row],[% Заверш.]]=\"\",\"\",Таблица6[[#This Row],[% Заверш.]])","v":""}]
[null,61,null,null,null,null,null,null,null,null,null,{"$f":"IF(Таблица6[[#This Row],[Дата замовлення]]=\"\",\"\",Таблица6[[#This Row],[Дата замовлення]]+Таблица6[[#This Row],[Рек. термін викон]])","v":""},null,null,{"$f":"IF(Таблица6[[#This Row],[% Заверш.]]=\"\",\"\",Таблица6[[#This Row],[% Заверш.]])","v":""}]
[null,62,null,null,null,null,null,null,null,null,null,{"$f":"IF(Таблица6[[#This Row],[Дата замовлення]]=\"\",\"\",Таблица6[[#This Row],[Дата замовлення]]+Таблица6[[#This Row],[Рек. термін викон]])","v":""},null,null,{"$f":"IF(Таблица6[[#This Row],[% Заверш.]]=\"\",\"\",Таблица6[[#This Row],[% Заверш.]])","v":""}]
[null,63,null,null,null,null,null,null,null,null,null,{"$f":"IF(Таблица6[[#This Row],[Дата замовлення]]=\"\",\"\",Таблица6[[#This Row],[Дата замовлення]]+Таблица6[[#This Row],[Рек. термін викон]])","v":""},null,null,{"$f":"IF(Таблица6[[#This Row],[% Заверш.]]=\"\",\"\",Таблица6[[#This Row],[% Заверш.]])","v":""}]
[null,64,null,null,null,null,null,null,null,null,null,{"$f":"IF(Таблица6[[#This Row],[Дата замовлення]]=\"\",\"\",Таблица6[[#This Row],[Дата замовлення]]+Таблица6[[#This Row],[Рек. термін викон]])","v":""},null,null,{"$f":"IF(Таблица6[[#This Row],[% Заверш.]]=\"\",\"\",Таблица6[[#This Row],[% Заверш.]])","v":""}]
[null,65,null,null,null,null,null,null,null,null,null,{"$f":"IF(Таблица6[[#This Row],[Дата замовлення]]=\"\",\"\",Таблица6[[#This Row],[Дата замовлення]]+Таблица6[[#This Row],[Рек. термін викон]])","v":""},null,null,{"$f":"IF(Таблица6[[#This Row],[% Заверш.]]=\"\",\"\",Таблица6[[#This Row],[% Заверш.]])","v":""}]
[null,66,null,null,null,null,null,null,null,null,null,{"$f":"IF(Таблица6[[#This Row],[Дата замовлення]]=\"\",\"\",Таблица6[[#This Row],[Дата замовлення]]+Таблица6[[#This Row],[Рек. термін викон]])","v":""},null,null,{"$f":"IF(Таблица6[[#This Row],[% Заверш.]]=\"\",\"\",Таблица6[[#This Row],[% Заверш.]])","v":""}]
[null,67,null,null,null,null,null,null,null,null,null,{"$f":"IF(Таблица6[[#This Row],[Дата замовлення]]=\"\",\"\",Таблица6[[#This Row],[Дата замовлення]]+Таблица6[[#This Row],[Рек. термін викон]])","v":""},null,null,{"$f":"IF(Таблица6[[#This Row],[% Заверш.]]=\"\",\"\",Таблица6[[#This Row],[% Заверш.]])","v":""}]
[null,68,null,null,null,null,null,null,null,null,null,{"$f":"IF(Таблица6[[#This Row],[Дата замовлення]]=\"\",\"\",Таблица6[[#This Row],[Дата замовлення]]+Таблица6[[#This Row],[Рек. термін викон]])","v":""},null,null,{"$f":"IF(Таблица6[[#This Row],[% Заверш.]]=\"\",\"\",Таблица6[[#This Row],[% Заверш.]])","v":""}]
[null,69,null,null,null,null,null,null,null,null,null,{"$f":"IF(Таблица6[[#This Row],[Дата замовлення]]=\"\",\"\",Таблица6[[#This Row],[Дата замовлення]]+Таблица6[[#This Row],[Рек. термін викон]])","v":""},null,null,{"$f":"IF(Таблица6[[#This Row],[% Заверш.]]=\"\",\"\",Таблица6[[#This Row],[% Заверш.]])","v":""}]
[null,70,null,null,null,null,null,null,null,null,null,{"$f":"IF(Таблица6[[#This Row],[Дата замовлення]]=\"\",\"\",Таблица6[[#This Row],[Дата замовлення]]+Таблица6[[#This Row],[Рек. термін викон]])","v":""},null,null,{"$f":"IF(Таблица6[[#This Row],[% Заверш.]]=\"\",\"\",Таблица6[[#This Row],[% Заверш.]])","v":""}]
[null,71,null,null,null,null,null,null,null,null,null,{"$f":"IF(Таблица6[[#This Row],[Дата замовлення]]=\"\",\"\",Таблица6[[#This Row],[Дата замовлення]]+Таблица6[[#This Row],[Рек. термін викон]])","v":""},null,null,{"$f":"IF(Таблица6[[#This Row],[% Заверш.]]=\"\",\"\",Таблица6[[#This Row],[% Заверш.]])","v":""}]
[null,72,null,null,null,null,null,null,null,null,null,{"$f":"IF(Таблица6[[#This Row],[Дата замовлення]]=\"\",\"\",Таблица6[[#This Row],[Дата замовлення]]+Таблица6[[#This Row],[Рек. термін викон]])","v":""},null,null,{"$f":"IF(Таблица6[[#This Row],[% Заверш.]]=\"\",\"\",Таблица6[[#This Row],[% Заверш.]])","v":""}]
[null,73,null,null,null,null,null,null,null,null,null,{"$f":"IF(Таблица6[[#This Row],[Дата замовлення]]=\"\",\"\",Таблица6[[#This Row],[Дата замовлення]]+Таблица6[[#This Row],[Рек. термін викон]])","v":""},null,null,{"$f":"IF(Таблица6[[#This Row],[% Заверш.]]=\"\",\"\",Таблица6[[#This Row],[% Заверш.]])","v":""}]
[null,74,null,null,null,null,null,null,null,null,null,{"$f":"IF(Таблица6[[#This Row],[Дата замовлення]]=\"\",\"\",Таблица6[[#This Row],[Дата замовлення]]+Таблица6[[#This Row],[Рек. термін викон]])","v":""},null,null,{"$f":"IF(Таблица6[[#This Row],[% Заверш.]]=\"\",\"\",Таблица6[[#This Row],[% Заверш.]])","v":""}]
[null,75,null,null,null,null,null,null,null,null,null,{"$f":"IF(Таблица6[[#This Row],[Дата замовлення]]=\"\",\"\",Таблица6[[#This Row],[Дата замовлення]]+Таблица6[[#This Row],[Рек. термін викон]])","v":""},null,null,{"$f":"IF(Таблица6[[#This Row],[% Заверш.]]=\"\",\"\",Таблица6[[#This Row],[% Заверш.]])","v":""}]
[null,76,null,null,null,null,null,null,null,null,null,{"$f":"IF(Таблица6[[#This Row],[Дата замовлення]]=\"\",\"\",Таблица6[[#This Row],[Дата замовлення]]+Таблица6[[#This Row],[Рек. термін викон]])","v":""},null,null,{"$f":"IF(Таблица6[[#This Row],[% Заверш.]]=\"\",\"\",Таблица6[[#This Row],[% Заверш.]])","v":""}]
[null,77,null,null,null,null,null,null,null,null,null,{"$f":"IF(Таблица6[[#This Row],[Дата замовлення]]=\"\",\"\",Таблица6[[#This Row],[Дата замовлення]]+Таблица6[[#This Row],[Рек. термін викон]])","v":""},null,null,{"$f":"IF(Таблица6[[#This Row],[% Заверш.]]=\"\",\"\",Таблица6[[#This Row],[% Заверш.]])","v":""}]
[null,78,null,null,null,null,null,null,null,null,null,{"$f":"IF(Таблица6[[#This Row],[Дата замовлення]]=\"\",\"\",Таблица6[[#This Row],[Дата замовлення]]+Таблица6[[#This Row],[Рек. термін викон]])","v":""},null,null,{"$f":"IF(Таблица6[[#This Row],[% Заверш.]]=\"\",\"\",Таблица6[[#This Row],[% Заверш.]])","v":""}]
[null,79,null,null,null,null,null,null,null,null,null,{"$f":"IF(Таблица6[[#This Row],[Дата замовлення]]=\"\",\"\",Таблица6[[#This Row],[Дата замовлення]]+Таблица6[[#This Row],[Рек. термін викон]])","v":""},null,null,{"$f":"IF(Таблица6[[#This Row],[% Заверш.]]=\"\",\"\",Таблица6[[#This Row],[% Заверш.]])","v":""}]
[null,80,null,null,null,null,null,null,null,null,null,{"$f":"IF(Таблица6[[#This Row],[Дата замовлення]]=\"\",\"\",Таблица6[[#This Row],[Дата замовлення]]+Таблица6[[#This Row],[Рек. термін викон]])","v":""},null,null,{"$f":"IF(Таблица6[[#This Row],[% Заверш.]]=\"\",\"\",Таблица6[[#This Row],[% Заверш.]])","v":""}]
[null,81,null,null,null,null,null,null,null,null,null,{"$f":"IF(Таблица6[[#This Row],[Дата замовлення]]=\"\",\"\",Таблица6[[#This Row],[Дата замовлення]]+Таблица6[[#This Row],[Рек. термін викон]])","v":""},null,null,{"$f":"IF(Таблица6[[#This Row],[% Заверш.]]=\"\",\"\",Таблица6[[#This Row],[% Заверш.]])","v":""}]
[null,82,null,null,null,null,null,null,null,null,null,{"$f":"IF(Таблица6[[#This Row],[Дата замовлення]]=\"\",\"\",Таблица6[[#This Row],[Дата замовлення]]+Таблица6[[#This Row],[Рек. термін викон]])","v":""},null,null,{"$f":"IF(Таблица6[[#This Row],[% Заверш.]]=\"\",\"\",Таблица6[[#This Row],[% Заверш.]])","v":""}]
[null,83,null,null,null,null,null,null,null,null,null,{"$f":"IF(Таблица6[[#This Row],[Дата замовлення]]=\"\",\"\",Таблица6[[#This Row],[Дата замовлення]]+Таблица6[[#This Row],[Рек. термін викон]])","v":""},null,null,{"$f":"IF(Таблица6[[#This Row],[% Заверш.]]=\"\",\"\",Таблица6[[#This Row],[% Заверш.]])","v":""}]
[null,84,null,null,null,null,null,null,null,null,null,{"$f":"IF(Таблица6[[#This Row],[Дата замовлення]]=\"\",\"\",Таблица6[[#This Row],[Дата замовлення]]+Таблица6[[#This Row],[Рек. термін викон]])","v":""},null,null,{"$f":"IF(Таблица6[[#This Row],[% Заверш.]]=\"\",\"\",Таблица6[[#This Row],[% Заверш.]])","v":""}]
[null,85,null,null,null,null,null,null,null,null,null,{"$f":"IF(Таблица6[[#This Row],[Дата замовлення]]=\"\",\"\",Таблица6[[#This Row],[Дата замовлення]]+Таблица6[[#This Row],[Рек. термін викон]])","v":""},null,null,{"$f":"IF(Таблица6[[#This Row],[% Заверш.]]=\"\",\"\",Таблица6[[#This Row],[% Заверш.]])","v":""}]
[null,86,null,null,null,null,null,null,null,null,null,{"$f":"IF(Таблица6[[#This Row],[Дата замовлення]]=\"\",\"\",Таблица6[[#This Row],[Дата замовлення]]+Таблица6[[#This Row],[Рек. термін викон]])","v":""},null,null,{"$f":"IF(Таблица6[[#This Row],[% Заверш.]]=\"\",\"\",Таблица6[[#This Row],[% Заверш.]])","v":""}]
[null,87,null,null,null,null,null,null,null,null,null,{"$f":"IF(Таблица6[[#This Row],[Дата замовлення]]=\"\",\"\",Таблица6[[#This Row],[Дата замовлення]]+Таблица6[[#This Row],[Рек. термін викон]])","v":""},null,null,{"$f":"IF(Таблица6[[#This Row],[% Заверш.]]=\"\",\"\",Таблица6[[#This Row],[% Заверш.]])","v":""}]
[null,88,null,null,null,null,null,null,null,null,null,{"$f":"IF(Таблица6[[#This Row],[Дата замовлення]]=\"\",\"\",Таблица6[[#This Row],[Дата замовлення]]+Таблица6[[#This Row],[Рек. термін викон]])","v":""},null,null,{"$f":"IF(Таблица6[[#This Row],[% Заверш.]]=\"\",\"\",Таблица6[[#This Row],[% Заверш.]])","v":""}]
[null,89,null,null,null,null,null,null,null,null,null,{"$f":"IF(Таблица6[[#This Row],[Дата замовлення]]=\"\",\"\",Таблица6[[#This Row],[Дата замовлення]]+Таблица6[[#This Row],[Рек. термін викон]])","v":""},null,null,{"$f":"IF(Таблица6[[#This Row],[% Заверш.]]=\"\",\"\",Таблица6[[#This Row],[% Заверш.]])","v":""}]
[null,90,null,null,null,null,null,null,null,null,null,{"$f":"IF(Таблица6[[#This Row],[Дата замовлення]]=\"\",\"\",Таблица6[[#This Row],[Дата замовлення]]+Таблица6[[#This Row],[Рек. термін викон]])","v":""},null,null,{"$f":"IF(Таблица6[[#This Row],[% Заверш.]]=\"\",\"\",Таблица6[[#This Row],[% Заверш.]])","v":""}]
[null,91,null,null,null,null,null,null,null,null,null,{"$f":"IF(Таблица6[[#This Row],[Дата замовлення]]=\"\",\"\",Таблица6[[#This Row],[Дата замовлення]]+Таблица6[[#This Row],[Рек. термін викон]])","v":""},null,null,{"$f":"IF(Таблица6[[#This Row],[% Заверш.]]=\"\",\"\",Таблица6[[#This Row],[% Заверш.]])","v":""}]
[null,92,null,null,null,null,null,null,null,null,null,{"$f":"IF(Таблица6[[#This Row],[Дата замовлення]]=\"\",\"\",Таблица6[[#This Row],[Дата замовлення]]+Таблица6[[#This Row],[Рек. термін викон]])","v":""},null,null,{"$f":"IF(Таблица6[[#This Row],[% Заверш.]]=\"\",\"\",Таблица6[[#This Row],[% Заверш.]])","v":""}]
[null,93,null,null,null,null,null,null,null,null,null,{"$f":"IF(Таблица6[[#This Row],[Дата замовлення]]=\"\",\"\",Таблица6[[#This Row],[Дата замовлення]]+Таблица6[[#This Row],[Рек. термін викон]])","v":""},null,null,{"$f":"IF(Таблица6[[#This Row],[% Заверш.]]=\"\",\"\",Таблица6[[#This Row],[% Заверш.]])","v":""}]
[null,94,null,null,null,null,null,null,null,null,null,{"$f":"IF(Таблица6[[#This Row],[Дата замовлення]]=\"\",\"\",Таблица6[[#This Row],[Дата замовлення]]+Таблица6[[#This Row],[Рек. термін викон]])","v":""},null,null,{"$f":"IF(Таблица6[[#This Row],[% Заверш.]]=\"\",\"\",Таблица6[[#This Row],[% Заверш.]])","v":""}]
[null,95,null,null,null,null,null,null,null,null,null,{"$f":"IF(Таблица6[[#This Row],[Дата замовлення]]=\"\",\"\",Таблица6[[#This Row],[Дата замовлення]]+Таблица6[[#This Row],[Рек. термін викон]])","v":""},null,null,{"$f":"IF(Таблица6[[#This Row],[% Заверш.]]=\"\",\"\",Таблица6[[#This Row],[% Заверш.]])","v":""}]
[null,96,null,null,null,null,null,null,null,null,null,{"$f":"IF(Таблица6[[#This Row],[Дата замовлення]]=\"\",\"\",Таблица6[[#This Row],[Дата замовлення]]+Таблица6[[#This Row],[Рек. термін викон]])","v":""},null,null,{"$f":"IF(Таблица6[[#This Row],[% Заверш.]]=\"\",\"\",Таблица6[[#This Row],[% Заверш.]])","v":""}]
[null,97,null,null,null,null,null,null,null,null,null,{"$f":"IF(Таблица6[[#This Row],[Дата замовлення]]=\"\",\"\",Таблица6[[#This Row],[Дата замовлення]]+Таблица6[[#This Row],[Рек. термін викон]])","v":""},null,null,{"$f":"IF(Таблица6[[#This Row],[% Заверш.]]=\"\",\"\",Таблица6[[#This Row],[% Заверш.]])","v":""}]
[null,98,null,null,null,null,null,null,null,null,null,{"$f":"IF(Таблица6[[#This Row],[Дата замовлення]]=\"\",\"\",Таблица6[[#This Row],[Дата замовлення]]+Таблица6[[#This Row],[Рек. термін викон]])","v":""},null,null,{"$f":"IF(Таблица6[[#This Row],[% Заверш.]]=\"\",\"\",Таблица6[[#This Row],[% Заверш.]])","v":""}]
[null,99,null,null,null,null,null,null,null,null,null,{"$f":"IF(Таблица6[[#This Row],[Дата замовлення]]=\"\",\"\",Таблица6[[#This Row],[Дата замовлення]]+Таблица6[[#This Row],[Рек. термін викон]])","v":""},null,null,{"$f":"IF(Таблица6[[#This Row],[% Заверш.]]=\"\",\"\",Таблица6[[#This Row],[% Заверш.]])","v":""}]
[null,100,null,null,null,null,null,null,null,null,null,{"$f":"IF(Таблица6[[#This Row],[Дата замовлення]]=\"\",\"\",Таблица6[[#This Row],[Дата замовлення]]+Таблица6[[#This Row],[Рек. термін викон]])","v":""},null,null,{"$f":"IF(Таблица6[[#This Row],[% Заверш.]]=\"\",\"\",Таблица6[[#This Row],[% Заверш.]])","v":""}]
[null,101,null,null,null,null,null,null,null,null,null,{"$f":"IF(Таблица6[[#This Row],[Дата замовлення]]=\"\",\"\",Таблица6[[#This Row],[Дата замовлення]]+Таблица6[[#This Row],[Рек. термін викон]])","v":""},null,null,{"$f":"IF(Таблица6[[#This Row],[% Заверш.]]=\"\",\"\",Таблица6[[#This Row],[% Заверш.]])","v":""}]
[null,102,null,null,null,null,null,null,null,null,null,{"$f":"IF(Таблица6[[#This Row],[Дата замовлення]]=\"\",\"\",Таблица6[[#This Row],[Дата замовлення]]+Таблица6[[#This Row],[Рек. термін викон]])","v":""},null,null,{"$f":"IF(Таблица6[[#This Row],[% Заверш.]]=\"\",\"\",Таблица6[[#This Row],[% Заверш.]])","v":""}]
[null,103,null,null,null,null,null,null,null,null,null,{"$f":"IF(Таблица6[[#This Row],[Дата замовлення]]=\"\",\"\",Таблица6[[#This Row],[Дата замовлення]]+Таблица6[[#This Row],[Рек. термін викон]])","v":""},null,null,{"$f":"IF(Таблица6[[#This Row],[% Заверш.]]=\"\",\"\",Таблица6[[#This Row],[% Заверш.]])","v":""}]
[null,104,null,null,null,null,null,null,null,null,null,{"$f":"IF(Таблица6[[#This Row],[Дата замовлення]]=\"\",\"\",Таблица6[[#This Row],[Дата замовлення]]+Таблица6[[#This Row],[Рек. термін викон]])","v":""},null,null,{"$f":"IF(Таблица6[[#This Row],[% Заверш.]]=\"\",\"\",Таблица6[[#This Row],[% Заверш.]])","v":""}]
[null,105,null,null,null,null,null,null,null,null,null,{"$f":"IF(Таблица6[[#This Row],[Дата замовлення]]=\"\",\"\",Таблица6[[#This Row],[Дата замовлення]]+Таблица6[[#This Row],[Рек. термін викон]])","v":""},null,null,{"$f":"IF(Таблица6[[#This Row],[% Заверш.]]=\"\",\"\",Таблица6[[#This Row],[% Заверш.]])","v":""}]
[null,106,null,null,null,null,null,null,null,null,null,{"$f":"IF(Таблица6[[#This Row],[Дата замовлення]]=\"\",\"\",Таблица6[[#This Row],[Дата замовлення]]+Таблица6[[#This Row],[Рек. термін викон]])","v":""},null,null,{"$f":"IF(Таблица6[[#This Row],[% Заверш.]]=\"\",\"\",Таблица6[[#This Row],[% Заверш.]])","v":""}]
[null,107,null,null,null,null,null,null,null,null,null,{"$f":"IF(Таблица6[[#This Row],[Дата замовлення]]=\"\",\"\",Таблица6[[#This Row],[Дата замовлення]]+Таблица6[[#This Row],[Рек. термін викон]])","v":""},null,null,{"$f":"IF(Таблица6[[#This Row],[% Заверш.]]=\"\",\"\",Таблица6[[#This Row],[% Заверш.]])","v":""}]
[null,108,null,null,null,null,null,null,null,null,null,{"$f":"IF(Таблица6[[#This Row],[Дата замовлення]]=\"\",\"\",Таблица6[[#This Row],[Дата замовлення]]+Таблица6[[#This Row],[Рек. термін викон]])","v":""},null,null,{"$f":"IF(Таблица6[[#This Row],[% Заверш.]]=\"\",\"\",Таблица6[[#This Row],[% Заверш.]])","v":""}]
[null,109,null,null,null,null,null,null,null,null,null,{"$f":"IF(Таблица6[[#This Row],[Дата замовлення]]=\"\",\"\",Таблица6[[#This Row],[Дата замовлення]]+Таблица6[[#This Row],[Рек. термін викон]])","v":""},null,null,{"$f":"IF(Таблица6[[#This Row],[% Заверш.]]=\"\",\"\",Таблица6[[#This Row],[% Заверш.]])","v":""}]
[null,110,null,null,null,null,null,null,null,null,null,{"$f":"IF(Таблица6[[#This Row],[Дата замовлення]]=\"\",\"\",Таблица6[[#This Row],[Дата замовлення]]+Таблица6[[#This Row],[Рек. термін викон]])","v":""},null,null,{"$f":"IF(Таблица6[[#This Row],[% Заверш.]]=\"\",\"\",Таблица6[[#This Row],[% Заверш.]])","v":""}]
[null,111,null,null,null,null,null,null,null,null,null,{"$f":"IF(Таблица6[[#This Row],[Дата замовлення]]=\"\",\"\",Таблица6[[#This Row],[Дата замовлення]]+Таблица6[[#This Row],[Рек. термін викон]])","v":""},null,null,{"$f":"IF(Таблица6[[#This Row],[% Заверш.]]=\"\",\"\",Таблица6[[#This Row],[% Заверш.]])","v":""}]
[null,112,null,null,null,null,null,null,null,null,null,{"$f":"IF(Таблица6[[#This Row],[Дата замовлення]]=\"\",\"\",Таблица6[[#This Row],[Дата замовлення]]+Таблица6[[#This Row],[Рек. термін викон]])","v":""},null,null,{"$f":"IF(Таблица6[[#This Row],[% Заверш.]]=\"\",\"\",Таблица6[[#This Row],[% Заверш.]])","v":""}]
[null,113,null,null,null,null,null,null,null,null,null,{"$f":"IF(Таблица6[[#This Row],[Дата замовлення]]=\"\",\"\",Таблица6[[#This Row],[Дата замовлення]]+Таблица6[[#This Row],[Рек. термін викон]])","v":""},null,null,{"$f":"IF(Таблица6[[#This Row],[% Заверш.]]=\"\",\"\",Таблица6[[#This Row],[% Заверш.]])","v":""}]
[null,114,null,null,null,null,null,null,null,null,null,{"$f":"IF(Таблица6[[#This Row],[Дата замовлення]]=\"\",\"\",Таблица6[[#This Row],[Дата замовлення]]+Таблица6[[#This Row],[Рек. термін викон]])","v":""},null,null,{"$f":"IF(Таблица6[[#This Row],[% Заверш.]]=\"\",\"\",Таблица6[[#This Row],[% Заверш.]])","v":""}]
[null,115,null,null,null,null,null,null,null,null,null,{"$f":"IF(Таблица6[[#This Row],[Дата замовлення]]=\"\",\"\",Таблица6[[#This Row],[Дата замовлення]]+Таблица6[[#This Row],[Рек. термін викон]])","v":""},null,null,{"$f":"IF(Таблица6[[#This Row],[% Заверш.]]=\"\",\"\",Таблица6[[#This Row],[% Заверш.]])","v":""}]
[null,116,null,null,null,null,null,null,null,null,null,{"$f":"IF(Таблица6[[#This Row],[Дата замовлення]]=\"\",\"\",Таблица6[[#This Row],[Дата замовлення]]+Таблица6[[#This Row],[Рек. термін викон]])","v":""},null,null,{"$f":"IF(Таблица6[[#This Row],[% Заверш.]]=\"\",\"\",Таблица6[[#This Row],[% Заверш.]])","v":""}]
[null,117,null,null,null,null,null,null,null,null,null,{"$f":"IF(Таблица6[[#This Row],[Дата замовлення]]=\"\",\"\",Таблица6[[#This Row],[Дата замовлення]]+Таблица6[[#This Row],[Рек. термін викон]])","v":""},null,null,{"$f":"IF(Таблица6[[#This Row],[% Заверш.]]=\"\",\"\",Таблица6[[#This Row],[% Заверш.]])","v":""}]
[null,118,null,null,null,null,null,null,null,null,null,{"$f":"IF(Таблица6[[#This Row],[Дата замовлення]]=\"\",\"\",Таблица6[[#This Row],[Дата замовлення]]+Таблица6[[#This Row],[Рек. термін викон]])","v":""},null,null,{"$f":"IF(Таблица6[[#This Row],[% Заверш.]]=\"\",\"\",Таблица6[[#This Row],[% Заверш.]])","v":""}]
[null,119,null,null,null,null,null,null,null,null,null,{"$f":"IF(Таблица6[[#This Row],[Дата замовлення]]=\"\",\"\",Таблица6[[#This Row],[Дата замовлення]]+Таблица6[[#This Row],[Рек. термін викон]])","v":""},null,null,{"$f":"IF(Таблица6[[#This Row],[% Заверш.]]=\"\",\"\",Таблица6[[#This Row],[% Заверш.]])","v":""}]
[null,120,null,null,null,null,null,null,null,null,null,{"$f":"IF(Таблица6[[#This Row],[Дата замовлення]]=\"\",\"\",Таблица6[[#This Row],[Дата замовлення]]+Таблица6[[#This Row],[Рек. термін викон]])","v":""},null,null,{"$f":"IF(Таблица6[[#This Row],[% Заверш.]]=\"\",\"\",Таблица6[[#This Row],[% Заверш.]])","v":""}]
[null,121,null,null,null,null,null,null,null,null,null,{"$f":"IF(Таблица6[[#This Row],[Дата замовлення]]=\"\",\"\",Таблица6[[#This Row],[Дата замовлення]]+Таблица6[[#This Row],[Рек. термін викон]])","v":""},null,null,{"$f":"IF(Таблица6[[#This Row],[% Заверш.]]=\"\",\"\",Таблица6[[#This Row],[% Заверш.]])","v":""}]
[null,122,null,null,null,null,null,null,null,null,null,{"$f":"IF(Таблица6[[#This Row],[Дата замовлення]]=\"\",\"\",Таблица6[[#This Row],[Дата замовлення]]+Таблица6[[#This Row],[Рек. термін викон]])","v":""},null,null,{"$f":"IF(Таблица6[[#This Row],[% Заверш.]]=\"\",\"\",Таблица6[[#This Row],[% Заверш.]])","v":""}]
[null,123,null,null,null,null,null,null,null,null,null,{"$f":"IF(Таблица6[[#This Row],[Дата замовлення]]=\"\",\"\",Таблица6[[#This Row],[Дата замовлення]]+Таблица6[[#This Row],[Рек. термін викон]])","v":""},null,null,{"$f":"IF(Таблица6[[#This Row],[% Заверш.]]=\"\",\"\",Таблица6[[#This Row],[% Заверш.]])","v":""}]
[null,124,null,null,null,null,null,null,null,null,null,{"$f":"IF(Таблица6[[#This Row],[Дата замовлення]]=\"\",\"\",Таблица6[[#This Row],[Дата замовлення]]+Таблица6[[#This Row],[Рек. термін викон]])","v":""},null,null,{"$f":"IF(Таблица6[[#This Row],[% Заверш.]]=\"\",\"\",Таблица6[[#This Row],[% Заверш.]])","v":""}]
[null,125,null,null,null,null,null,null,null,null,null,{"$f":"IF(Таблица6[[#This Row],[Дата замовлення]]=\"\",\"\",Таблица6[[#This Row],[Дата замовлення]]+Таблица6[[#This Row],[Рек. термін викон]])","v":""},null,null,{"$f":"IF(Таблица6[[#This Row],[% Заверш.]]=\"\",\"\",Таблица6[[#This Row],[% Заверш.]])","v":""}]
[null,126,null,null,null,null,null,null,null,null,null,{"$f":"IF(Таблица6[[#This Row],[Дата замовлення]]=\"\",\"\",Таблица6[[#This Row],[Дата замовлення]]+Таблица6[[#This Row],[Рек. термін викон]])","v":""},null,null,{"$f":"IF(Таблица6[[#This Row],[% Заверш.]]=\"\",\"\",Таблица6[[#This Row],[% Заверш.]])","v":""}]
[null,127,null,null,null,null,null,null,null,null,null,{"$f":"IF(Таблица6[[#This Row],[Дата замовлення]]=\"\",\"\",Таблица6[[#This Row],[Дата замовлення]]+Таблица6[[#This Row],[Рек. термін викон]])","v":""},null,null,{"$f":"IF(Таблица6[[#This Row],[% Заверш.]]=\"\",\"\",Таблица6[[#This Row],[% Заверш.]])","v":""}]
[null,128,null,null,null,null,null,null,null,null,null,{"$f":"IF(Таблица6[[#This Row],[Дата замовлення]]=\"\",\"\",Таблица6[[#This Row],[Дата замовлення]]+Таблица6[[#This Row],[Рек. термін викон]])","v":""},null,null,{"$f":"IF(Таблица6[[#This Row],[% Заверш.]]=\"\",\"\",Таблица6[[#This Row],[% Заверш.]])","v":""}]
[null,129,null,null,null,null,null,null,null,null,null,{"$f":"IF(Таблица6[[#This Row],[Дата замовлення]]=\"\",\"\",Таблица6[[#This Row],[Дата замовлення]]+Таблица6[[#This Row],[Рек. термін викон]])","v":""},null,null,{"$f":"IF(Таблица6[[#This Row],[% Заверш.]]=\"\",\"\",Таблица6[[#This Row],[% Заверш.]])","v":""}]
[null,130,null,null,null,null,null,null,null,null,null,{"$f":"IF(Таблица6[[#This Row],[Дата замовлення]]=\"\",\"\",Таблица6[[#This Row],[Дата замовлення]]+Таблица6[[#This Row],[Рек. термін викон]])","v":""},null,null,{"$f":"IF(Таблица6[[#This Row],[% Заверш.]]=\"\",\"\",Таблица6[[#This Row],[% Заверш.]])","v":""}]
[null,131,null,null,null,null,null,null,null,null,null,{"$f":"IF(Таблица6[[#This Row],[Дата замовлення]]=\"\",\"\",Таблица6[[#This Row],[Дата замовлення]]+Таблица6[[#This Row],[Рек. термін викон]])","v":""},null,null,{"$f":"IF(Таблица6[[#This Row],[% Заверш.]]=\"\",\"\",Таблица6[[#This Row],[% Заверш.]])","v":""}]
[null,132,null,null,null,null,null,null,null,null,null,{"$f":"IF(Таблица6[[#This Row],[Дата замовлення]]=\"\",\"\",Таблица6[[#This Row],[Дата замовлення]]+Таблица6[[#This Row],[Рек. термін викон]])","v":""},null,null,{"$f":"IF(Таблица6[[#This Row],[% Заверш.]]=\"\",\"\",Таблица6[[#This Row],[% Заверш.]])","v":""}]
[null,133,null,null,null,null,null,null,null,null,null,{"$f":"IF(Таблица6[[#This Row],[Дата замовлення]]=\"\",\"\",Таблица6[[#This Row],[Дата замовлення]]+Таблица6[[#This Row],[Рек. термін викон]])","v":""},null,null,{"$f":"IF(Таблица6[[#This Row],[% Заверш.]]=\"\",\"\",Таблица6[[#This Row],[% Заверш.]])","v":""}]
[null,134,null,null,null,null,null,null,null,null,null,{"$f":"IF(Таблица6[[#This Row],[Дата замовлення]]=\"\",\"\",Таблица6[[#This Row],[Дата замовлення]]+Таблица6[[#This Row],[Рек. термін викон]])","v":""},null,null,{"$f":"IF(Таблица6[[#This Row],[% Заверш.]]=\"\",\"\",Таблица6[[#This Row],[% Заверш.]])","v":""}]
[null,135,null,null,null,null,null,null,null,null,null,{"$f":"IF(Таблица6[[#This Row],[Дата замовлення]]=\"\",\"\",Таблица6[[#This Row],[Дата замовлення]]+Таблица6[[#This Row],[Рек. термін викон]])","v":""},null,null,{"$f":"IF(Таблица6[[#This Row],[% Заверш.]]=\"\",\"\",Таблица6[[#This Row],[% Заверш.]])","v":""}]
[null,136,null,null,null,null,null,null,null,null,null,{"$f":"IF(Таблица6[[#This Row],[Дата замовлення]]=\"\",\"\",Таблица6[[#This Row],[Дата замовлення]]+Таблица6[[#This Row],[Рек. термін викон]])","v":""},null,null,{"$f":"IF(Таблица6[[#This Row],[% Заверш.]]=\"\",\"\",Таблица6[[#This Row],[% Заверш.]])","v":""}]
[null,137,null,null,null,null,null,null,null,null,null,{"$f":"IF(Таблица6[[#This Row],[Дата замовлення]]=\"\",\"\",Таблица6[[#This Row],[Дата замовлення]]+Таблица6[[#This Row],[Рек. термін викон]])","v":""},null,null,{"$f":"IF(Таблица6[[#This Row],[% Заверш.]]=\"\",\"\",Таблица6[[#This Row],[% Заверш.]])","v":""}]
[null,138,null,null,null,null,null,null,null,null,null,{"$f":"IF(Таблица6[[#This Row],[Дата замовлення]]=\"\",\"\",Таблица6[[#This Row],[Дата замовлення]]+Таблица6[[#This Row],[Рек. термін викон]])","v":""},null,null,{"$f":"IF(Таблица6[[#This Row],[% Заверш.]]=\"\",\"\",Таблица6[[#This Row],[% Заверш.]])","v":""}]
[null,139,null,null,null,null,null,null,null,null,null,{"$f":"IF(Таблица6[[#This Row],[Дата замовлення]]=\"\",\"\",Таблица6[[#This Row],[Дата замовлення]]+Таблица6[[#This Row],[Рек. термін викон]])","v":""},null,null,{"$f":"IF(Таблица6[[#This Row],[% Заверш.]]=\"\",\"\",Таблица6[[#This Row],[% Заверш.]])","v":""}]
[null,140,null,null,null,null,null,null,null,null,null,{"$f":"IF(Таблица6[[#This Row],[Дата замовлення]]=\"\",\"\",Таблица6[[#This Row],[Дата замовлення]]+Таблица6[[#This Row],[Рек. термін викон]])","v":""},null,null,{"$f":"IF(Таблица6[[#This Row],[% Заверш.]]=\"\",\"\",Таблица6[[#This Row],[% Заверш.]])","v":""}]
[null,141,null,null,null,null,null,null,null,null,null,{"$f":"IF(Таблица6[[#This Row],[Дата замовлення]]=\"\",\"\",Таблица6[[#This Row],[Дата замовлення]]+Таблица6[[#This Row],[Рек. термін викон]])","v":""},null,null,{"$f":"IF(Таблица6[[#This Row],[% Заверш.]]=\"\",\"\",Таблица6[[#This Row],[% Заверш.]])","v":""}]
[null,142,null,null,null,null,null,null,null,null,null,{"$f":"IF(Таблица6[[#This Row],[Дата замовлення]]=\"\",\"\",Таблица6[[#This Row],[Дата замовлення]]+Таблица6[[#This Row],[Рек. термін викон]])","v":""},null,null,{"$f":"IF(Таблица6[[#This Row],[% Заверш.]]=\"\",\"\",Таблица6[[#This Row],[% Заверш.]])","v":""}]
[null,143,null,null,null,null,null,null,null,null,null,{"$f":"IF(Таблица6[[#This Row],[Дата замовлення]]=\"\",\"\",Таблица6[[#This Row],[Дата замовлення]]+Таблица6[[#This Row],[Рек. термін викон]])","v":""},null,null,{"$f":"IF(Таблица6[[#This Row],[% Заверш.]]=\"\",\"\",Таблица6[[#This Row],[% Заверш.]])","v":""}]
[null,144,null,null,null,null,null,null,null,null,null,{"$f":"IF(Таблица6[[#This Row],[Дата замовлення]]=\"\",\"\",Таблица6[[#This Row],[Дата замовлення]]+Таблица6[[#This Row],[Рек. термін викон]])","v":""},null,null,{"$f":"IF(Таблица6[[#This Row],[% Заверш.]]=\"\",\"\",Таблица6[[#This Row],[% Заверш.]])","v":""}]
[null,145,null,null,null,null,null,null,null,null,null,{"$f":"IF(Таблица6[[#This Row],[Дата замовлення]]=\"\",\"\",Таблица6[[#This Row],[Дата замовлення]]+Таблица6[[#This Row],[Рек. термін викон]])","v":""},null,null,{"$f":"IF(Таблица6[[#This Row],[% Заверш.]]=\"\",\"\",Таблица6[[#This Row],[% Заверш.]])","v":""}]
[null,146,null,null,null,null,null,null,null,null,null,{"$f":"IF(Таблица6[[#This Row],[Дата замовлення]]=\"\",\"\",Таблица6[[#This Row],[Дата замовлення]]+Таблица6[[#This Row],[Рек. термін викон]])","v":""},null,null,{"$f":"IF(Таблица6[[#This Row],[% Заверш.]]=\"\",\"\",Таблица6[[#This Row],[% Заверш.]])","v":""}]
[null,147,null,null,null,null,null,null,null,null,null,{"$f":"IF(Таблица6[[#This Row],[Дата замовлення]]=\"\",\"\",Таблица6[[#This Row],[Дата замовлення]]+Таблица6[[#This Row],[Рек. термін викон]])","v":""},null,null,{"$f":"IF(Таблица6[[#This Row],[% Заверш.]]=\"\",\"\",Таблица6[[#This Row],[% Заверш.]])","v":""}]
[null,148,null,null,null,null,null,null,null,null,null,{"$f":"IF(Таблица6[[#This Row],[Дата замовлення]]=\"\",\"\",Таблица6[[#This Row],[Дата замовлення]]+Таблица6[[#This Row],[Рек. термін викон]])","v":""},null,null,{"$f":"IF(Таблица6[[#This Row],[% Заверш.]]=\"\",\"\",Таблица6[[#This Row],[% Заверш.]])","v":""}]
[null,149,null,null,null,null,null,null,null,null,null,{"$f":"IF(Таблица6[[#This Row],[Дата замовлення]]=\"\",\"\",Таблица6[[#This Row],[Дата замовлення]]+Таблица6[[#This Row],[Рек. термін викон]])","v":""},null,null,{"$f":"IF(Таблица6[[#This Row],[% Заверш.]]=\"\",\"\",Таблица6[[#This Row],[% Заверш.]])","v":""}]
[null,150,null,null,null,null,null,null,null,null,null,{"$f":"IF(Таблица6[[#This Row],[Дата замовлення]]=\"\",\"\",Таблица6[[#This Row],[Дата замовлення]]+Таблица6[[#This Row],[Рек. термін викон]])","v":""},null,null,{"$f":"IF(Таблица6[[#This Row],[% Заверш.]]=\"\",\"\",Таблица6[[#This Row],[% Заверш.]])","v":""}]
[null,151,null,null,null,null,null,null,null,null,null,{"$f":"IF(Таблица6[[#This Row],[Дата замовлення]]=\"\",\"\",Таблица6[[#This Row],[Дата замовлення]]+Таблица6[[#This Row],[Рек. термін викон]])","v":""},null,null,{"$f":"IF(Таблица6[[#This Row],[% Заверш.]]=\"\",\"\",Таблица6[[#This Row],[% Заверш.]])","v":""}]
[null,152,null,null,null,null,null,null,null,null,null,{"$f":"IF(Таблица6[[#This Row],[Дата замовлення]]=\"\",\"\",Таблица6[[#This Row],[Дата замовлення]]+Таблица6[[#This Row],[Рек. термін викон]])","v":""},null,null,{"$f":"IF(Таблица6[[#This Row],[% Заверш.]]=\"\",\"\",Таблица6[[#This Row],[% Заверш.]])","v":""}]
[null,153,null,null,null,null,null,null,null,null,null,{"$f":"IF(Таблица6[[#This Row],[Дата замовлення]]=\"\",\"\",Таблица6[[#This Row],[Дата замовлення]]+Таблица6[[#This Row],[Рек. термін викон]])","v":""},null,null,{"$f":"IF(Таблица6[[#This Row],[% Заверш.]]=\"\",\"\",Таблица6[[#This Row],[% Заверш.]])","v":""}]
[null,154,null,null,null,null,null,null,null,null,null,{"$f":"IF(Таблица6[[#This Row],[Дата замовлення]]=\"\",\"\",Таблица6[[#This Row],[Дата замовлення]]+Таблица6[[#This Row],[Рек. термін викон]])","v":""},null,null,{"$f":"IF(Таблица6[[#This Row],[% Заверш.]]=\"\",\"\",Таблица6[[#This Row],[% Заверш.]])","v":""}]
[null,155,null,null,null,null,null,null,null,null,null,{"$f":"IF(Таблица6[[#This Row],[Дата замовлення]]=\"\",\"\",Таблица6[[#This Row],[Дата замовлення]]+Таблица6[[#This Row],[Рек. термін викон]])","v":""},null,null,{"$f":"IF(Таблица6[[#This Row],[% Заверш.]]=\"\",\"\",Таблица6[[#This Row],[% Заверш.]])","v":""}]
[null,156,null,null,null,null,null,null,null,null,null,{"$f":"IF(Таблица6[[#This Row],[Дата замовлення]]=\"\",\"\",Таблица6[[#This Row],[Дата замовлення]]+Таблица6[[#This Row],[Рек. термін викон]])","v":""},null,null,{"$f":"IF(Таблица6[[#This Row],[% Заверш.]]=\"\",\"\",Таблица6[[#This Row],[% Заверш.]])","v":""}]
[null,157,null,null,null,null,null,null,null,null,null,{"$f":"IF(Таблица6[[#This Row],[Дата замовлення]]=\"\",\"\",Таблица6[[#This Row],[Дата замовлення]]+Таблица6[[#This Row],[Рек. термін викон]])","v":""},null,null,{"$f":"IF(Таблица6[[#This Row],[% Заверш.]]=\"\",\"\",Таблица6[[#This Row],[% Заверш.]])","v":""}]
[null,158,null,null,null,null,null,null,null,null,null,{"$f":"IF(Таблица6[[#This Row],[Дата замовлення]]=\"\",\"\",Таблица6[[#This Row],[Дата замовлення]]+Таблица6[[#This Row],[Рек. термін викон]])","v":""},null,null,{"$f":"IF(Таблица6[[#This Row],[% Заверш.]]=\"\",\"\",Таблица6[[#This Row],[% Заверш.]])","v":""}]
[null,159,null,null,null,null,null,null,null,null,null,{"$f":"IF(Таблица6[[#This Row],[Дата замовлення]]=\"\",\"\",Таблица6[[#This Row],[Дата замовлення]]+Таблица6[[#This Row],[Рек. термін викон]])","v":""},null,null,{"$f":"IF(Таблица6[[#This Row],[% Заверш.]]=\"\",\"\",Таблица6[[#This Row],[% Заверш.]])","v":""}]
[null,160,null,null,null,null,null,null,null,null,null,{"$f":"IF(Таблица6[[#This Row],[Дата замовлення]]=\"\",\"\",Таблица6[[#This Row],[Дата замовлення]]+Таблица6[[#This Row],[Рек. термін викон]])","v":""},null,null,{"$f":"IF(Таблица6[[#This Row],[% Заверш.]]=\"\",\"\",Таблица6[[#This Row],[% Заверш.]])","v":""}]
[null,161,null,null,null,null,null,null,null,null,null,{"$f":"IF(Таблица6[[#This Row],[Дата замовлення]]=\"\",\"\",Таблица6[[#This Row],[Дата замовлення]]+Таблица6[[#This Row],[Рек. термін викон]])","v":""},null,null,{"$f":"IF(Таблица6[[#This Row],[% Заверш.]]=\"\",\"\",Таблица6[[#This Row],[% Заверш.]])","v":""}]
[null,162,null,null,null,null,null,null,null,null,null,{"$f":"IF(Таблица6[[#This Row],[Дата замовлення]]=\"\",\"\",Таблица6[[#This Row],[Дата замовлення]]+Таблица6[[#This Row],[Рек. термін викон]])","v":""},null,null,{"$f":"IF(Таблица6[[#This Row],[% Заверш.]]=\"\",\"\",Таблица6[[#This Row],[% Заверш.]])","v":""}]
[null,163,null,null,null,null,null,null,null,null,null,{"$f":"IF(Таблица6[[#This Row],[Дата замовлення]]=\"\",\"\",Таблица6[[#This Row],[Дата замовлення]]+Таблица6[[#This Row],[Рек. термін викон]])","v":""},null,null,{"$f":"IF(Таблица6[[#This Row],[% Заверш.]]=\"\",\"\",Таблица6[[#This Row],[% Заверш.]])","v":""}]
[null,164,null,null,null,null,null,null,null,null,null,{"$f":"IF(Таблица6[[#This Row],[Дата замовлення]]=\"\",\"\",Таблица6[[#This Row],[Дата замовлення]]+Таблица6[[#This Row],[Рек. термін викон]])","v":""},null,null,{"$f":"IF(Таблица6[[#This Row],[% Заверш.]]=\"\",\"\",Таблица6[[#This Row],[% Заверш.]])","v":""}]
[null,165,null,null,null,null,null,null,null,null,null,{"$f":"IF(Таблица6[[#This Row],[Дата замовлення]]=\"\",\"\",Таблица6[[#This Row],[Дата замовлення]]+Таблица6[[#This Row],[Рек. термін викон]])","v":""},null,null,{"$f":"IF(Таблица6[[#This Row],[% Заверш.]]=\"\",\"\",Таблица6[[#This Row],[% Заверш.]])","v":""}]
[null,166,null,null,null,null,null,null,null,null,null,{"$f":"IF(Таблица6[[#This Row],[Дата замовлення]]=\"\",\"\",Таблица6[[#This Row],[Дата замовлення]]+Таблица6[[#This Row],[Рек. термін викон]])","v":""},null,null,{"$f":"IF(Таблица6[[#This Row],[% Заверш.]]=\"\",\"\",Таблица6[[#This Row],[% Заверш.]])","v":""}]
[null,167,null,null,null,null,null,null,null,null,null,{"$f":"IF(Таблица6[[#This Row],[Дата замовлення]]=\"\",\"\",Таблица6[[#This Row],[Дата замовлення]]+Таблица6[[#This Row],[Рек. термін викон]])","v":""},null,null,{"$f":"IF(Таблица6[[#This Row],[% Заверш.]]=\"\",\"\",Таблица6[[#This Row],[% Заверш.]])","v":""}]
[null,168,null,null,null,null,null,null,null,null,null,{"$f":"IF(Таблица6[[#This Row],[Дата замовлення]]=\"\",\"\",Таблица6[[#This Row],[Дата замовлення]]+Таблица6[[#This Row],[Рек. термін викон]])","v":""},null,null,{"$f":"IF(Таблица6[[#This Row],[% Заверш.]]=\"\",\"\",Таблица6[[#This Row],[% Заверш.]])","v":""}]
[null,169,null,null,null,null,null,null,null,null,null,{"$f":"IF(Таблица6[[#This Row],[Дата замовлення]]=\"\",\"\",Таблица6[[#This Row],[Дата замовлення]]+Таблица6[[#This Row],[Рек. термін викон]])","v":""},null,null,{"$f":"IF(Таблица6[[#This Row],[% Заверш.]]=\"\",\"\",Таблица6[[#This Row],[% Заверш.]])","v":""}]
[null,170,null,null,null,null,null,null,null,null,null,{"$f":"IF(Таблица6[[#This Row],[Дата замовлення]]=\"\",\"\",Таблица6[[#This Row],[Дата замовлення]]+Таблица6[[#This Row],[Рек. термін викон]])","v":""},null,null,{"$f":"IF(Таблица6[[#This Row],[% Заверш.]]=\"\",\"\",Таблица6[[#This Row],[% Заверш.]])","v":""}]
[null,171,null,null,null,null,null,null,null,null,null,{"$f":"IF(Таблица6[[#This Row],[Дата замовлення]]=\"\",\"\",Таблица6[[#This Row],[Дата замовлення]]+Таблица6[[#This Row],[Рек. термін викон]])","v":""},null,null,{"$f":"IF(Таблица6[[#This Row],[% Заверш.]]=\"\",\"\",Таблица6[[#This Row],[% Заверш.]])","v":""}]
[null,172,null,null,null,null,null,null,null,null,null,{"$f":"IF(Таблица6[[#This Row],[Дата замовлення]]=\"\",\"\",Таблица6[[#This Row],[Дата замовлення]]+Таблица6[[#This Row],[Рек. термін викон]])","v":""},null,null,{"$f":"IF(Таблица6[[#This Row],[% Заверш.]]=\"\",\"\",Таблица6[[#This Row],[% Заверш.]])","v":""}]
[null,173,null,null,null,null,null,null,null,null,null,{"$f":"IF(Таблица6[[#This Row],[Дата замовлення]]=\"\",\"\",Таблица6[[#This Row],[Дата замовлення]]+Таблица6[[#This Row],[Рек. термін викон]])","v":""},null,null,{"$f":"IF(Таблица6[[#This Row],[% Заверш.]]=\"\",\"\",Таблица6[[#This Row],[% Заверш.]])","v":""}]
[null,174,null,null,null,null,null,null,null,null,null,{"$f":"IF(Таблица6[[#This Row],[Дата замовлення]]=\"\",\"\",Таблица6[[#This Row],[Дата замовлення]]+Таблица6[[#This Row],[Рек. термін викон]])","v":""},null,null,{"$f":"IF(Таблица6[[#This Row],[% Заверш.]]=\"\",\"\",Таблица6[[#This Row],[% Заверш.]])","v":""}]
[null,175,null,null,null,null,null,null,null,null,null,{"$f":"IF(Таблица6[[#This Row],[Дата замовлення]]=\"\",\"\",Таблица6[[#This Row],[Дата замовлення]]+Таблица6[[#This Row],[Рек. термін викон]])","v":""},null,null,{"$f":"IF(Таблица6[[#This Row],[% Заверш.]]=\"\",\"\",Таблица6[[#This Row],[% Заверш.]])","v":""}]
[null,176,null,null,null,null,null,null,null,null,null,{"$f":"IF(Таблица6[[#This Row],[Дата замовлення]]=\"\",\"\",Таблица6[[#This Row],[Дата замовлення]]+Таблица6[[#This Row],[Рек. термін викон]])","v":""},null,null,{"$f":"IF(Таблица6[[#This Row],[% Заверш.]]=\"\",\"\",Таблица6[[#This Row],[% Заверш.]])","v":""}]
[null,177,null,null,null,null,null,null,null,null,null,{"$f":"IF(Таблица6[[#This Row],[Дата замовлення]]=\"\",\"\",Таблица6[[#This Row],[Дата замовлення]]+Таблица6[[#This Row],[Рек. термін викон]])","v":""},null,null,{"$f":"IF(Таблица6[[#This Row],[% Заверш.]]=\"\",\"\",Таблица6[[#This Row],[% Заверш.]])","v":""}]
[null,178,null,null,null,null,null,null,null,null,null,{"$f":"IF(Таблица6[[#This Row],[Дата замовлення]]=\"\",\"\",Таблица6[[#This Row],[Дата замовлення]]+Таблица6[[#This Row],[Рек. термін викон]])","v":""},null,null,{"$f":"IF(Таблица6[[#This Row],[% Заверш.]]=\"\",\"\",Таблица6[[#This Row],[% Заверш.]])","v":""}]
[null,179,null,null,null,null,null,null,null,null,null,{"$f":"IF(Таблица6[[#This Row],[Дата замовлення]]=\"\",\"\",Таблица6[[#This Row],[Дата замовлення]]+Таблица6[[#This Row],[Рек. термін викон]])","v":""},null,null,{"$f":"IF(Таблица6[[#This Row],[% Заверш.]]=\"\",\"\",Таблица6[[#This Row],[% Заверш.]])","v":""}]
[null,180,null,null,null,null,null,null,null,null,null,{"$f":"IF(Таблица6[[#This Row],[Дата замовлення]]=\"\",\"\",Таблица6[[#This Row],[Дата замовлення]]+Таблица6[[#This Row],[Рек. термін викон]])","v":""},null,null,{"$f":"IF(Таблица6[[#This Row],[% Заверш.]]=\"\",\"\",Таблица6[[#This Row],[% Заверш.]])","v":""}]
[null,181,null,null,null,null,null,null,null,null,null,{"$f":"IF(Таблица6[[#This Row],[Дата замовлення]]=\"\",\"\",Таблица6[[#This Row],[Дата замовлення]]+Таблица6[[#This Row],[Рек. термін викон]])","v":""},null,null,{"$f":"IF(Таблица6[[#This Row],[% Заверш.]]=\"\",\"\",Таблица6[[#This Row],[% Заверш.]])","v":""}]
[null,182,null,null,null,null,null,null,null,null,null,{"$f":"IF(Таблица6[[#This Row],[Дата замовлення]]=\"\",\"\",Таблица6[[#This Row],[Дата замовлення]]+Таблица6[[#This Row],[Рек. термін викон]])","v":""},null,null,{"$f":"IF(Таблица6[[#This Row],[% Заверш.]]=\"\",\"\",Таблица6[[#This Row],[% Заверш.]])","v":""}]
[null,183,null,null,null,null,null,null,null,null,null,{"$f":"IF(Таблица6[[#This Row],[Дата замовлення]]=\"\",\"\",Таблица6[[#This Row],[Дата замовлення]]+Таблица6[[#This Row],[Рек. термін викон]])","v":""},null,null,{"$f":"IF(Таблица6[[#This Row],[% Заверш.]]=\"\",\"\",Таблица6[[#This Row],[% Заверш.]])","v":""}]
[null,184,null,null,null,null,null,null,null,null,null,{"$f":"IF(Таблица6[[#This Row],[Дата замовлення]]=\"\",\"\",Таблица6[[#This Row],[Дата замовлення]]+Таблица6[[#This Row],[Рек. термін викон]])","v":""},null,null,{"$f":"IF(Таблица6[[#This Row],[% Заверш.]]=\"\",\"\",Таблица6[[#This Row],[% Заверш.]])","v":""}]
[null,185,null,null,null,null,null,null,null,null,null,{"$f":"IF(Таблица6[[#This Row],[Дата замовлення]]=\"\",\"\",Таблица6[[#This Row],[Дата замовлення]]+Таблица6[[#This Row],[Рек. термін викон]])","v":""},null,null,{"$f":"IF(Таблица6[[#This Row],[% Заверш.]]=\"\",\"\",Таблица6[[#This Row],[% Заверш.]])","v":""}]
[null,186,null,null,null,null,null,null,null,null,null,{"$f":"IF(Таблица6[[#This Row],[Дата замовлення]]=\"\",\"\",Таблица6[[#This Row],[Дата замовлення]]+Таблица6[[#This Row],[Рек. термін викон]])","v":""},null,null,{"$f":"IF(Таблица6[[#This Row],[% Заверш.]]=\"\",\"\",Таблица6[[#This Row],[% Заверш.]])","v":""}]
[null,187,null,null,null,null,null,null,null,null,null,{"$f":"IF(Таблица6[[#This Row],[Дата замовлення]]=\"\",\"\",Таблица6[[#This Row],[Дата замовлення]]+Таблица6[[#This Row],[Рек. термін викон]])","v":""},null,null,{"$f":"IF(Таблица6[[#This Row],[% Заверш.]]=\"\",\"\",Таблица6[[#This Row],[% Заверш.]])","v":""}]
[null,188,null,null,null,null,null,null,null,null,null,{"$f":"IF(Таблица6[[#This Row],[Дата замовлення]]=\"\",\"\",Таблица6[[#This Row],[Дата замовлення]]+Таблица6[[#This Row],[Рек. термін викон]])","v":""},null,null,{"$f":"IF(Таблица6[[#This Row],[% Заверш.]]=\"\",\"\",Таблица6[[#This Row],[% Заверш.]])","v":""}]
[null,189,null,null,null,null,null,null,null,null,null,{"$f":"IF(Таблица6[[#This Row],[Дата замовлення]]=\"\",\"\",Таблица6[[#This Row],[Дата замовлення]]+Таблица6[[#This Row],[Рек. термін викон]])","v":""},null,null,{"$f":"IF(Таблица6[[#This Row],[% Заверш.]]=\"\",\"\",Таблица6[[#This Row],[% Заверш.]])","v":""}]
[null,190,null,null,null,null,null,null,null,null,null,{"$f":"IF(Таблица6[[#This Row],[Дата замовлення]]=\"\",\"\",Таблица6[[#This Row],[Дата замовлення]]+Таблица6[[#This Row],[Рек. термін викон]])","v":""},null,null,{"$f":"IF(Таблица6[[#This Row],[% Заверш.]]=\"\",\"\",Таблица6[[#This Row],[% Заверш.]])","v":""}]
[null,191,null,null,null,null,null,null,null,null,null,{"$f":"IF(Таблица6[[#This Row],[Дата замовлення]]=\"\",\"\",Таблица6[[#This Row],[Дата замовлення]]+Таблица6[[#This Row],[Рек. термін викон]])","v":""},null,null,{"$f":"IF(Таблица6[[#This Row],[% Заверш.]]=\"\",\"\",Таблица6[[#This Row],[% Заверш.]])","v":""}]
[null,192,null,null,null,null,null,null,null,null,null,{"$f":"IF(Таблица6[[#This Row],[Дата замовлення]]=\"\",\"\",Таблица6[[#This Row],[Дата замовлення]]+Таблица6[[#This Row],[Рек. термін викон]])","v":""},null,null,{"$f":"IF(Таблица6[[#This Row],[% Заверш.]]=\"\",\"\",Таблица6[[#This Row],[% Заверш.]])","v":""}]
[null,193,null,null,null,null,null,null,null,null,null,{"$f":"IF(Таблица6[[#This Row],[Дата замовлення]]=\"\",\"\",Таблица6[[#This Row],[Дата замовлення]]+Таблица6[[#This Row],[Рек. термін викон]])","v":""},null,null,{"$f":"IF(Таблица6[[#This Row],[% Заверш.]]=\"\",\"\",Таблица6[[#This Row],[% Заверш.]])","v":""}]
[null,194,null,null,null,null,null,null,null,null,null,{"$f":"IF(Таблица6[[#This Row],[Дата замовлення]]=\"\",\"\",Таблица6[[#This Row],[Дата замовлення]]+Таблица6[[#This Row],[Рек. термін викон]])","v":""},null,null,{"$f":"IF(Таблица6[[#This Row],[% Заверш.]]=\"\",\"\",Таблица6[[#This Row],[% Заверш.]])","v":""}]
[null,195,null,null,null,null,null,null,null,null,null,{"$f":"IF(Таблица6[[#This Row],[Дата замовлення]]=\"\",\"\",Таблица6[[#This Row],[Дата замовлення]]+Таблица6[[#This Row],[Рек. термін викон]])","v":""},null,null,{"$f":"IF(Таблица6[[#This Row],[% Заверш.]]=\"\",\"\",Таблица6[[#This Row],[% Заверш.]])","v":""}]
[null,196,null,null,null,null,null,null,null,null,null,{"$f":"IF(Таблица6[[#This Row],[Дата замовлення]]=\"\",\"\",Таблица6[[#This Row],[Дата замовлення]]+Таблица6[[#This Row],[Рек. термін викон]])","v":""},null,null,{"$f":"IF(Таблица6[[#This Row],[% Заверш.]]=\"\",\"\",Таблица6[[#This Row],[% Заверш.]])","v":""}]
[null,197,null,null,null,null,null,null,null,null,null,{"$f":"IF(Таблица6[[#This Row],[Дата замовлення]]=\"\",\"\",Таблица6[[#This Row],[Дата замовлення]]+Таблица6[[#This Row],[Рек. термін викон]])","v":""},null,null,{"$f":"IF(Таблица6[[#This Row],[% Заверш.]]=\"\",\"\",Таблица6[[#This Row],[% Заверш.]])","v":""}]
[null,198,null,null,null,null,null,null,null,null,null,{"$f":"IF(Таблица6[[#This Row],[Дата замовлення]]=\"\",\"\",Таблица6[[#This Row],[Дата замовлення]]+Таблица6[[#This Row],[Рек. термін викон]])","v":""},null,null,{"$f":"IF(Таблица6[[#This Row],[% Заверш.]]=\"\",\"\",Таблица6[[#This Row],[% Заверш.]])","v":""}]
[null,199,null,null,null,null,null,null,null,null,null,{"$f":"IF(Таблица6[[#This Row],[Дата замовлення]]=\"\",\"\",Таблица6[[#This Row],[Дата замовлення]]+Таблица6[[#This Row],[Рек. термін викон]])","v":""},null,null,{"$f":"IF(Таблица6[[#This Row],[% Заверш.]]=\"\",\"\",Таблица6[[#This Row],[% Заверш.]])","v":""}]
[null,200,null,null,null,null,null,null,null,null,null,{"$f":"IF(Таблица6[[#This Row],[Дата замовлення]]=\"\",\"\",Таблица6[[#This Row],[Дата замовлення]]+Таблица6[[#This Row],[Рек. термін викон]])","v":""},null,null,{"$f":"IF(Таблица6[[#This Row],[% Заверш.]]=\"\",\"\",Таблица6[[#This Row],[% Заверш.]])","v":""}]
[null,201,null,null,null,null,null,null,null,null,null,{"$f":"IF(Таблица6[[#This Row],[Дата замовлення]]=\"\",\"\",Таблица6[[#This Row],[Дата замовлення]]+Таблица6[[#This Row],[Рек. термін викон]])","v":""},null,null,{"$f":"IF(Таблица6[[#This Row],[% Заверш.]]=\"\",\"\",Таблица6[[#This Row],[% Заверш.]])","v":""}]
[null,202,null,null,null,null,null,null,null,null,null,{"$f":"IF(Таблица6[[#This Row],[Дата замовлення]]=\"\",\"\",Таблица6[[#This Row],[Дата замовлення]]+Таблица6[[#This Row],[Рек. термін викон]])","v":""},null,null,{"$f":"IF(Таблица6[[#This Row],[% Заверш.]]=\"\",\"\",Таблица6[[#This Row],[% Заверш.]])","v":""}]
[null,203,null,null,null,null,null,null,null,null,null,{"$f":"IF(Таблица6[[#This Row],[Дата замовлення]]=\"\",\"\",Таблица6[[#This Row],[Дата замовлення]]+Таблица6[[#This Row],[Рек. термін викон]])","v":""},null,null,{"$f":"IF(Таблица6[[#This Row],[% Заверш.]]=\"\",\"\",Таблица6[[#This Row],[% Заверш.]])","v":""}]
[null,204,null,null,null,null,null,null,null,null,null,{"$f":"IF(Таблица6[[#This Row],[Дата замовлення]]=\"\",\"\",Таблица6[[#This Row],[Дата замовлення]]+Таблица6[[#This Row],[Рек. термін викон]])","v":""},null,null,{"$f":"IF(Таблица6[[#This Row],[% Заверш.]]=\"\",\"\",Таблица6[[#This Row],[% Заверш.]])","v":""}]
[null,205,null,null,null,null,null,null,null,null,null,{"$f":"IF(Таблица6[[#This Row],[Дата замовлення]]=\"\",\"\",Таблица6[[#This Row],[Дата замовлення]]+Таблица6[[#This Row],[Рек. термін викон]])","v":""},null,null,{"$f":"IF(Таблица6[[#This Row],[% Заверш.]]=\"\",\"\",Таблица6[[#This Row],[% Заверш.]])","v":""}]
[null,206,null,null,null,null,null,null,null,null,null,{"$f":"IF(Таблица6[[#This Row],[Дата замовлення]]=\"\",\"\",Таблица6[[#This Row],[Дата замовлення]]+Таблица6[[#This Row],[Рек. термін викон]])","v":""},null,null,{"$f":"IF(Таблица6[[#This Row],[% Заверш.]]=\"\",\"\",Таблица6[[#This Row],[% Заверш.]])","v":""}]
[null,207,null,null,null,null,null,null,null,null,null,{"$f":"IF(Таблица6[[#This Row],[Дата замовлення]]=\"\",\"\",Таблица6[[#This Row],[Дата замовлення]]+Таблица6[[#This Row],[Рек. термін викон]])","v":""},null,null,{"$f":"IF(Таблица6[[#This Row],[% Заверш.]]=\"\",\"\",Таблица6[[#This Row],[% Заверш.]])","v":""}]
[null,208,null,null,null,null,null,null,null,null,null,{"$f":"IF(Таблица6[[#This Row],[Дата замовлення]]=\"\",\"\",Таблица6[[#This Row],[Дата замовлення]]+Таблица6[[#This Row],[Рек. термін викон]])","v":""},null,null,{"$f":"IF(Таблица6[[#This Row],[% Заверш.]]=\"\",\"\",Таблица6[[#This Row],[% Заверш.]])","v":""}]
[null,209,null,null,null,null,null,null,null,null,null,{"$f":"IF(Таблица6[[#This Row],[Дата замовлення]]=\"\",\"\",Таблица6[[#This Row],[Дата замовлення]]+Таблица6[[#This Row],[Рек. термін викон]])","v":""},null,null,{"$f":"IF(Таблица6[[#This Row],[% Заверш.]]=\"\",\"\",Таблица6[[#This Row],[% Заверш.]])","v":""}]
[null,210,null,null,null,null,null,null,null,null,null,{"$f":"IF(Таблица6[[#This Row],[Дата замовлення]]=\"\",\"\",Таблица6[[#This Row],[Дата замовлення]]+Таблица6[[#This Row],[Рек. термін викон]])","v":""},null,null,{"$f":"IF(Таблица6[[#This Row],[% Заверш.]]=\"\",\"\",Таблица6[[#This Row],[% Заверш.]])","v":""}]
[null,211,null,null,null,null,null,null,null,null,null,{"$f":"IF(Таблица6[[#This Row],[Дата замовлення]]=\"\",\"\",Таблица6[[#This Row],[Дата замовлення]]+Таблица6[[#This Row],[Рек. термін викон]])","v":""},null,null,{"$f":"IF(Таблица6[[#This Row],[% Заверш.]]=\"\",\"\",Таблица6[[#This Row],[% Заверш.]])","v":""}]
[null,212,null,null,null,null,null,null,null,null,null,{"$f":"IF(Таблица6[[#This Row],[Дата замовлення]]=\"\",\"\",Таблица6[[#This Row],[Дата замовлення]]+Таблица6[[#This Row],[Рек. термін викон]])","v":""},null,null,{"$f":"IF(Таблица6[[#This Row],[% Заверш.]]=\"\",\"\",Таблица6[[#This Row],[% Заверш.]])","v":""}]
[null,213,null,null,null,null,null,null,null,null,null,{"$f":"IF(Таблица6[[#This Row],[Дата замовлення]]=\"\",\"\",Таблица6[[#This Row],[Дата замовлення]]+Таблица6[[#This Row],[Рек. термін викон]])","v":""},null,null,{"$f":"IF(Таблица6[[#This Row],[% Заверш.]]=\"\",\"\",Таблица6[[#This Row],[% Заверш.]])","v":""}]
[null,214,null,null,null,null,null,null,null,null,null,{"$f":"IF(Таблица6[[#This Row],[Дата замовлення]]=\"\",\"\",Таблица6[[#This Row],[Дата замовлення]]+Таблица6[[#This Row],[Рек. термін викон]])","v":""},null,null,{"$f":"IF(Таблица6[[#This Row],[% Заверш.]]=\"\",\"\",Таблица6[[#This Row],[% Заверш.]])","v":""}]
[null,215,null,null,null,null,null,null,null,null,null,{"$f":"IF(Таблица6[[#This Row],[Дата замовлення]]=\"\",\"\",Таблица6[[#This Row],[Дата замовлення]]+Таблица6[[#This Row],[Рек. термін викон]])","v":""},null,null,{"$f":"IF(Таблица6[[#This Row],[% Заверш.]]=\"\",\"\",Таблица6[[#This Row],[% Заверш.]])","v":""}]
[null,216,null,null,null,null,null,null,null,null,null,{"$f":"IF(Таблица6[[#This Row],[Дата замовлення]]=\"\",\"\",Таблица6[[#This Row],[Дата замовлення]]+Таблица6[[#This Row],[Рек. термін викон]])","v":""},null,null,{"$f":"IF(Таблица6[[#This Row],[% Заверш.]]=\"\",\"\",Таблица6[[#This Row],[% Заверш.]])","v":""}]
[null,217,null,null,null,null,null,null,null,null,null,{"$f":"IF(Таблица6[[#This Row],[Дата замовлення]]=\"\",\"\",Таблица6[[#This Row],[Дата замовлення]]+Таблица6[[#This Row],[Рек. термін викон]])","v":""},null,null,{"$f":"IF(Таблица6[[#This Row],[% Заверш.]]=\"\",\"\",Таблица6[[#This Row],[% Заверш.]])","v":""}]
[null,218,null,null,null,null,null,null,null,null,null,{"$f":"IF(Таблица6[[#This Row],[Дата замовлення]]=\"\",\"\",Таблица6[[#This Row],[Дата замовлення]]+Таблица6[[#This Row],[Рек. термін викон]])","v":""},null,null,{"$f":"IF(Таблица6[[#This Row],[% Заверш.]]=\"\",\"\",Таблица6[[#This Row],[% Заверш.]])","v":""}]
[null,219,null,null,null,null,null,null,null,null,null,{"$f":"IF(Таблица6[[#This Row],[Дата замовлення]]=\"\",\"\",Таблица6[[#This Row],[Дата замовлення]]+Таблица6[[#This Row],[Рек. термін викон]])","v":""},null,null,{"$f":"IF(Таблица6[[#This Row],[% Заверш.]]=\"\",\"\",Таблица6[[#This Row],[% Заверш.]])","v":""}]
[null,220,null,null,null,null,null,null,null,null,null,{"$f":"IF(Таблица6[[#This Row],[Дата замовлення]]=\"\",\"\",Таблица6[[#This Row],[Дата замовлення]]+Таблица6[[#This Row],[Рек. термін викон]])","v":""},null,null,{"$f":"IF(Таблица6[[#This Row],[% Заверш.]]=\"\",\"\",Таблица6[[#This Row],[% Заверш.]])","v":""}]
[null,221,null,null,null,null,null,null,null,null,null,{"$f":"IF(Таблица6[[#This Row],[Дата замовлення]]=\"\",\"\",Таблица6[[#This Row],[Дата замовлення]]+Таблица6[[#This Row],[Рек. термін викон]])","v":""},null,null,{"$f":"IF(Таблица6[[#This Row],[% Заверш.]]=\"\",\"\",Таблица6[[#This Row],[% Заверш.]])","v":""}]
[null,222,null,null,null,null,null,null,null,null,null,{"$f":"IF(Таблица6[[#This Row],[Дата замовлення]]=\"\",\"\",Таблица6[[#This Row],[Дата замовлення]]+Таблица6[[#This Row],[Рек. термін викон]])","v":""},null,null,{"$f":"IF(Таблица6[[#This Row],[% Заверш.]]=\"\",\"\",Таблица6[[#This Row],[% Заверш.]])","v":""}]
[null,223,null,null,null,null,null,null,null,null,null,{"$f":"IF(Таблица6[[#This Row],[Дата замовлення]]=\"\",\"\",Таблица6[[#This Row],[Дата замовлення]]+Таблица6[[#This Row],[Рек. термін викон]])","v":""},null,null,{"$f":"IF(Таблица6[[#This Row],[% Заверш.]]=\"\",\"\",Таблица6[[#This Row],[% Заверш.]])","v":""}]
[null,224,null,null,null,null,null,null,null,null,null,{"$f":"IF(Таблица6[[#This Row],[Дата замовлення]]=\"\",\"\",Таблица6[[#This Row],[Дата замовлення]]+Таблица6[[#This Row],[Рек. термін викон]])","v":""},null,null,{"$f":"IF(Таблица6[[#This Row],[% Заверш.]]=\"\",\"\",Таблица6[[#This Row],[% Заверш.]])","v":""}]
[null,225,null,null,null,null,null,null,null,null,null,{"$f":"IF(Таблица6[[#This Row],[Дата замовлення]]=\"\",\"\",Таблица6[[#This Row],[Дата замовлення]]+Таблица6[[#This Row],[Рек. термін викон]])","v":""},null,null,{"$f":"IF(Таблица6[[#This Row],[% Заверш.]]=\"\",\"\",Таблица6[[#This Row],[% Заверш.]])","v":""}]
[null,226,null,null,null,null,null,null,null,null,null,{"$f":"IF(Таблица6[[#This Row],[Дата замовлення]]=\"\",\"\",Таблица6[[#This Row],[Дата замовлення]]+Таблица6[[#This Row],[Рек. термін викон]])","v":""},null,null,{"$f":"IF(Таблица6[[#This Row],[% Заверш.]]=\"\",\"\",Таблица6[[#This Row],[% Заверш.]])","v":""}]
[null,227,null,null,null,null,null,null,null,null,null,{"$f":"IF(Таблица6[[#This Row],[Дата замовлення]]=\"\",\"\",Таблица6[[#This Row],[Дата замовлення]]+Таблица6[[#This Row],[Рек. термін викон]])","v":""},null,null,{"$f":"IF(Таблица6[[#This Row],[% Заверш.]]=\"\",\"\",Таблица6[[#This Row],[% Заверш.]])","v":""}]
[null,228,null,null,null,null,null,null,null,null,null,{"$f":"IF(Таблица6[[#This Row],[Дата замовлення]]=\"\",\"\",Таблица6[[#This Row],[Дата замовлення]]+Таблица6[[#This Row],[Рек. термін викон]])","v":""},null,null,{"$f":"IF(Таблица6[[#This Row],[% Заверш.]]=\"\",\"\",Таблица6[[#This Row],[% Заверш.]])","v":""}]
[null,229,null,null,null,null,null,null,null,null,null,{"$f":"IF(Таблица6[[#This Row],[Дата замовлення]]=\"\",\"\",Таблица6[[#This Row],[Дата замовлення]]+Таблица6[[#This Row],[Рек. термін викон]])","v":""},null,null,{"$f":"IF(Таблица6[[#This Row],[% Заверш.]]=\"\",\"\",Таблица6[[#This Row],[% Заверш.]])","v":""}]
[null,230,null,null,null,null,null,null,null,null,null,{"$f":"IF(Таблица6[[#This Row],[Дата замовлення]]=\"\",\"\",Таблица6[[#This Row],[Дата замовлення]]+Таблица6[[#This Row],[Рек. термін викон]])","v":""},null,null,{"$f":"IF(Таблица6[[#This Row],[% Заверш.]]=\"\",\"\",Таблица6[[#This Row],[% Заверш.]])","v":""}]
[null,231,null,null,null,null,null,null,null,null,null,{"$f":"IF(Таблица6[[#This Row],[Дата замовлення]]=\"\",\"\",Таблица6[[#This Row],[Дата замовлення]]+Таблица6[[#This Row],[Рек. термін викон]])","v":""},null,null,{"$f":"IF(Таблица6[[#This Row],[% Заверш.]]=\"\",\"\",Таблица6[[#This Row],[% Заверш.]])","v":""}]
[null,232,null,null,null,null,null,null,null,null,null,{"$f":"IF(Таблица6[[#This Row],[Дата замовлення]]=\"\",\"\",Таблица6[[#This Row],[Дата замовлення]]+Таблица6[[#This Row],[Рек. термін викон]])","v":""},null,null,{"$f":"IF(Таблица6[[#This Row],[% Заверш.]]=\"\",\"\",Таблица6[[#This Row],[% Заверш.]])","v":""}]
[null,233,null,null,null,null,null,null,null,null,null,{"$f":"IF(Таблица6[[#This Row],[Дата замовлення]]=\"\",\"\",Таблица6[[#This Row],[Дата замовлення]]+Таблица6[[#This Row],[Рек. термін викон]])","v":""},null,null,{"$f":"IF(Таблица6[[#This Row],[% Заверш.]]=\"\",\"\",Таблица6[[#This Row],[% Заверш.]])","v":""}]
[null,234,null,null,null,null,null,null,null,null,null,{"$f":"IF(Таблица6[[#This Row],[Дата замовлення]]=\"\",\"\",Таблица6[[#This Row],[Дата замовлення]]+Таблица6[[#This Row],[Рек. термін викон]])","v":""},null,null,{"$f":"IF(Таблица6[[#This Row],[% Заверш.]]=\"\",\"\",Таблица6[[#This Row],[% Заверш.]])","v":""}]
[null,235,null,null,null,null,null,null,null,null,null,{"$f":"IF(Таблица6[[#This Row],[Дата замовлення]]=\"\",\"\",Таблица6[[#This Row],[Дата замовлення]]+Таблица6[[#This Row],[Рек. термін викон]])","v":""},null,null,{"$f":"IF(Таблица6[[#This Row],[% Заверш.]]=\"\",\"\",Таблица6[[#This Row],[% Заверш.]])","v":""}]
[null,236,null,null,null,null,null,null,null,null,null,{"$f":"IF(Таблица6[[#This Row],[Дата замовлення]]=\"\",\"\",Таблица6[[#This Row],[Дата замовлення]]+Таблица6[[#This Row],[Рек. термін викон]])","v":""},null,null,{"$f":"IF(Таблица6[[#This Row],[% Заверш.]]=\"\",\"\",Таблица6[[#This Row],[% Заверш.]])","v":""}]
[null,237,null,null,null,null,null,null,null,null,null,{"$f":"IF(Таблица6[[#This Row],[Дата замовлення]]=\"\",\"\",Таблица6[[#This Row],[Дата замовлення]]+Таблица6[[#This Row],[Рек. термін викон]])","v":""},null,null,{"$f":"IF(Таблица6[[#This Row],[% Заверш.]]=\"\",\"\",Таблица6[[#This Row],[% Заверш.]])","v":""}]
[null,238,null,null,null,null,null,null,null,null,null,{"$f":"IF(Таблица6[[#This Row],[Дата замовлення]]=\"\",\"\",Таблица6[[#This Row],[Дата замовлення]]+Таблица6[[#This Row],[Рек. термін викон]])","v":""},null,null,{"$f":"IF(Таблица6[[#This Row],[% Заверш.]]=\"\",\"\",Таблица6[[#This Row],[% Заверш.]])","v":""}]
[null,239,null,null,null,null,null,null,null,null,null,{"$f":"IF(Таблица6[[#This Row],[Дата замовлення]]=\"\",\"\",Таблица6[[#This Row],[Дата замовлення]]+Таблица6[[#This Row],[Рек. термін викон]])","v":""},null,null,{"$f":"IF(Таблица6[[#This Row],[% Заверш.]]=\"\",\"\",Таблица6[[#This Row],[% Заверш.]])","v":""}]
[null,240,null,null,null,null,null,null,null,null,null,{"$f":"IF(Таблица6[[#This Row],[Дата замовлення]]=\"\",\"\",Таблица6[[#This Row],[Дата замовлення]]+Таблица6[[#This Row],[Рек. термін викон]])","v":""},null,null,{"$f":"IF(Таблица6[[#This Row],[% Заверш.]]=\"\",\"\",Таблица6[[#This Row],[% Заверш.]])","v":""}]
[null,241,null,null,null,null,null,null,null,null,null,{"$f":"IF(Таблица6[[#This Row],[Дата замовлення]]=\"\",\"\",Таблица6[[#This Row],[Дата замовлення]]+Таблица6[[#This Row],[Рек. термін викон]])","v":""},null,null,{"$f":"IF(Таблица6[[#This Row],[% Заверш.]]=\"\",\"\",Таблица6[[#This Row],[% Заверш.]])","v":""}]
[null,242,null,null,null,null,null,null,null,null,null,{"$f":"IF(Таблица6[[#This Row],[Дата замовлення]]=\"\",\"\",Таблица6[[#This Row],[Дата замовлення]]+Таблица6[[#This Row],[Рек. термін викон]])","v":""},null,null,{"$f":"IF(Таблица6[[#This Row],[% Заверш.]]=\"\",\"\",Таблица6[[#This Row],[% Заверш.]])","v":""}]
[null,243,null,null,null,null,null,null,null,null,null,{"$f":"IF(Таблица6[[#This Row],[Дата замовлення]]=\"\",\"\",Таблица6[[#This Row],[Дата замовлення]]+Таблица6[[#This Row],[Рек. термін викон]])","v":""},null,null,{"$f":"IF(Таблица6[[#This Row],[% Заверш.]]=\"\",\"\",Таблица6[[#This Row],[% Заверш.]])","v":""}]
[null,244,null,null,null,null,null,null,null,null,null,{"$f":"IF(Таблица6[[#This Row],[Дата замовлення]]=\"\",\"\",Таблица6[[#This Row],[Дата замовлення]]+Таблица6[[#This Row],[Рек. термін викон]])","v":""},null,null,{"$f":"IF(Таблица6[[#This Row],[% Заверш.]]=\"\",\"\",Таблица6[[#This Row],[% Заверш.]])","v":""}]
[null,245,null,null,null,null,null,null,null,null,null,{"$f":"IF(Таблица6[[#This Row],[Дата замовлення]]=\"\",\"\",Таблица6[[#This Row],[Дата замовлення]]+Таблица6[[#This Row],[Рек. термін викон]])","v":""},null,null,{"$f":"IF(Таблица6[[#This Row],[% Заверш.]]=\"\",\"\",Таблица6[[#This Row],[% Заверш.]])","v":""}]
[null,246,null,null,null,null,null,null,null,null,null,{"$f":"IF(Таблица6[[#This Row],[Дата замовлення]]=\"\",\"\",Таблица6[[#This Row],[Дата замовлення]]+Таблица6[[#This Row],[Рек. термін викон]])","v":""},null,null,{"$f":"IF(Таблица6[[#This Row],[% Заверш.]]=\"\",\"\",Таблица6[[#This Row],[% Заверш.]])","v":""}]
[null,247,null,null,null,null,null,null,null,null,null,{"$f":"IF(Таблица6[[#This Row],[Дата замовлення]]=\"\",\"\",Таблица6[[#This Row],[Дата замовлення]]+Таблица6[[#This Row],[Рек. термін викон]])","v":""},null,null,{"$f":"IF(Таблица6[[#This Row],[% Заверш.]]=\"\",\"\",Таблица6[[#This Row],[% Заверш.]])","v":""}]
[null,248,null,null,null,null,null,null,null,null,null,{"$f":"IF(Таблица6[[#This Row],[Дата замовлення]]=\"\",\"\",Таблица6[[#This Row],[Дата замовлення]]+Таблица6[[#This Row],[Рек. термін викон]])","v":""},null,null,{"$f":"IF(Таблица6[[#This Row],[% Заверш.]]=\"\",\"\",Таблица6[[#This Row],[% Заверш.]])","v":""}]
[null,249,null,null,null,null,null,null,null,null,null,{"$f":"IF(Таблица6[[#This Row],[Дата замовлення]]=\"\",\"\",Таблица6[[#This Row],[Дата замовлення]]+Таблица6[[#This Row],[Рек. термін викон]])","v":""},null,null,{"$f":"IF(Таблица6[[#This Row],[% Заверш.]]=\"\",\"\",Таблица6[[#This Row],[% Заверш.]])","v":""}]
[null,250,null,null,null,null,null,null,null,null,null,{"$f":"IF(Таблица6[[#This Row],[Дата замовлення]]=\"\",\"\",Таблица6[[#This Row],[Дата замовлення]]+Таблица6[[#This Row],[Рек. термін викон]])","v":""},null,null,{"$f":"IF(Таблица6[[#This Row],[% Заверш.]]=\"\",\"\",Таблица6[[#This Row],[% Заверш.]])","v":""}]
[null,251,null,null,null,null,null,null,null,null,null,{"$f":"IF(Таблица6[[#This Row],[Дата замовлення]]=\"\",\"\",Таблица6[[#This Row],[Дата замовлення]]+Таблица6[[#This Row],[Рек. термін викон]])","v":""},null,null,{"$f":"IF(Таблица6[[#This Row],[% Заверш.]]=\"\",\"\",Таблица6[[#This Row],[% Заверш.]])","v":""}]
[null,252,null,null,null,null,null,null,null,null,null,{"$f":"IF(Таблица6[[#This Row],[Дата замовлення]]=\"\",\"\",Таблица6[[#This Row],[Дата замовлення]]+Таблица6[[#This Row],[Рек. термін викон]])","v":""},null,null,{"$f":"IF(Таблица6[[#This Row],[% Заверш.]]=\"\",\"\",Таблица6[[#This Row],[% Заверш.]])","v":""}]
[null,253,null,null,null,null,null,null,null,null,null,{"$f":"IF(Таблица6[[#This Row],[Дата замовлення]]=\"\",\"\",Таблица6[[#This Row],[Дата замовлення]]+Таблица6[[#This Row],[Рек. термін викон]])","v":""},null,null,{"$f":"IF(Таблица6[[#This Row],[% Заверш.]]=\"\",\"\",Таблица6[[#This Row],[% Заверш.]])","v":""}]
[null,254,null,null,null,null,null,null,null,null,null,{"$f":"IF(Таблица6[[#This Row],[Дата замовлення]]=\"\",\"\",Таблица6[[#This Row],[Дата замовлення]]+Таблица6[[#This Row],[Рек. термін викон]])","v":""},null,null,{"$f":"IF(Таблица6[[#This Row],[% Заверш.]]=\"\",\"\",Таблица6[[#This Row],[% Заверш.]])","v":""}]
[null,255,null,null,null,null,null,null,null,null,null,{"$f":"IF(Таблица6[[#This Row],[Дата замовлення]]=\"\",\"\",Таблица6[[#This Row],[Дата замовлення]]+Таблица6[[#This Row],[Рек. термін викон]])","v":""},null,null,{"$f":"IF(Таблица6[[#This Row],[% Заверш.]]=\"\",\"\",Таблица6[[#This Row],[% Заверш.]])","v":""}]
[null,256,null,null,null,null,null,null,null,null,null,{"$f":"IF(Таблица6[[#This Row],[Дата замовлення]]=\"\",\"\",Таблица6[[#This Row],[Дата замовлення]]+Таблица6[[#This Row],[Рек. термін викон]])","v":""},null,null,{"$f":"IF(Таблица6[[#This Row],[% Заверш.]]=\"\",\"\",Таблица6[[#This Row],[% Заверш.]])","v":""}]
[null,257,null,null,null,null,null,null,null,null,null,{"$f":"IF(Таблица6[[#This Row],[Дата замовлення]]=\"\",\"\",Таблица6[[#This Row],[Дата замовлення]]+Таблица6[[#This Row],[Рек. термін викон]])","v":""},null,null,{"$f":"IF(Таблица6[[#This Row],[% Заверш.]]=\"\",\"\",Таблица6[[#This Row],[% Заверш.]])","v":""}]
[null,258,null,null,null,null,null,null,null,null,null,{"$f":"IF(Таблица6[[#This Row],[Дата замовлення]]=\"\",\"\",Таблица6[[#This Row],[Дата замовлення]]+Таблица6[[#This Row],[Рек. термін викон]])","v":""},null,null,{"$f":"IF(Таблица6[[#This Row],[% Заверш.]]=\"\",\"\",Таблица6[[#This Row],[% Заверш.]])","v":""}]
[null,259,null,null,null,null,null,null,null,null,null,{"$f":"IF(Таблица6[[#This Row],[Дата замовлення]]=\"\",\"\",Таблица6[[#This Row],[Дата замовлення]]+Таблица6[[#This Row],[Рек. термін викон]])","v":""},null,null,{"$f":"IF(Таблица6[[#This Row],[% Заверш.]]=\"\",\"\",Таблица6[[#This Row],[% Заверш.]])","v":""}]
[null,260,null,null,null,null,null,null,null,null,null,{"$f":"IF(Таблица6[[#This Row],[Дата замовлення]]=\"\",\"\",Таблица6[[#This Row],[Дата замовлення]]+Таблица6[[#This Row],[Рек. термін викон]])","v":""},null,null,{"$f":"IF(Таблица6[[#This Row],[% Заверш.]]=\"\",\"\",Таблица6[[#This Row],[% Заверш.]])","v":""}]
[null,261,null,null,null,null,null,null,null,null,null,{"$f":"IF(Таблица6[[#This Row],[Дата замовлення]]=\"\",\"\",Таблица6[[#This Row],[Дата замовлення]]+Таблица6[[#This Row],[Рек. термін викон]])","v":""},null,null,{"$f":"IF(Таблица6[[#This Row],[% Заверш.]]=\"\",\"\",Таблица6[[#This Row],[% Заверш.]])","v":""}]
[null,262,null,null,null,null,null,null,null,null,null,{"$f":"IF(Таблица6[[#This Row],[Дата замовлення]]=\"\",\"\",Таблица6[[#This Row],[Дата замовлення]]+Таблица6[[#This Row],[Рек. термін викон]])","v":""},null,null,{"$f":"IF(Таблица6[[#This Row],[% Заверш.]]=\"\",\"\",Таблица6[[#This Row],[% Заверш.]])","v":""}]
[null,263,null,null,null,null,null,null,null,null,null,{"$f":"IF(Таблица6[[#This Row],[Дата замовлення]]=\"\",\"\",Таблица6[[#This Row],[Дата замовлення]]+Таблица6[[#This Row],[Рек. термін викон]])","v":""},null,null,{"$f":"IF(Таблица6[[#This Row],[% Заверш.]]=\"\",\"\",Таблица6[[#This Row],[% Заверш.]])","v":""}]
[null,264,null,null,null,null,null,null,null,null,null,{"$f":"IF(Таблица6[[#This Row],[Дата замовлення]]=\"\",\"\",Таблица6[[#This Row],[Дата замовлення]]+Таблица6[[#This Row],[Рек. термін викон]])","v":""},null,null,{"$f":"IF(Таблица6[[#This Row],[% Заверш.]]=\"\",\"\",Таблица6[[#This Row],[% Заверш.]])","v":""}]
[null,265,null,null,null,null,null,null,null,null,null,{"$f":"IF(Таблица6[[#This Row],[Дата замовлення]]=\"\",\"\",Таблица6[[#This Row],[Дата замовлення]]+Таблица6[[#This Row],[Рек. термін викон]])","v":""},null,null,{"$f":"IF(Таблица6[[#This Row],[% Заверш.]]=\"\",\"\",Таблица6[[#This Row],[% Заверш.]])","v":""}]
[null,266,null,null,null,null,null,null,null,null,null,{"$f":"IF(Таблица6[[#This Row],[Дата замовлення]]=\"\",\"\",Таблица6[[#This Row],[Дата замовлення]]+Таблица6[[#This Row],[Рек. термін викон]])","v":""},null,null,{"$f":"IF(Таблица6[[#This Row],[% Заверш.]]=\"\",\"\",Таблица6[[#This Row],[% Заверш.]])","v":""}]
[null,267,null,null,null,null,null,null,null,null,null,{"$f":"IF(Таблица6[[#This Row],[Дата замовлення]]=\"\",\"\",Таблица6[[#This Row],[Дата замовлення]]+Таблица6[[#This Row],[Рек. термін викон]])","v":""},null,null,{"$f":"IF(Таблица6[[#This Row],[% Заверш.]]=\"\",\"\",Таблица6[[#This Row],[% Заверш.]])","v":""}]
[null,268,null,null,null,null,null,null,null,null,null,{"$f":"IF(Таблица6[[#This Row],[Дата замовлення]]=\"\",\"\",Таблица6[[#This Row],[Дата замовлення]]+Таблица6[[#This Row],[Рек. термін викон]])","v":""},null,null,{"$f":"IF(Таблица6[[#This Row],[% Заверш.]]=\"\",\"\",Таблица6[[#This Row],[% Заверш.]])","v":""}]
[null,269,null,null,null,null,null,null,null,null,null,{"$f":"IF(Таблица6[[#This Row],[Дата замовлення]]=\"\",\"\",Таблица6[[#This Row],[Дата замовлення]]+Таблица6[[#This Row],[Рек. термін викон]])","v":""},null,null,{"$f":"IF(Таблица6[[#This Row],[% Заверш.]]=\"\",\"\",Таблица6[[#This Row],[% Заверш.]])","v":""}]
[null,270,null,null,null,null,null,null,null,null,null,{"$f":"IF(Таблица6[[#This Row],[Дата замовлення]]=\"\",\"\",Таблица6[[#This Row],[Дата замовлення]]+Таблица6[[#This Row],[Рек. термін викон]])","v":""},null,null,{"$f":"IF(Таблица6[[#This Row],[% Заверш.]]=\"\",\"\",Таблица6[[#This Row],[% Заверш.]])","v":""}]
[null,271,null,null,null,null,null,null,null,null,null,{"$f":"IF(Таблица6[[#This Row],[Дата замовлення]]=\"\",\"\",Таблица6[[#This Row],[Дата замовлення]]+Таблица6[[#This Row],[Рек. термін викон]])","v":""},null,null,{"$f":"IF(Таблица6[[#This Row],[% Заверш.]]=\"\",\"\",Таблица6[[#This Row],[% Заверш.]])","v":""}]
[null,272,null,null,null,null,null,null,null,null,null,{"$f":"IF(Таблица6[[#This Row],[Дата замовлення]]=\"\",\"\",Таблица6[[#This Row],[Дата замовлення]]+Таблица6[[#This Row],[Рек. термін викон]])","v":""},null,null,{"$f":"IF(Таблица6[[#This Row],[% Заверш.]]=\"\",\"\",Таблица6[[#This Row],[% Заверш.]])","v":""}]
[null,273,null,null,null,null,null,null,null,null,null,{"$f":"IF(Таблица6[[#This Row],[Дата замовлення]]=\"\",\"\",Таблица6[[#This Row],[Дата замовлення]]+Таблица6[[#This Row],[Рек. термін викон]])","v":""},null,null,{"$f":"IF(Таблица6[[#This Row],[% Заверш.]]=\"\",\"\",Таблица6[[#This Row],[% Заверш.]])","v":""}]
[null,274,null,null,null,null,null,null,null,null,null,{"$f":"IF(Таблица6[[#This Row],[Дата замовлення]]=\"\",\"\",Таблица6[[#This Row],[Дата замовлення]]+Таблица6[[#This Row],[Рек. термін викон]])","v":""},null,null,{"$f":"IF(Таблица6[[#This Row],[% Заверш.]]=\"\",\"\",Таблица6[[#This Row],[% Заверш.]])","v":""}]
[null,275,null,null,null,null,null,null,null,null,null,{"$f":"IF(Таблица6[[#This Row],[Дата замовлення]]=\"\",\"\",Таблица6[[#This Row],[Дата замовлення]]+Таблица6[[#This Row],[Рек. термін викон]])","v":""},null,null,{"$f":"IF(Таблица6[[#This Row],[% Заверш.]]=\"\",\"\",Таблица6[[#This Row],[% Заверш.]])","v":""}]
[null,276,null,null,null,null,null,null,null,null,null,{"$f":"IF(Таблица6[[#This Row],[Дата замовлення]]=\"\",\"\",Таблица6[[#This Row],[Дата замовлення]]+Таблица6[[#This Row],[Рек. термін викон]])","v":""},null,null,{"$f":"IF(Таблица6[[#This Row],[% Заверш.]]=\"\",\"\",Таблица6[[#This Row],[% Заверш.]])","v":""}]
[null,277,null,null,null,null,null,null,null,null,null,{"$f":"IF(Таблица6[[#This Row],[Дата замовлення]]=\"\",\"\",Таблица6[[#This Row],[Дата замовлення]]+Таблица6[[#This Row],[Рек. термін викон]])","v":""},null,null,{"$f":"IF(Таблица6[[#This Row],[% Заверш.]]=\"\",\"\",Таблица6[[#This Row],[% Заверш.]])","v":""}]
[null,278,null,null,null,null,null,null,null,null,null,{"$f":"IF(Таблица6[[#This Row],[Дата замовлення]]=\"\",\"\",Таблица6[[#This Row],[Дата замовлення]]+Таблица6[[#This Row],[Рек. термін викон]])","v":""},null,null,{"$f":"IF(Таблица6[[#This Row],[% Заверш.]]=\"\",\"\",Таблица6[[#This Row],[% Заверш.]])","v":""}]
[null,279,null,null,null,null,null,null,null,null,null,{"$f":"IF(Таблица6[[#This Row],[Дата замовлення]]=\"\",\"\",Таблица6[[#This Row],[Дата замовлення]]+Таблица6[[#This Row],[Рек. термін викон]])","v":""},null,null,{"$f":"IF(Таблица6[[#This Row],[% Заверш.]]=\"\",\"\",Таблица6[[#This Row],[% Заверш.]])","v":""}]
[null,280,null,null,null,null,null,null,null,null,null,{"$f":"IF(Таблица6[[#This Row],[Дата замовлення]]=\"\",\"\",Таблица6[[#This Row],[Дата замовлення]]+Таблица6[[#This Row],[Рек. термін викон]])","v":""},null,null,{"$f":"IF(Таблица6[[#This Row],[% Заверш.]]=\"\",\"\",Таблица6[[#This Row],[% Заверш.]])","v":""}]
[null,281,null,null,null,null,null,null,null,null,null,{"$f":"IF(Таблица6[[#This Row],[Дата замовлення]]=\"\",\"\",Таблица6[[#This Row],[Дата замовлення]]+Таблица6[[#This Row],[Рек. термін викон]])","v":""},null,null,{"$f":"IF(Таблица6[[#This Row],[% Заверш.]]=\"\",\"\",Таблица6[[#This Row],[% Заверш.]])","v":""}]
[null,282,null,null,null,null,null,null,null,null,null,{"$f":"IF(Таблица6[[#This Row],[Дата замовлення]]=\"\",\"\",Таблица6[[#This Row],[Дата замовлення]]+Таблица6[[#This Row],[Рек. термін викон]])","v":""},null,null,{"$f":"IF(Таблица6[[#This Row],[% Заверш.]]=\"\",\"\",Таблица6[[#This Row],[% Заверш.]])","v":""}]
[null,283,null,null,null,null,null,null,null,null,null,{"$f":"IF(Таблица6[[#This Row],[Дата замовлення]]=\"\",\"\",Таблица6[[#This Row],[Дата замовлення]]+Таблица6[[#This Row],[Рек. термін викон]])","v":""},null,null,{"$f":"IF(Таблица6[[#This Row],[% Заверш.]]=\"\",\"\",Таблица6[[#This Row],[% Заверш.]])","v":""}]
[null,284,null,null,null,null,null,null,null,null,null,{"$f":"IF(Таблица6[[#This Row],[Дата замовлення]]=\"\",\"\",Таблица6[[#This Row],[Дата замовлення]]+Таблица6[[#This Row],[Рек. термін викон]])","v":""},null,null,{"$f":"IF(Таблица6[[#This Row],[% Заверш.]]=\"\",\"\",Таблица6[[#This Row],[% Заверш.]])","v":""}]
[null,285,null,null,null,null,null,null,null,null,null,{"$f":"IF(Таблица6[[#This Row],[Дата замовлення]]=\"\",\"\",Таблица6[[#This Row],[Дата замовлення]]+Таблица6[[#This Row],[Рек. термін викон]])","v":""},null,null,{"$f":"IF(Таблица6[[#This Row],[% Заверш.]]=\"\",\"\",Таблица6[[#This Row],[% Заверш.]])","v":""}]
[null,286,null,null,null,null,null,null,null,null,null,{"$f":"IF(Таблица6[[#This Row],[Дата замовлення]]=\"\",\"\",Таблица6[[#This Row],[Дата замовлення]]+Таблица6[[#This Row],[Рек. термін викон]])","v":""},null,null,{"$f":"IF(Таблица6[[#This Row],[% Заверш.]]=\"\",\"\",Таблица6[[#This Row],[% Заверш.]])","v":""}]
[null,287,null,null,null,null,null,null,null,null,null,{"$f":"IF(Таблица6[[#This Row],[Дата замовлення]]=\"\",\"\",Таблица6[[#This Row],[Дата замовлення]]+Таблица6[[#This Row],[Рек. термін викон]])","v":""},null,null,{"$f":"IF(Таблица6[[#This Row],[% Заверш.]]=\"\",\"\",Таблица6[[#This Row],[% Заверш.]])","v":""}]
[null,288,null,null,null,null,null,null,null,null,null,{"$f":"IF(Таблица6[[#This Row],[Дата замовлення]]=\"\",\"\",Таблица6[[#This Row],[Дата замовлення]]+Таблица6[[#This Row],[Рек. термін викон]])","v":""},null,null,{"$f":"IF(Таблица6[[#This Row],[% Заверш.]]=\"\",\"\",Таблица6[[#This Row],[% Заверш.]])","v":""}]
[null,289,null,null,null,null,null,null,null,null,null,{"$f":"IF(Таблица6[[#This Row],[Дата замовлення]]=\"\",\"\",Таблица6[[#This Row],[Дата замовлення]]+Таблица6[[#This Row],[Рек. термін викон]])","v":""},null,null,{"$f":"IF(Таблица6[[#This Row],[% Заверш.]]=\"\",\"\",Таблица6[[#This Row],[% Заверш.]])","v":""}]
[null,290,null,null,null,null,null,null,null,null,null,{"$f":"IF(Таблица6[[#This Row],[Дата замовлення]]=\"\",\"\",Таблица6[[#This Row],[Дата замовлення]]+Таблица6[[#This Row],[Рек. термін викон]])","v":""},null,null,{"$f":"IF(Таблица6[[#This Row],[% Заверш.]]=\"\",\"\",Таблица6[[#This Row],[% Заверш.]])","v":""}]
[null,291,null,null,null,null,null,null,null,null,null,{"$f":"IF(Таблица6[[#This Row],[Дата замовлення]]=\"\",\"\",Таблица6[[#This Row],[Дата замовлення]]+Таблица6[[#This Row],[Рек. термін викон]])","v":""},null,null,{"$f":"IF(Таблица6[[#This Row],[% Заверш.]]=\"\",\"\",Таблица6[[#This Row],[% Заверш.]])","v":""}]
[null,292,null,null,null,null,null,null,null,null,null,{"$f":"IF(Таблица6[[#This Row],[Дата замовлення]]=\"\",\"\",Таблица6[[#This Row],[Дата замовлення]]+Таблица6[[#This Row],[Рек. термін викон]])","v":""},null,null,{"$f":"IF(Таблица6[[#This Row],[% Заверш.]]=\"\",\"\",Таблица6[[#This Row],[% Заверш.]])","v":""}]
[null,293,null,null,null,null,null,null,null,null,null,{"$f":"IF(Таблица6[[#This Row],[Дата замовлення]]=\"\",\"\",Таблица6[[#This Row],[Дата замовлення]]+Таблица6[[#This Row],[Рек. термін викон]])","v":""},null,null,{"$f":"IF(Таблица6[[#This Row],[% Заверш.]]=\"\",\"\",Таблица6[[#This Row],[% Заверш.]])","v":""}]
[null,294,null,null,null,null,null,null,null,null,null,{"$f":"IF(Таблица6[[#This Row],[Дата замовлення]]=\"\",\"\",Таблица6[[#This Row],[Дата замовлення]]+Таблица6[[#This Row],[Рек. термін викон]])","v":""},null,null,{"$f":"IF(Таблица6[[#This Row],[% Заверш.]]=\"\",\"\",Таблица6[[#This Row],[% Заверш.]])","v":""}]
[null,295,null,null,null,null,null,null,null,null,null,{"$f":"IF(Таблица6[[#This Row],[Дата замовлення]]=\"\",\"\",Таблица6[[#This Row],[Дата замовлення]]+Таблица6[[#This Row],[Рек. термін викон]])","v":""},null,null,{"$f":"IF(Таблица6[[#This Row],[% Заверш.]]=\"\",\"\",Таблица6[[#This Row],[% Заверш.]])","v":""}]
[null,296,null,null,null,null,null,null,null,null,null,{"$f":"IF(Таблица6[[#This Row],[Дата замовлення]]=\"\",\"\",Таблица6[[#This Row],[Дата замовлення]]+Таблица6[[#This Row],[Рек. термін викон]])","v":""},null,null,{"$f":"IF(Таблица6[[#This Row],[% Заверш.]]=\"\",\"\",Таблица6[[#This Row],[% Заверш.]])","v":""}]
[null,297,null,null,null,null,null,null,null,null,null,{"$f":"IF(Таблица6[[#This Row],[Дата замовлення]]=\"\",\"\",Таблица6[[#This Row],[Дата замовлення]]+Таблица6[[#This Row],[Рек. термін викон]])","v":""},null,null,{"$f":"IF(Таблица6[[#This Row],[% Заверш.]]=\"\",\"\",Таблица6[[#This Row],[% Заверш.]])","v":""}]
[null,298,null,null,null,null,null,null,null,null,null,{"$f":"IF(Таблица6[[#This Row],[Дата замовлення]]=\"\",\"\",Таблица6[[#This Row],[Дата замовлення]]+Таблица6[[#This Row],[Рек. термін викон]])","v":""},null,null,{"$f":"IF(Таблица6[[#This Row],[% Заверш.]]=\"\",\"\",Таблица6[[#This Row],[% Заверш.]])","v":""}]
[null,299,null,null,null,null,null,null,null,null,null,{"$f":"IF(Таблица6[[#This Row],[Дата замовлення]]=\"\",\"\",Таблица6[[#This Row],[Дата замовлення]]+Таблица6[[#This Row],[Рек. термін викон]])","v":""},null,null,{"$f":"IF(Таблица6[[#This Row],[% Заверш.]]=\"\",\"\",Таблица6[[#This Row],[% Заверш.]])","v":""}]
[null,300,null,null,null,null,null,null,null,null,null,{"$f":"IF(Таблица6[[#This Row],[Дата замовлення]]=\"\",\"\",Таблица6[[#This Row],[Дата замовлення]]+Таблица6[[#This Row],[Рек. термін викон]])","v":""},null,null,{"$f":"IF(Таблица6[[#This Row],[% Заверш.]]=\"\",\"\",Таблица6[[#This Row],[% Заверш.]])","v":""}]
[null,301,null,null,null,null,null,null,null,null,null,{"$f":"IF(Таблица6[[#This Row],[Дата замовлення]]=\"\",\"\",Таблица6[[#This Row],[Дата замовлення]]+Таблица6[[#This Row],[Рек. термін викон]])","v":""},null,null,{"$f":"IF(Таблица6[[#This Row],[% Заверш.]]=\"\",\"\",Таблица6[[#This Row],[% Заверш.]])","v":""}]
[null,302,null,null,null,null,null,null,null,null,null,{"$f":"IF(Таблица6[[#This Row],[Дата замовлення]]=\"\",\"\",Таблица6[[#This Row],[Дата замовлення]]+Таблица6[[#This Row],[Рек. термін викон]])","v":""},null,null,{"$f":"IF(Таблица6[[#This Row],[% Заверш.]]=\"\",\"\",Таблица6[[#This Row],[% Заверш.]])","v":""}]
[null,303,null,null,null,null,null,null,null,null,null,{"$f":"IF(Таблица6[[#This Row],[Дата замовлення]]=\"\",\"\",Таблица6[[#This Row],[Дата замовлення]]+Таблица6[[#This Row],[Рек. термін викон]])","v":""},null,null,{"$f":"IF(Таблица6[[#This Row],[% Заверш.]]=\"\",\"\",Таблица6[[#This Row],[% Заверш.]])","v":""}]
[null,304,null,null,null,null,null,null,null,null,null,{"$f":"IF(Таблица6[[#This Row],[Дата замовлення]]=\"\",\"\",Таблица6[[#This Row],[Дата замовлення]]+Таблица6[[#This Row],[Рек. термін викон]])","v":""},null,null,{"$f":"IF(Таблица6[[#This Row],[% Заверш.]]=\"\",\"\",Таблица6[[#This Row],[% Заверш.]])","v":""}]
[null,305,null,null,null,null,null,null,null,null,null,{"$f":"IF(Таблица6[[#This Row],[Дата замовлення]]=\"\",\"\",Таблица6[[#This Row],[Дата замовлення]]+Таблица6[[#This Row],[Рек. термін викон]])","v":""},null,null,{"$f":"IF(Таблица6[[#This Row],[% Заверш.]]=\"\",\"\",Таблица6[[#This Row],[% Заверш.]])","v":""}]
[null,306,null,null,null,null,null,null,null,null,null,{"$f":"IF(Таблица6[[#This Row],[Дата замовлення]]=\"\",\"\",Таблица6[[#This Row],[Дата замовлення]]+Таблица6[[#This Row],[Рек. термін викон]])","v":""},null,null,{"$f":"IF(Таблица6[[#This Row],[% Заверш.]]=\"\",\"\",Таблица6[[#This Row],[% Заверш.]])","v":""}]
[null,307,null,null,null,null,null,null,null,null,null,{"$f":"IF(Таблица6[[#This Row],[Дата замовлення]]=\"\",\"\",Таблица6[[#This Row],[Дата замовлення]]+Таблица6[[#This Row],[Рек. термін викон]])","v":""},null,null,{"$f":"IF(Таблица6[[#This Row],[% Заверш.]]=\"\",\"\",Таблица6[[#This Row],[% Заверш.]])","v":""}]
[null,308,null,null,null,null,null,null,null,null,null,{"$f":"IF(Таблица6[[#This Row],[Дата замовлення]]=\"\",\"\",Таблица6[[#This Row],[Дата замовлення]]+Таблица6[[#This Row],[Рек. термін викон]])","v":""},null,null,{"$f":"IF(Таблица6[[#This Row],[% Заверш.]]=\"\",\"\",Таблица6[[#This Row],[% Заверш.]])","v":""}]
[null,309,null,null,null,null,null,null,null,null,null,{"$f":"IF(Таблица6[[#This Row],[Дата замовлення]]=\"\",\"\",Таблица6[[#This Row],[Дата замовлення]]+Таблица6[[#This Row],[Рек. термін викон]])","v":""},null,null,{"$f":"IF(Таблица6[[#This Row],[% Заверш.]]=\"\",\"\",Таблица6[[#This Row],[% Заверш.]])","v":""}]
[null,310,null,null,null,null,null,null,null,null,null,{"$f":"IF(Таблица6[[#This Row],[Дата замовлення]]=\"\",\"\",Таблица6[[#This Row],[Дата замовлення]]+Таблица6[[#This Row],[Рек. термін викон]])","v":""},null,null,{"$f":"IF(Таблица6[[#This Row],[% Заверш.]]=\"\",\"\",Таблица6[[#This Row],[% Заверш.]])","v":""}]
[null,311,null,null,null,null,null,null,null,null,null,{"$f":"IF(Таблица6[[#This Row],[Дата замовлення]]=\"\",\"\",Таблица6[[#This Row],[Дата замовлення]]+Таблица6[[#This Row],[Рек. термін викон]])","v":""},null,null,{"$f":"IF(Таблица6[[#This Row],[% Заверш.]]=\"\",\"\",Таблица6[[#This Row],[% Заверш.]])","v":""}]
[null,312,null,null,null,null,null,null,null,null,null,{"$f":"IF(Таблица6[[#This Row],[Дата замовлення]]=\"\",\"\",Таблица6[[#This Row],[Дата замовлення]]+Таблица6[[#This Row],[Рек. термін викон]])","v":""},null,null,{"$f":"IF(Таблица6[[#This Row],[% Заверш.]]=\"\",\"\",Таблица6[[#This Row],[% Заверш.]])","v":""}]
[null,313,null,null,null,null,null,null,null,null,null,{"$f":"IF(Таблица6[[#This Row],[Дата замовлення]]=\"\",\"\",Таблица6[[#This Row],[Дата замовлення]]+Таблица6[[#This Row],[Рек. термін викон]])","v":""},null,null,{"$f":"IF(Таблица6[[#This Row],[% Заверш.]]=\"\",\"\",Таблица6[[#This Row],[% Заверш.]])","v":""}]
[null,314,null,null,null,null,null,null,null,null,null,{"$f":"IF(Таблица6[[#This Row],[Дата замовлення]]=\"\",\"\",Таблица6[[#This Row],[Дата замовлення]]+Таблица6[[#This Row],[Рек. термін викон]])","v":""},null,null,{"$f":"IF(Таблица6[[#This Row],[% Заверш.]]=\"\",\"\",Таблица6[[#This Row],[% Заверш.]])","v":""}]
[null,315,null,null,null,null,null,null,null,null,null,{"$f":"IF(Таблица6[[#This Row],[Дата замовлення]]=\"\",\"\",Таблица6[[#This Row],[Дата замовлення]]+Таблица6[[#This Row],[Рек. термін викон]])","v":""},null,null,{"$f":"IF(Таблица6[[#This Row],[% Заверш.]]=\"\",\"\",Таблица6[[#This Row],[% Заверш.]])","v":""}]
[null,316,null,null,null,null,null,null,null,null,null,{"$f":"IF(Таблица6[[#This Row],[Дата замовлення]]=\"\",\"\",Таблица6[[#This Row],[Дата замовлення]]+Таблица6[[#This Row],[Рек. термін викон]])","v":""},null,null,{"$f":"IF(Таблица6[[#This Row],[% Заверш.]]=\"\",\"\",Таблица6[[#This Row],[% Заверш.]])","v":""}]
[null,317,null,null,null,null,null,null,null,null,null,{"$f":"IF(Таблица6[[#This Row],[Дата замовлення]]=\"\",\"\",Таблица6[[#This Row],[Дата замовлення]]+Таблица6[[#This Row],[Рек. термін викон]])","v":""},null,null,{"$f":"IF(Таблица6[[#This Row],[% Заверш.]]=\"\",\"\",Таблица6[[#This Row],[% Заверш.]])","v":""}]
[null,318,null,null,null,null,null,null,null,null,null,{"$f":"IF(Таблица6[[#This Row],[Дата замовлення]]=\"\",\"\",Таблица6[[#This Row],[Дата замовлення]]+Таблица6[[#This Row],[Рек. термін викон]])","v":""},null,null,{"$f":"IF(Таблица6[[#This Row],[% Заверш.]]=\"\",\"\",Таблица6[[#This Row],[% Заверш.]])","v":""}]
[null,319,null,null,null,null,null,null,null,null,null,{"$f":"IF(Таблица6[[#This Row],[Дата замовлення]]=\"\",\"\",Таблица6[[#This Row],[Дата замовлення]]+Таблица6[[#This Row],[Рек. термін викон]])","v":""},null,null,{"$f":"IF(Таблица6[[#This Row],[% Заверш.]]=\"\",\"\",Таблица6[[#This Row],[% Заверш.]])","v":""}]
[null,320,null,null,null,null,null,null,null,null,null,{"$f":"IF(Таблица6[[#This Row],[Дата замовлення]]=\"\",\"\",Таблица6[[#This Row],[Дата замовлення]]+Таблица6[[#This Row],[Рек. термін викон]])","v":""},null,null,{"$f":"IF(Таблица6[[#This Row],[% Заверш.]]=\"\",\"\",Таблица6[[#This Row],[% Заверш.]])","v":""}]
[null,321,null,null,null,null,null,null,null,null,null,{"$f":"IF(Таблица6[[#This Row],[Дата замовлення]]=\"\",\"\",Таблица6[[#This Row],[Дата замовлення]]+Таблица6[[#This Row],[Рек. термін викон]])","v":""},null,null,{"$f":"IF(Таблица6[[#This Row],[% Заверш.]]=\"\",\"\",Таблица6[[#This Row],[% Заверш.]])","v":""}]
[null,322,null,null,null,null,null,null,null,null,null,{"$f":"IF(Таблица6[[#This Row],[Дата замовлення]]=\"\",\"\",Таблица6[[#This Row],[Дата замовлення]]+Таблица6[[#This Row],[Рек. термін викон]])","v":""},null,null,{"$f":"IF(Таблица6[[#This Row],[% Заверш.]]=\"\",\"\",Таблица6[[#This Row],[% Заверш.]])","v":""}]
[null,323,null,null,null,null,null,null,null,null,null,{"$f":"IF(Таблица6[[#This Row],[Дата замовлення]]=\"\",\"\",Таблица6[[#This Row],[Дата замовлення]]+Таблица6[[#This Row],[Рек. термін викон]])","v":""},null,null,{"$f":"IF(Таблица6[[#This Row],[% Заверш.]]=\"\",\"\",Таблица6[[#This Row],[% Заверш.]])","v":""}]
[null,324,null,null,null,null,null,null,null,null,null,{"$f":"IF(Таблица6[[#This Row],[Дата замовлення]]=\"\",\"\",Таблица6[[#This Row],[Дата замовлення]]+Таблица6[[#This Row],[Рек. термін викон]])","v":""},null,null,{"$f":"IF(Таблица6[[#This Row],[% Заверш.]]=\"\",\"\",Таблица6[[#This Row],[% Заверш.]])","v":""}]
[null,325,null,null,null,null,null,null,null,null,null,{"$f":"IF(Таблица6[[#This Row],[Дата замовлення]]=\"\",\"\",Таблица6[[#This Row],[Дата замовлення]]+Таблица6[[#This Row],[Рек. термін викон]])","v":""},null,null,{"$f":"IF(Таблица6[[#This Row],[% Заверш.]]=\"\",\"\",Таблица6[[#This Row],[% Заверш.]])","v":""}]
[null,326,null,null,null,null,null,null,null,null,null,{"$f":"IF(Таблица6[[#This Row],[Дата замовлення]]=\"\",\"\",Таблица6[[#This Row],[Дата замовлення]]+Таблица6[[#This Row],[Рек. термін викон]])","v":""},null,null,{"$f":"IF(Таблица6[[#This Row],[% Заверш.]]=\"\",\"\",Таблица6[[#This Row],[% Заверш.]])","v":""}]
[null,327,null,null,null,null,null,null,null,null,null,{"$f":"IF(Таблица6[[#This Row],[Дата замовлення]]=\"\",\"\",Таблица6[[#This Row],[Дата замовлення]]+Таблица6[[#This Row],[Рек. термін викон]])","v":""},null,null,{"$f":"IF(Таблица6[[#This Row],[% Заверш.]]=\"\",\"\",Таблица6[[#This Row],[% Заверш.]])","v":""}]
[null,328,null,null,null,null,null,null,null,null,null,{"$f":"IF(Таблица6[[#This Row],[Дата замовлення]]=\"\",\"\",Таблица6[[#This Row],[Дата замовлення]]+Таблица6[[#This Row],[Рек. термін викон]])","v":""},null,null,{"$f":"IF(Таблица6[[#This Row],[% Заверш.]]=\"\",\"\",Таблица6[[#This Row],[% Заверш.]])","v":""}]
[null,329,null,null,null,null,null,null,null,null,null,{"$f":"IF(Таблица6[[#This Row],[Дата замовлення]]=\"\",\"\",Таблица6[[#This Row],[Дата замовлення]]+Таблица6[[#This Row],[Рек. термін викон]])","v":""},null,null,{"$f":"IF(Таблица6[[#This Row],[% Заверш.]]=\"\",\"\",Таблица6[[#This Row],[% Заверш.]])","v":""}]
[null,330,null,null,null,null,null,null,null,null,null,{"$f":"IF(Таблица6[[#This Row],[Дата замовлення]]=\"\",\"\",Таблица6[[#This Row],[Дата замовлення]]+Таблица6[[#This Row],[Рек. термін викон]])","v":""},null,null,{"$f":"IF(Таблица6[[#This Row],[% Заверш.]]=\"\",\"\",Таблица6[[#This Row],[% Заверш.]])","v":""}]
[null,331,null,null,null,null,null,null,null,null,null,{"$f":"IF(Таблица6[[#This Row],[Дата замовлення]]=\"\",\"\",Таблица6[[#This Row],[Дата замовлення]]+Таблица6[[#This Row],[Рек. термін викон]])","v":""},null,null,{"$f":"IF(Таблица6[[#This Row],[% Заверш.]]=\"\",\"\",Таблица6[[#This Row],[% Заверш.]])","v":""}]
[null,332,null,null,null,null,null,null,null,null,null,{"$f":"IF(Таблица6[[#This Row],[Дата замовлення]]=\"\",\"\",Таблица6[[#This Row],[Дата замовлення]]+Таблица6[[#This Row],[Рек. термін викон]])","v":""},null,null,{"$f":"IF(Таблица6[[#This Row],[% Заверш.]]=\"\",\"\",Таблица6[[#This Row],[% Заверш.]])","v":""}]
[null,333,null,null,null,null,null,null,null,null,null,{"$f":"IF(Таблица6[[#This Row],[Дата замовлення]]=\"\",\"\",Таблица6[[#This Row],[Дата замовлення]]+Таблица6[[#This Row],[Рек. термін викон]])","v":""},null,null,{"$f":"IF(Таблица6[[#This Row],[% Заверш.]]=\"\",\"\",Таблица6[[#This Row],[% Заверш.]])","v":""}]
[null,334,null,null,null,null,null,null,null,null,null,{"$f":"IF(Таблица6[[#This Row],[Дата замовлення]]=\"\",\"\",Таблица6[[#This Row],[Дата замовлення]]+Таблица6[[#This Row],[Рек. термін викон]])","v":""},null,null,{"$f":"IF(Таблица6[[#This Row],[% Заверш.]]=\"\",\"\",Таблица6[[#This Row],[% Заверш.]])","v":""}]
[null,335,null,null,null,null,null,null,null,null,null,{"$f":"IF(Таблица6[[#This Row],[Дата замовлення]]=\"\",\"\",Таблица6[[#This Row],[Дата замовлення]]+Таблица6[[#This Row],[Рек. термін викон]])","v":""},null,null,{"$f":"IF(Таблица6[[#This Row],[% Заверш.]]=\"\",\"\",Таблица6[[#This Row],[% Заверш.]])","v":""}]
[null,336,null,null,null,null,null,null,null,null,null,{"$f":"IF(Таблица6[[#This Row],[Дата замовлення]]=\"\",\"\",Таблица6[[#This Row],[Дата замовлення]]+Таблица6[[#This Row],[Рек. термін викон]])","v":""},null,null,{"$f":"IF(Таблица6[[#This Row],[% Заверш.]]=\"\",\"\",Таблица6[[#This Row],[% Заверш.]])","v":""}]
[null,337,null,null,null,null,null,null,null,null,null,{"$f":"IF(Таблица6[[#This Row],[Дата замовлення]]=\"\",\"\",Таблица6[[#This Row],[Дата замовлення]]+Таблица6[[#This Row],[Рек. термін викон]])","v":""},null,null,{"$f":"IF(Таблица6[[#This Row],[% Заверш.]]=\"\",\"\",Таблица6[[#This Row],[% Заверш.]])","v":""}]
[null,338,null,null,null,null,null,null,null,null,null,{"$f":"IF(Таблица6[[#This Row],[Дата замовлення]]=\"\",\"\",Таблица6[[#This Row],[Дата замовлення]]+Таблица6[[#This Row],[Рек. термін викон]])","v":""},null,null,{"$f":"IF(Таблица6[[#This Row],[% Заверш.]]=\"\",\"\",Таблица6[[#This Row],[% Заверш.]])","v":""}]
[null,339,null,null,null,null,null,null,null,null,null,{"$f":"IF(Таблица6[[#This Row],[Дата замовлення]]=\"\",\"\",Таблица6[[#This Row],[Дата замовлення]]+Таблица6[[#This Row],[Рек. термін викон]])","v":""},null,null,{"$f":"IF(Таблица6[[#This Row],[% Заверш.]]=\"\",\"\",Таблица6[[#This Row],[% Заверш.]])","v":""}]
[null,340,null,null,null,null,null,null,null,null,null,{"$f":"IF(Таблица6[[#This Row],[Дата замовлення]]=\"\",\"\",Таблица6[[#This Row],[Дата замовлення]]+Таблица6[[#This Row],[Рек. термін викон]])","v":""},null,null,{"$f":"IF(Таблица6[[#This Row],[% Заверш.]]=\"\",\"\",Таблица6[[#This Row],[% Заверш.]])","v":""}]
[null,341,null,null,null,null,null,null,null,null,null,{"$f":"IF(Таблица6[[#This Row],[Дата замовлення]]=\"\",\"\",Таблица6[[#This Row],[Дата замовлення]]+Таблица6[[#This Row],[Рек. термін викон]])","v":""},null,null,{"$f":"IF(Таблица6[[#This Row],[% Заверш.]]=\"\",\"\",Таблица6[[#This Row],[% Заверш.]])","v":""}]
[null,342,null,null,null,null,null,null,null,null,null,{"$f":"IF(Таблица6[[#This Row],[Дата замовлення]]=\"\",\"\",Таблица6[[#This Row],[Дата замовлення]]+Таблица6[[#This Row],[Рек. термін викон]])","v":""},null,null,{"$f":"IF(Таблица6[[#This Row],[% Заверш.]]=\"\",\"\",Таблица6[[#This Row],[% Заверш.]])","v":""}]
[null,343,null,null,null,null,null,null,null,null,null,{"$f":"IF(Таблица6[[#This Row],[Дата замовлення]]=\"\",\"\",Таблица6[[#This Row],[Дата замовлення]]+Таблица6[[#This Row],[Рек. термін викон]])","v":""},null,null,{"$f":"IF(Таблица6[[#This Row],[% Заверш.]]=\"\",\"\",Таблица6[[#This Row],[% Заверш.]])","v":""}]
[null,344,null,null,null,null,null,null,null,null,null,{"$f":"IF(Таблица6[[#This Row],[Дата замовлення]]=\"\",\"\",Таблица6[[#This Row],[Дата замовлення]]+Таблица6[[#This Row],[Рек. термін викон]])","v":""},null,null,{"$f":"IF(Таблица6[[#This Row],[% Заверш.]]=\"\",\"\",Таблица6[[#This Row],[% Заверш.]])","v":""}]
[null,345,null,null,null,null,null,null,null,null,null,{"$f":"IF(Таблица6[[#This Row],[Дата замовлення]]=\"\",\"\",Таблица6[[#This Row],[Дата замовлення]]+Таблица6[[#This Row],[Рек. термін викон]])","v":""},null,null,{"$f":"IF(Таблица6[[#This Row],[% Заверш.]]=\"\",\"\",Таблица6[[#This Row],[% Заверш.]])","v":""}]
[null,346,null,null,null,null,null,null,null,null,null,{"$f":"IF(Таблица6[[#This Row],[Дата замовлення]]=\"\",\"\",Таблица6[[#This Row],[Дата замовлення]]+Таблица6[[#This Row],[Рек. термін викон]])","v":""},null,null,{"$f":"IF(Таблица6[[#This Row],[% Заверш.]]=\"\",\"\",Таблица6[[#This Row],[% Заверш.]])","v":""}]
[null,347,null,null,null,null,null,null,null,null,null,{"$f":"IF(Таблица6[[#This Row],[Дата замовлення]]=\"\",\"\",Таблица6[[#This Row],[Дата замовлення]]+Таблица6[[#This Row],[Рек. термін викон]])","v":""},null,null,{"$f":"IF(Таблица6[[#This Row],[% Заверш.]]=\"\",\"\",Таблица6[[#This Row],[% Заверш.]])","v":""}]
[null,348,null,null,null,null,null,null,null,null,null,{"$f":"IF(Таблица6[[#This Row],[Дата замовлення]]=\"\",\"\",Таблица6[[#This Row],[Дата замовлення]]+Таблица6[[#This Row],[Рек. термін викон]])","v":""},null,null,{"$f":"IF(Таблица6[[#This Row],[% Заверш.]]=\"\",\"\",Таблица6[[#This Row],[% Заверш.]])","v":""}]
[null,349,null,null,null,null,null,null,null,null,null,{"$f":"IF(Таблица6[[#This Row],[Дата замовлення]]=\"\",\"\",Таблица6[[#This Row],[Дата замовлення]]+Таблица6[[#This Row],[Рек. термін викон]])","v":""},null,null,{"$f":"IF(Таблица6[[#This Row],[% Заверш.]]=\"\",\"\",Таблица6[[#This Row],[% Заверш.]])","v":""}]
[null,350,null,null,null,null,null,null,null,null,null,{"$f":"IF(Таблица6[[#This Row],[Дата замовлення]]=\"\",\"\",Таблица6[[#This Row],[Дата замовлення]]+Таблица6[[#This Row],[Рек. термін викон]])","v":""},null,null,{"$f":"IF(Таблица6[[#This Row],[% Заверш.]]=\"\",\"\",Таблица6[[#This Row],[% Заверш.]])","v":""}]
[null,351,null,null,null,null,null,null,null,null,null,{"$f":"IF(Таблица6[[#This Row],[Дата замовлення]]=\"\",\"\",Таблица6[[#This Row],[Дата замовлення]]+Таблица6[[#This Row],[Рек. термін викон]])","v":""},null,null,{"$f":"IF(Таблица6[[#This Row],[% Заверш.]]=\"\",\"\",Таблица6[[#This Row],[% Заверш.]])","v":""}]
[null,352,null,null,null,null,null,null,null,null,null,{"$f":"IF(Таблица6[[#This Row],[Дата замовлення]]=\"\",\"\",Таблица6[[#This Row],[Дата замовлення]]+Таблица6[[#This Row],[Рек. термін викон]])","v":""},null,null,{"$f":"IF(Таблица6[[#This Row],[% Заверш.]]=\"\",\"\",Таблица6[[#This Row],[% Заверш.]])","v":""}]
[null,353,null,null,null,null,null,null,null,null,null,{"$f":"IF(Таблица6[[#This Row],[Дата замовлення]]=\"\",\"\",Таблица6[[#This Row],[Дата замовлення]]+Таблица6[[#This Row],[Рек. термін викон]])","v":""},null,null,{"$f":"IF(Таблица6[[#This Row],[% Заверш.]]=\"\",\"\",Таблица6[[#This Row],[% Заверш.]])","v":""}]
[null,354,null,null,null,null,null,null,null,null,null,{"$f":"IF(Таблица6[[#This Row],[Дата замовлення]]=\"\",\"\",Таблица6[[#This Row],[Дата замовлення]]+Таблица6[[#This Row],[Рек. термін викон]])","v":""},null,null,{"$f":"IF(Таблица6[[#This Row],[% Заверш.]]=\"\",\"\",Таблица6[[#This Row],[% Заверш.]])","v":""}]
[null,355,null,null,null,null,null,null,null,null,null,{"$f":"IF(Таблица6[[#This Row],[Дата замовлення]]=\"\",\"\",Таблица6[[#This Row],[Дата замовлення]]+Таблица6[[#This Row],[Рек. термін викон]])","v":""},null,null,{"$f":"IF(Таблица6[[#This Row],[% Заверш.]]=\"\",\"\",Таблица6[[#This Row],[% Заверш.]])","v":""}]
[null,356,null,null,null,null,null,null,null,null,null,{"$f":"IF(Таблица6[[#This Row],[Дата замовлення]]=\"\",\"\",Таблица6[[#This Row],[Дата замовлення]]+Таблица6[[#This Row],[Рек. термін викон]])","v":""},null,null,{"$f":"IF(Таблица6[[#This Row],[% Заверш.]]=\"\",\"\",Таблица6[[#This Row],[% Заверш.]])","v":""}]
[null,357,null,null,null,null,null,null,null,null,null,{"$f":"IF(Таблица6[[#This Row],[Дата замовлення]]=\"\",\"\",Таблица6[[#This Row],[Дата замовлення]]+Таблица6[[#This Row],[Рек. термін викон]])","v":""},null,null,{"$f":"IF(Таблица6[[#This Row],[% Заверш.]]=\"\",\"\",Таблица6[[#This Row],[% Заверш.]])","v":""}]
[null,358,null,null,null,null,null,null,null,null,null,{"$f":"IF(Таблица6[[#This Row],[Дата замовлення]]=\"\",\"\",Таблица6[[#This Row],[Дата замовлення]]+Таблица6[[#This Row],[Рек. термін викон]])","v":""},null,null,{"$f":"IF(Таблица6[[#This Row],[% Заверш.]]=\"\",\"\",Таблица6[[#This Row],[% Заверш.]])","v":""}]
[null,359,null,null,null,null,null,null,null,null,null,{"$f":"IF(Таблица6[[#This Row],[Дата замовлення]]=\"\",\"\",Таблица6[[#This Row],[Дата замовлення]]+Таблица6[[#This Row],[Рек. термін викон]])","v":""},null,null,{"$f":"IF(Таблица6[[#This Row],[% Заверш.]]=\"\",\"\",Таблица6[[#This Row],[% Заверш.]])","v":""}]
[null,360,null,null,null,null,null,null,null,null,null,{"$f":"IF(Таблица6[[#This Row],[Дата замовлення]]=\"\",\"\",Таблица6[[#This Row],[Дата замовлення]]+Таблица6[[#This Row],[Рек. термін викон]])","v":""},null,null,{"$f":"IF(Таблица6[[#This Row],[% Заверш.]]=\"\",\"\",Таблица6[[#This Row],[% Заверш.]])","v":""}]
[null,361,null,null,null,null,null,null,null,null,null,{"$f":"IF(Таблица6[[#This Row],[Дата замовлення]]=\"\",\"\",Таблица6[[#This Row],[Дата замовлення]]+Таблица6[[#This Row],[Рек. термін викон]])","v":""},null,null,{"$f":"IF(Таблица6[[#This Row],[% Заверш.]]=\"\",\"\",Таблица6[[#This Row],[% Заверш.]])","v":""}]
[null,362,null,null,null,null,null,null,null,null,null,{"$f":"IF(Таблица6[[#This Row],[Дата замовлення]]=\"\",\"\",Таблица6[[#This Row],[Дата замовлення]]+Таблица6[[#This Row],[Рек. термін викон]])","v":""},null,null,{"$f":"IF(Таблица6[[#This Row],[% Заверш.]]=\"\",\"\",Таблица6[[#This Row],[% Заверш.]])","v":""}]
[null,363,null,null,null,null,null,null,null,null,null,{"$f":"IF(Таблица6[[#This Row],[Дата замовлення]]=\"\",\"\",Таблица6[[#This Row],[Дата замовлення]]+Таблица6[[#This Row],[Рек. термін викон]])","v":""},null,null,{"$f":"IF(Таблица6[[#This Row],[% Заверш.]]=\"\",\"\",Таблица6[[#This Row],[% Заверш.]])","v":""}]
[null,364,null,null,null,null,null,null,null,null,null,{"$f":"IF(Таблица6[[#This Row],[Дата замовлення]]=\"\",\"\",Таблица6[[#This Row],[Дата замовлення]]+Таблица6[[#This Row],[Рек. термін викон]])","v":""},null,null,{"$f":"IF(Таблица6[[#This Row],[% Заверш.]]=\"\",\"\",Таблица6[[#This Row],[% Заверш.]])","v":""}]
[null,365,null,null,null,null,null,null,null,null,null,{"$f":"IF(Таблица6[[#This Row],[Дата замовлення]]=\"\",\"\",Таблица6[[#This Row],[Дата замовлення]]+Таблица6[[#This Row],[Рек. термін викон]])","v":""},null,null,{"$f":"IF(Таблица6[[#This Row],[% Заверш.]]=\"\",\"\",Таблица6[[#This Row],[% Заверш.]])","v":""}]
[null,366,null,null,null,null,null,null,null,null,null,{"$f":"IF(Таблица6[[#This Row],[Дата замовлення]]=\"\",\"\",Таблица6[[#This Row],[Дата замовлення]]+Таблица6[[#This Row],[Рек. термін викон]])","v":""},null,null,{"$f":"IF(Таблица6[[#This Row],[% Заверш.]]=\"\",\"\",Таблица6[[#This Row],[% Заверш.]])","v":""}]
[null,367,null,null,null,null,null,null,null,null,null,{"$f":"IF(Таблица6[[#This Row],[Дата замовлення]]=\"\",\"\",Таблица6[[#This Row],[Дата замовлення]]+Таблица6[[#This Row],[Рек. термін викон]])","v":""},null,null,{"$f":"IF(Таблица6[[#This Row],[% Заверш.]]=\"\",\"\",Таблица6[[#This Row],[% Заверш.]])","v":""}]
[null,368,null,null,null,null,null,null,null,null,null,{"$f":"IF(Таблица6[[#This Row],[Дата замовлення]]=\"\",\"\",Таблица6[[#This Row],[Дата замовлення]]+Таблица6[[#This Row],[Рек. термін викон]])","v":""},null,null,{"$f":"IF(Таблица6[[#This Row],[% Заверш.]]=\"\",\"\",Таблица6[[#This Row],[% Заверш.]])","v":""}]
[null,369,null,null,null,null,null,null,null,null,null,{"$f":"IF(Таблица6[[#This Row],[Дата замовлення]]=\"\",\"\",Таблица6[[#This Row],[Дата замовлення]]+Таблица6[[#This Row],[Рек. термін викон]])","v":""},null,null,{"$f":"IF(Таблица6[[#This Row],[% Заверш.]]=\"\",\"\",Таблица6[[#This Row],[% Заверш.]])","v":""}]
[null,370,null,null,null,null,null,null,null,null,null,{"$f":"IF(Таблица6[[#This Row],[Дата замовлення]]=\"\",\"\",Таблица6[[#This Row],[Дата замовлення]]+Таблица6[[#This Row],[Рек. термін викон]])","v":""},null,null,{"$f":"IF(Таблица6[[#This Row],[% Заверш.]]=\"\",\"\",Таблица6[[#This Row],[% Заверш.]])","v":""}]
[null,371,null,null,null,null,null,null,null,null,null,{"$f":"IF(Таблица6[[#This Row],[Дата замовлення]]=\"\",\"\",Таблица6[[#This Row],[Дата замовлення]]+Таблица6[[#This Row],[Рек. термін викон]])","v":""},null,null,{"$f":"IF(Таблица6[[#This Row],[% Заверш.]]=\"\",\"\",Таблица6[[#This Row],[% Заверш.]])","v":""}]
[null,372,null,null,null,null,null,null,null,null,null,{"$f":"IF(Таблица6[[#This Row],[Дата замовлення]]=\"\",\"\",Таблица6[[#This Row],[Дата замовлення]]+Таблица6[[#This Row],[Рек. термін викон]])","v":""},null,null,{"$f":"IF(Таблица6[[#This Row],[% Заверш.]]=\"\",\"\",Таблица6[[#This Row],[% Заверш.]])","v":""}]
[null,373,null,null,null,null,null,null,null,null,null,{"$f":"IF(Таблица6[[#This Row],[Дата замовлення]]=\"\",\"\",Таблица6[[#This Row],[Дата замовлення]]+Таблица6[[#This Row],[Рек. термін викон]])","v":""},null,null,{"$f":"IF(Таблица6[[#This Row],[% Заверш.]]=\"\",\"\",Таблица6[[#This Row],[% Заверш.]])","v":""}]
[null,374,null,null,null,null,null,null,null,null,null,{"$f":"IF(Таблица6[[#This Row],[Дата замовлення]]=\"\",\"\",Таблица6[[#This Row],[Дата замовлення]]+Таблица6[[#This Row],[Рек. термін викон]])","v":""},null,null,{"$f":"IF(Таблица6[[#This Row],[% Заверш.]]=\"\",\"\",Таблица6[[#This Row],[% Заверш.]])","v":""}]
[null,375,null,null,null,null,null,null,null,null,null,{"$f":"IF(Таблица6[[#This Row],[Дата замовлення]]=\"\",\"\",Таблица6[[#This Row],[Дата замовлення]]+Таблица6[[#This Row],[Рек. термін викон]])","v":""},null,null,{"$f":"IF(Таблица6[[#This Row],[% Заверш.]]=\"\",\"\",Таблица6[[#This Row],[% Заверш.]])","v":""}]
[null,376,null,null,null,null,null,null,null,null,null,{"$f":"IF(Таблица6[[#This Row],[Дата замовлення]]=\"\",\"\",Таблица6[[#This Row],[Дата замовлення]]+Таблица6[[#This Row],[Рек. термін викон]])","v":""},null,null,{"$f":"IF(Таблица6[[#This Row],[% Заверш.]]=\"\",\"\",Таблица6[[#This Row],[% Заверш.]])","v":""}]
[null,377,null,null,null,null,null,null,null,null,null,{"$f":"IF(Таблица6[[#This Row],[Дата замовлення]]=\"\",\"\",Таблица6[[#This Row],[Дата замовлення]]+Таблица6[[#This Row],[Рек. термін викон]])","v":""},null,null,{"$f":"IF(Таблица6[[#This Row],[% Заверш.]]=\"\",\"\",Таблица6[[#This Row],[% Заверш.]])","v":""}]
[null,378,null,null,null,null,null,null,null,null,null,{"$f":"IF(Таблица6[[#This Row],[Дата замовлення]]=\"\",\"\",Таблица6[[#This Row],[Дата замовлення]]+Таблица6[[#This Row],[Рек. термін викон]])","v":""},null,null,{"$f":"IF(Таблица6[[#This Row],[% Заверш.]]=\"\",\"\",Таблица6[[#This Row],[% Заверш.]])","v":""}]
[null,379,null,null,null,null,null,null,null,null,null,{"$f":"IF(Таблица6[[#This Row],[Дата замовлення]]=\"\",\"\",Таблица6[[#This Row],[Дата замовлення]]+Таблица6[[#This Row],[Рек. термін викон]])","v":""},null,null,{"$f":"IF(Таблица6[[#This Row],[% Заверш.]]=\"\",\"\",Таблица6[[#This Row],[% Заверш.]])","v":""}]
[null,380,null,null,null,null,null,null,null,null,null,{"$f":"IF(Таблица6[[#This Row],[Дата замовлення]]=\"\",\"\",Таблица6[[#This Row],[Дата замовлення]]+Таблица6[[#This Row],[Рек. термін викон]])","v":""},null,null,{"$f":"IF(Таблица6[[#This Row],[% Заверш.]]=\"\",\"\",Таблица6[[#This Row],[% Заверш.]])","v":""}]
[null,381,null,null,null,null,null,null,null,null,null,{"$f":"IF(Таблица6[[#This Row],[Дата замовлення]]=\"\",\"\",Таблица6[[#This Row],[Дата замовлення]]+Таблица6[[#This Row],[Рек. термін викон]])","v":""},null,null,{"$f":"IF(Таблица6[[#This Row],[% Заверш.]]=\"\",\"\",Таблица6[[#This Row],[% Заверш.]])","v":""}]
[null,382,null,null,null,null,null,null,null,null,null,{"$f":"IF(Таблица6[[#This Row],[Дата замовлення]]=\"\",\"\",Таблица6[[#This Row],[Дата замовлення]]+Таблица6[[#This Row],[Рек. термін викон]])","v":""},null,null,{"$f":"IF(Таблица6[[#This Row],[% Заверш.]]=\"\",\"\",Таблица6[[#This Row],[% Заверш.]])","v":""}]
[null,383,null,null,null,null,null,null,null,null,null,{"$f":"IF(Таблица6[[#This Row],[Дата замовлення]]=\"\",\"\",Таблица6[[#This Row],[Дата замовлення]]+Таблица6[[#This Row],[Рек. термін викон]])","v":""},null,null,{"$f":"IF(Таблица6[[#This Row],[% Заверш.]]=\"\",\"\",Таблица6[[#This Row],[% Заверш.]])","v":""}]
[null,384,null,null,null,null,null,null,null,null,null,{"$f":"IF(Таблица6[[#This Row],[Дата замовлення]]=\"\",\"\",Таблица6[[#This Row],[Дата замовлення]]+Таблица6[[#This Row],[Рек. термін викон]])","v":""},null,null,{"$f":"IF(Таблица6[[#This Row],[% Заверш.]]=\"\",\"\",Таблица6[[#This Row],[% Заверш.]])","v":""}]
[null,385,null,null,null,null,null,null,null,null,null,{"$f":"IF(Таблица6[[#This Row],[Дата замовлення]]=\"\",\"\",Таблица6[[#This Row],[Дата замовлення]]+Таблица6[[#This Row],[Рек. термін викон]])","v":""},null,null,{"$f":"IF(Таблица6[[#This Row],[% Заверш.]]=\"\",\"\",Таблица6[[#This Row],[% Заверш.]])","v":""}]
[null,386,null,null,null,null,null,null,null,null,null,{"$f":"IF(Таблица6[[#This Row],[Дата замовлення]]=\"\",\"\",Таблица6[[#This Row],[Дата замовлення]]+Таблица6[[#This Row],[Рек. термін викон]])","v":""},null,null,{"$f":"IF(Таблица6[[#This Row],[% Заверш.]]=\"\",\"\",Таблица6[[#This Row],[% Заверш.]])","v":""}]
[null,387,null,null,null,null,null,null,null,null,null,{"$f":"IF(Таблица6[[#This Row],[Дата замовлення]]=\"\",\"\",Таблица6[[#This Row],[Дата замовлення]]+Таблица6[[#This Row],[Рек. термін викон]])","v":""},null,null,{"$f":"IF(Таблица6[[#This Row],[% Заверш.]]=\"\",\"\",Таблица6[[#This Row],[% Заверш.]])","v":""}]
[null,388,null,null,null,null,null,null,null,null,null,{"$f":"IF(Таблица6[[#This Row],[Дата замовлення]]=\"\",\"\",Таблица6[[#This Row],[Дата замовлення]]+Таблица6[[#This Row],[Рек. термін викон]])","v":""},null,null,{"$f":"IF(Таблица6[[#This Row],[% Заверш.]]=\"\",\"\",Таблица6[[#This Row],[% Заверш.]])","v":""}]
[null,389,null,null,null,null,null,null,null,null,null,{"$f":"IF(Таблица6[[#This Row],[Дата замовлення]]=\"\",\"\",Таблица6[[#This Row],[Дата замовлення]]+Таблица6[[#This Row],[Рек. термін викон]])","v":""},null,null,{"$f":"IF(Таблица6[[#This Row],[% Заверш.]]=\"\",\"\",Таблица6[[#This Row],[% Заверш.]])","v":""}]
[null,390,null,null,null,null,null,null,null,null,null,{"$f":"IF(Таблица6[[#This Row],[Дата замовлення]]=\"\",\"\",Таблица6[[#This Row],[Дата замовлення]]+Таблица6[[#This Row],[Рек. термін викон]])","v":""},null,null,{"$f":"IF(Таблица6[[#This Row],[% Заверш.]]=\"\",\"\",Таблица6[[#This Row],[% Заверш.]])","v":""}]
[null,391,null,null,null,null,null,null,null,null,null,{"$f":"IF(Таблица6[[#This Row],[Дата замовлення]]=\"\",\"\",Таблица6[[#This Row],[Дата замовлення]]+Таблица6[[#This Row],[Рек. термін викон]])","v":""},null,null,{"$f":"IF(Таблица6[[#This Row],[% Заверш.]]=\"\",\"\",Таблица6[[#This Row],[% Заверш.]])","v":""}]
[null,392,null,null,null,null,null,null,null,null,null,{"$f":"IF(Таблица6[[#This Row],[Дата замовлення]]=\"\",\"\",Таблица6[[#This Row],[Дата замовлення]]+Таблица6[[#This Row],[Рек. термін викон]])","v":""},null,null,{"$f":"IF(Таблица6[[#This Row],[% Заверш.]]=\"\",\"\",Таблица6[[#This Row],[% Заверш.]])","v":""}]
[null,393,null,null,null,null,null,null,null,null,null,{"$f":"IF(Таблица6[[#This Row],[Дата замовлення]]=\"\",\"\",Таблица6[[#This Row],[Дата замовлення]]+Таблица6[[#This Row],[Рек. термін викон]])","v":""},null,null,{"$f":"IF(Таблица6[[#This Row],[% Заверш.]]=\"\",\"\",Таблица6[[#This Row],[% Заверш.]])","v":""}]
[null,394,null,null,null,null,null,null,null,null,null,{"$f":"IF(Таблица6[[#This Row],[Дата замовлення]]=\"\",\"\",Таблица6[[#This Row],[Дата замовлення]]+Таблица6[[#This Row],[Рек. термін викон]])","v":""},null,null,{"$f":"IF(Таблица6[[#This Row],[% Заверш.]]=\"\",\"\",Таблица6[[#This Row],[% Заверш.]])","v":""}]
[null,395,null,null,null,null,null,null,null,null,null,{"$f":"IF(Таблица6[[#This Row],[Дата замовлення]]=\"\",\"\",Таблица6[[#This Row],[Дата замовлення]]+Таблица6[[#This Row],[Рек. термін викон]])","v":""},null,null,{"$f":"IF(Таблица6[[#This Row],[% Заверш.]]=\"\",\"\",Таблица6[[#This Row],[% Заверш.]])","v":""}]
[null,396,null,null,null,null,null,null,null,null,null,{"$f":"IF(Таблица6[[#This Row],[Дата замовлення]]=\"\",\"\",Таблица6[[#This Row],[Дата замовлення]]+Таблица6[[#This Row],[Рек. термін викон]])","v":""},null,null,{"$f":"IF(Таблица6[[#This Row],[% Заверш.]]=\"\",\"\",Таблица6[[#This Row],[% Заверш.]])","v":""}]
[null,397,null,null,null,null,null,null,null,null,null,{"$f":"IF(Таблица6[[#This Row],[Дата замовлення]]=\"\",\"\",Таблица6[[#This Row],[Дата замовлення]]+Таблица6[[#This Row],[Рек. термін викон]])","v":""},null,null,{"$f":"IF(Таблица6[[#This Row],[% Заверш.]]=\"\",\"\",Таблица6[[#This Row],[% Заверш.]])","v":""}]
[null,398,null,null,null,null,null,null,null,null,null,{"$f":"IF(Таблица6[[#This Row],[Дата замовлення]]=\"\",\"\",Таблица6[[#This Row],[Дата замовлення]]+Таблица6[[#This Row],[Рек. термін викон]])","v":""},null,null,{"$f":"IF(Таблица6[[#This Row],[% Заверш.]]=\"\",\"\",Таблица6[[#This Row],[% Заверш.]])","v":""}]
[null,399,null,null,null,null,null,null,null,null,null,{"$f":"IF(Таблица6[[#This Row],[Дата замовлення]]=\"\",\"\",Таблица6[[#This Row],[Дата замовлення]]+Таблица6[[#This Row],[Рек. термін викон]])","v":""},null,null,{"$f":"IF(Таблица6[[#This Row],[% Заверш.]]=\"\",\"\",Таблица6[[#This Row],[% Заверш.]])","v":""}]
[null,400,null,null,null,null,null,null,null,null,null,{"$f":"IF(Таблица6[[#This Row],[Дата замовлення]]=\"\",\"\",Таблица6[[#This Row],[Дата замовлення]]+Таблица6[[#This Row],[Рек. термін викон]])","v":""},null,null,{"$f":"IF(Таблица6[[#This Row],[% Заверш.]]=\"\",\"\",Таблица6[[#This Row],[% Заверш.]])","v":""}]
[null,401,null,null,null,null,null,null,null,null,null,{"$f":"IF(Таблица6[[#This Row],[Дата замовлення]]=\"\",\"\",Таблица6[[#This Row],[Дата замовлення]]+Таблица6[[#This Row],[Рек. термін викон]])","v":""},null,null,{"$f":"IF(Таблица6[[#This Row],[% Заверш.]]=\"\",\"\",Таблица6[[#This Row],[% Заверш.]])","v":""}]
[null,402,null,null,null,null,null,null,null,null,null,{"$f":"IF(Таблица6[[#This Row],[Дата замовлення]]=\"\",\"\",Таблица6[[#This Row],[Дата замовлення]]+Таблица6[[#This Row],[Рек. термін викон]])","v":""},null,null,{"$f":"IF(Таблица6[[#This Row],[% Заверш.]]=\"\",\"\",Таблица6[[#This Row],[% Заверш.]])","v":""}]
[null,403,null,null,null,null,null,null,null,null,null,{"$f":"IF(Таблица6[[#This Row],[Дата замовлення]]=\"\",\"\",Таблица6[[#This Row],[Дата замовлення]]+Таблица6[[#This Row],[Рек. термін викон]])","v":""},null,null,{"$f":"IF(Таблица6[[#This Row],[% Заверш.]]=\"\",\"\",Таблица6[[#This Row],[% Заверш.]])","v":""}]
[null,404,null,null,null,null,null,null,null,null,null,{"$f":"IF(Таблица6[[#This Row],[Дата замовлення]]=\"\",\"\",Таблица6[[#This Row],[Дата замовлення]]+Таблица6[[#This Row],[Рек. термін викон]])","v":""},null,null,{"$f":"IF(Таблица6[[#This Row],[% Заверш.]]=\"\",\"\",Таблица6[[#This Row],[% Заверш.]])","v":""}]
[null,405,null,null,null,null,null,null,null,null,null,{"$f":"IF(Таблица6[[#This Row],[Дата замовлення]]=\"\",\"\",Таблица6[[#This Row],[Дата замовлення]]+Таблица6[[#This Row],[Рек. термін викон]])","v":""},null,null,{"$f":"IF(Таблица6[[#This Row],[% Заверш.]]=\"\",\"\",Таблица6[[#This Row],[% Заверш.]])","v":""}]
[null,406,null,null,null,null,null,null,null,null,null,{"$f":"IF(Таблица6[[#This Row],[Дата замовлення]]=\"\",\"\",Таблица6[[#This Row],[Дата замовлення]]+Таблица6[[#This Row],[Рек. термін викон]])","v":""},null,null,{"$f":"IF(Таблица6[[#This Row],[% Заверш.]]=\"\",\"\",Таблица6[[#This Row],[% Заверш.]])","v":""}]
[null,407,null,null,null,null,null,null,null,null,null,{"$f":"IF(Таблица6[[#This Row],[Дата замовлення]]=\"\",\"\",Таблица6[[#This Row],[Дата замовлення]]+Таблица6[[#This Row],[Рек. термін викон]])","v":""},null,null,{"$f":"IF(Таблица6[[#This Row],[% Заверш.]]=\"\",\"\",Таблица6[[#This Row],[% Заверш.]])","v":""}]
[null,408,null,null,null,null,null,null,null,null,null,{"$f":"IF(Таблица6[[#This Row],[Дата замовлення]]=\"\",\"\",Таблица6[[#This Row],[Дата замовлення]]+Таблица6[[#This Row],[Рек. термін викон]])","v":""},null,null,{"$f":"IF(Таблица6[[#This Row],[% Заверш.]]=\"\",\"\",Таблица6[[#This Row],[% Заверш.]])","v":""}]
[null,409,null,null,null,null,null,null,null,null,null,{"$f":"IF(Таблица6[[#This Row],[Дата замовлення]]=\"\",\"\",Таблица6[[#This Row],[Дата замовлення]]+Таблица6[[#This Row],[Рек. термін викон]])","v":""},null,null,{"$f":"IF(Таблица6[[#This Row],[% Заверш.]]=\"\",\"\",Таблица6[[#This Row],[% Заверш.]])","v":""}]
[null,410,null,null,null,null,null,null,null,null,null,{"$f":"IF(Таблица6[[#This Row],[Дата замовлення]]=\"\",\"\",Таблица6[[#This Row],[Дата замовлення]]+Таблица6[[#This Row],[Рек. термін викон]])","v":""},null,null,{"$f":"IF(Таблица6[[#This Row],[% Заверш.]]=\"\",\"\",Таблица6[[#This Row],[% Заверш.]])","v":""}]
[null,411,null,null,null,null,null,null,null,null,null,{"$f":"IF(Таблица6[[#This Row],[Дата замовлення]]=\"\",\"\",Таблица6[[#This Row],[Дата замовлення]]+Таблица6[[#This Row],[Рек. термін викон]])","v":""},null,null,{"$f":"IF(Таблица6[[#This Row],[% Заверш.]]=\"\",\"\",Таблица6[[#This Row],[% Заверш.]])","v":""}]
[null,412,null,null,null,null,null,null,null,null,null,{"$f":"IF(Таблица6[[#This Row],[Дата замовлення]]=\"\",\"\",Таблица6[[#This Row],[Дата замовлення]]+Таблица6[[#This Row],[Рек. термін викон]])","v":""},null,null,{"$f":"IF(Таблица6[[#This Row],[% Заверш.]]=\"\",\"\",Таблица6[[#This Row],[% Заверш.]])","v":""}]
[null,413,null,null,null,null,null,null,null,null,null,{"$f":"IF(Таблица6[[#This Row],[Дата замовлення]]=\"\",\"\",Таблица6[[#This Row],[Дата замовлення]]+Таблица6[[#This Row],[Рек. термін викон]])","v":""},null,null,{"$f":"IF(Таблица6[[#This Row],[% Заверш.]]=\"\",\"\",Таблица6[[#This Row],[% Заверш.]])","v":""}]
[null,414,null,null,null,null,null,null,null,null,null,{"$f":"IF(Таблица6[[#This Row],[Дата замовлення]]=\"\",\"\",Таблица6[[#This Row],[Дата замовлення]]+Таблица6[[#This Row],[Рек. термін викон]])","v":""},null,null,{"$f":"IF(Таблица6[[#This Row],[% Заверш.]]=\"\",\"\",Таблица6[[#This Row],[% Заверш.]])","v":""}]
[null,415,null,null,null,null,null,null,null,null,null,{"$f":"IF(Таблица6[[#This Row],[Дата замовлення]]=\"\",\"\",Таблица6[[#This Row],[Дата замовлення]]+Таблица6[[#This Row],[Рек. термін викон]])","v":""},null,null,{"$f":"IF(Таблица6[[#This Row],[% Заверш.]]=\"\",\"\",Таблица6[[#This Row],[% Заверш.]])","v":""}]
[null,416,null,null,null,null,null,null,null,null,null,{"$f":"IF(Таблица6[[#This Row],[Дата замовлення]]=\"\",\"\",Таблица6[[#This Row],[Дата замовлення]]+Таблица6[[#This Row],[Рек. термін викон]])","v":""},null,null,{"$f":"IF(Таблица6[[#This Row],[% Заверш.]]=\"\",\"\",Таблица6[[#This Row],[% Заверш.]])","v":""}]
[null,417,null,null,null,null,null,null,null,null,null,{"$f":"IF(Таблица6[[#This Row],[Дата замовлення]]=\"\",\"\",Таблица6[[#This Row],[Дата замовлення]]+Таблица6[[#This Row],[Рек. термін викон]])","v":""},null,null,{"$f":"IF(Таблица6[[#This Row],[% Заверш.]]=\"\",\"\",Таблица6[[#This Row],[% Заверш.]])","v":""}]
[null,418,null,null,null,null,null,null,null,null,null,{"$f":"IF(Таблица6[[#This Row],[Дата замовлення]]=\"\",\"\",Таблица6[[#This Row],[Дата замовлення]]+Таблица6[[#This Row],[Рек. термін викон]])","v":""},null,null,{"$f":"IF(Таблица6[[#This Row],[% Заверш.]]=\"\",\"\",Таблица6[[#This Row],[% Заверш.]])","v":""}]
[null,419,null,null,null,null,null,null,null,null,null,{"$f":"IF(Таблица6[[#This Row],[Дата замовлення]]=\"\",\"\",Таблица6[[#This Row],[Дата замовлення]]+Таблица6[[#This Row],[Рек. термін викон]])","v":""},null,null,{"$f":"IF(Таблица6[[#This Row],[% Заверш.]]=\"\",\"\",Таблица6[[#This Row],[% Заверш.]])","v":""}]
[null,420,null,null,null,null,null,null,null,null,null,{"$f":"IF(Таблица6[[#This Row],[Дата замовлення]]=\"\",\"\",Таблица6[[#This Row],[Дата замовлення]]+Таблица6[[#This Row],[Рек. термін викон]])","v":""},null,null,{"$f":"IF(Таблица6[[#This Row],[% Заверш.]]=\"\",\"\",Таблица6[[#This Row],[% Заверш.]])","v":""}]
[null,421,null,null,null,null,null,null,null,null,null,{"$f":"IF(Таблица6[[#This Row],[Дата замовлення]]=\"\",\"\",Таблица6[[#This Row],[Дата замовлення]]+Таблица6[[#This Row],[Рек. термін викон]])","v":""},null,null,{"$f":"IF(Таблица6[[#This Row],[% Заверш.]]=\"\",\"\",Таблица6[[#This Row],[% Заверш.]])","v":""}]
[null,422,null,null,null,null,null,null,null,null,null,{"$f":"IF(Таблица6[[#This Row],[Дата замовлення]]=\"\",\"\",Таблица6[[#This Row],[Дата замовлення]]+Таблица6[[#This Row],[Рек. термін викон]])","v":""},null,null,{"$f":"IF(Таблица6[[#This Row],[% Заверш.]]=\"\",\"\",Таблица6[[#This Row],[% Заверш.]])","v":""}]
[null,423,null,null,null,null,null,null,null,null,null,{"$f":"IF(Таблица6[[#This Row],[Дата замовлення]]=\"\",\"\",Таблица6[[#This Row],[Дата замовлення]]+Таблица6[[#This Row],[Рек. термін викон]])","v":""},null,null,{"$f":"IF(Таблица6[[#This Row],[% Заверш.]]=\"\",\"\",Таблица6[[#This Row],[% Заверш.]])","v":""}]
[null,424,null,null,null,null,null,null,null,null,null,{"$f":"IF(Таблица6[[#This Row],[Дата замовлення]]=\"\",\"\",Таблица6[[#This Row],[Дата замовлення]]+Таблица6[[#This Row],[Рек. термін викон]])","v":""},null,null,{"$f":"IF(Таблица6[[#This Row],[% Заверш.]]=\"\",\"\",Таблица6[[#This Row],[% Заверш.]])","v":""}]
[null,425,null,null,null,null,null,null,null,null,null,{"$f":"IF(Таблица6[[#This Row],[Дата замовлення]]=\"\",\"\",Таблица6[[#This Row],[Дата замовлення]]+Таблица6[[#This Row],[Рек. термін викон]])","v":""},null,null,{"$f":"IF(Таблица6[[#This Row],[% Заверш.]]=\"\",\"\",Таблица6[[#This Row],[% Заверш.]])","v":""}]
[null,426,null,null,null,null,null,null,null,null,null,{"$f":"IF(Таблица6[[#This Row],[Дата замовлення]]=\"\",\"\",Таблица6[[#This Row],[Дата замовлення]]+Таблица6[[#This Row],[Рек. термін викон]])","v":""},null,null,{"$f":"IF(Таблица6[[#This Row],[% Заверш.]]=\"\",\"\",Таблица6[[#This Row],[% Заверш.]])","v":""}]
[null,427,null,null,null,null,null,null,null,null,null,{"$f":"IF(Таблица6[[#This Row],[Дата замовлення]]=\"\",\"\",Таблица6[[#This Row],[Дата замовлення]]+Таблица6[[#This Row],[Рек. термін викон]])","v":""},null,null,{"$f":"IF(Таблица6[[#This Row],[% Заверш.]]=\"\",\"\",Таблица6[[#This Row],[% Заверш.]])","v":""}]
[null,428,null,null,null,null,null,null,null,null,null,{"$f":"IF(Таблица6[[#This Row],[Дата замовлення]]=\"\",\"\",Таблица6[[#This Row],[Дата замовлення]]+Таблица6[[#This Row],[Рек. термін викон]])","v":""},null,null,{"$f":"IF(Таблица6[[#This Row],[% Заверш.]]=\"\",\"\",Таблица6[[#This Row],[% Заверш.]])","v":""}]
[null,429,null,null,null,null,null,null,null,null,null,{"$f":"IF(Таблица6[[#This Row],[Дата замовлення]]=\"\",\"\",Таблица6[[#This Row],[Дата замовлення]]+Таблица6[[#This Row],[Рек. термін викон]])","v":""},null,null,{"$f":"IF(Таблица6[[#This Row],[% Заверш.]]=\"\",\"\",Таблица6[[#This Row],[% Заверш.]])","v":""}]
[null,430,null,null,null,null,null,null,null,null,null,{"$f":"IF(Таблица6[[#This Row],[Дата замовлення]]=\"\",\"\",Таблица6[[#This Row],[Дата замовлення]]+Таблица6[[#This Row],[Рек. термін викон]])","v":""},null,null,{"$f":"IF(Таблица6[[#This Row],[% Заверш.]]=\"\",\"\",Таблица6[[#This Row],[% Заверш.]])","v":""}]
[null,431,null,null,null,null,null,null,null,null,null,{"$f":"IF(Таблица6[[#This Row],[Дата замовлення]]=\"\",\"\",Таблица6[[#This Row],[Дата замовлення]]+Таблица6[[#This Row],[Рек. термін викон]])","v":""},null,null,{"$f":"IF(Таблица6[[#This Row],[% Заверш.]]=\"\",\"\",Таблица6[[#This Row],[% Заверш.]])","v":""}]
[null,432,null,null,null,null,null,null,null,null,null,{"$f":"IF(Таблица6[[#This Row],[Дата замовлення]]=\"\",\"\",Таблица6[[#This Row],[Дата замовлення]]+Таблица6[[#This Row],[Рек. термін викон]])","v":""},null,null,{"$f":"IF(Таблица6[[#This Row],[% Заверш.]]=\"\",\"\",Таблица6[[#This Row],[% Заверш.]])","v":""}]
[null,433,null,null,null,null,null,null,null,null,null,{"$f":"IF(Таблица6[[#This Row],[Дата замовлення]]=\"\",\"\",Таблица6[[#This Row],[Дата замовлення]]+Таблица6[[#This Row],[Рек. термін викон]])","v":""},null,null,{"$f":"IF(Таблица6[[#This Row],[% Заверш.]]=\"\",\"\",Таблица6[[#This Row],[% Заверш.]])","v":""}]
[null,434,null,null,null,null,null,null,null,null,null,{"$f":"IF(Таблица6[[#This Row],[Дата замовлення]]=\"\",\"\",Таблица6[[#This Row],[Дата замовлення]]+Таблица6[[#This Row],[Рек. термін викон]])","v":""},null,null,{"$f":"IF(Таблица6[[#This Row],[% Заверш.]]=\"\",\"\",Таблица6[[#This Row],[% Заверш.]])","v":""}]
[null,435,null,null,null,null,null,null,null,null,null,{"$f":"IF(Таблица6[[#This Row],[Дата замовлення]]=\"\",\"\",Таблица6[[#This Row],[Дата замовлення]]+Таблица6[[#This Row],[Рек. термін викон]])","v":""},null,null,{"$f":"IF(Таблица6[[#This Row],[% Заверш.]]=\"\",\"\",Таблица6[[#This Row],[% Заверш.]])","v":""}]
[null,436,null,null,null,null,null,null,null,null,null,{"$f":"IF(Таблица6[[#This Row],[Дата замовлення]]=\"\",\"\",Таблица6[[#This Row],[Дата замовлення]]+Таблица6[[#This Row],[Рек. термін викон]])","v":""},null,null,{"$f":"IF(Таблица6[[#This Row],[% Заверш.]]=\"\",\"\",Таблица6[[#This Row],[% Заверш.]])","v":""}]
[null,437,null,null,null,null,null,null,null,null,null,{"$f":"IF(Таблица6[[#This Row],[Дата замовлення]]=\"\",\"\",Таблица6[[#This Row],[Дата замовлення]]+Таблица6[[#This Row],[Рек. термін викон]])","v":""},null,null,{"$f":"IF(Таблица6[[#This Row],[% Заверш.]]=\"\",\"\",Таблица6[[#This Row],[% Заверш.]])","v":""}]
[null,438,null,null,null,null,null,null,null,null,null,{"$f":"IF(Таблица6[[#This Row],[Дата замовлення]]=\"\",\"\",Таблица6[[#This Row],[Дата замовлення]]+Таблица6[[#This Row],[Рек. термін викон]])","v":""},null,null,{"$f":"IF(Таблица6[[#This Row],[% Заверш.]]=\"\",\"\",Таблица6[[#This Row],[% Заверш.]])","v":""}]
[null,439,null,null,null,null,null,null,null,null,null,{"$f":"IF(Таблица6[[#This Row],[Дата замовлення]]=\"\",\"\",Таблица6[[#This Row],[Дата замовлення]]+Таблица6[[#This Row],[Рек. термін викон]])","v":""},null,null,{"$f":"IF(Таблица6[[#This Row],[% Заверш.]]=\"\",\"\",Таблица6[[#This Row],[% Заверш.]])","v":""}]
[null,440,null,null,null,null,null,null,null,null,null,{"$f":"IF(Таблица6[[#This Row],[Дата замовлення]]=\"\",\"\",Таблица6[[#This Row],[Дата замовлення]]+Таблица6[[#This Row],[Рек. термін викон]])","v":""},null,null,{"$f":"IF(Таблица6[[#This Row],[% Заверш.]]=\"\",\"\",Таблица6[[#This Row],[% Заверш.]])","v":""}]
[null,441,null,null,null,null,null,null,null,null,null,{"$f":"IF(Таблица6[[#This Row],[Дата замовлення]]=\"\",\"\",Таблица6[[#This Row],[Дата замовлення]]+Таблица6[[#This Row],[Рек. термін викон]])","v":""},null,null,{"$f":"IF(Таблица6[[#This Row],[% Заверш.]]=\"\",\"\",Таблица6[[#This Row],[% Заверш.]])","v":""}]
[null,442,null,null,null,null,null,null,null,null,null,{"$f":"IF(Таблица6[[#This Row],[Дата замовлення]]=\"\",\"\",Таблица6[[#This Row],[Дата замовлення]]+Таблица6[[#This Row],[Рек. термін викон]])","v":""},null,null,{"$f":"IF(Таблица6[[#This Row],[% Заверш.]]=\"\",\"\",Таблица6[[#This Row],[% Заверш.]])","v":""}]
[null,443,null,null,null,null,null,null,null,null,null,{"$f":"IF(Таблица6[[#This Row],[Дата замовлення]]=\"\",\"\",Таблица6[[#This Row],[Дата замовлення]]+Таблица6[[#This Row],[Рек. термін викон]])","v":""},null,null,{"$f":"IF(Таблица6[[#This Row],[% Заверш.]]=\"\",\"\",Таблица6[[#This Row],[% Заверш.]])","v":""}]
[null,444,null,null,null,null,null,null,null,null,null,{"$f":"IF(Таблица6[[#This Row],[Дата замовлення]]=\"\",\"\",Таблица6[[#This Row],[Дата замовлення]]+Таблица6[[#This Row],[Рек. термін викон]])","v":""},null,null,{"$f":"IF(Таблица6[[#This Row],[% Заверш.]]=\"\",\"\",Таблица6[[#This Row],[% Заверш.]])","v":""}]
[null,445,null,null,null,null,null,null,null,null,null,{"$f":"IF(Таблица6[[#This Row],[Дата замовлення]]=\"\",\"\",Таблица6[[#This Row],[Дата замовлення]]+Таблица6[[#This Row],[Рек. термін викон]])","v":""},null,null,{"$f":"IF(Таблица6[[#This Row],[% Заверш.]]=\"\",\"\",Таблица6[[#This Row],[% Заверш.]])","v":""}]
[null,446,null,null,null,null,null,null,null,null,null,{"$f":"IF(Таблица6[[#This Row],[Дата замовлення]]=\"\",\"\",Таблица6[[#This Row],[Дата замовлення]]+Таблица6[[#This Row],[Рек. термін викон]])","v":""},null,null,{"$f":"IF(Таблица6[[#This Row],[% Заверш.]]=\"\",\"\",Таблица6[[#This Row],[% Заверш.]])","v":""}]
[null,447,null,null,null,null,null,null,null,null,null,{"$f":"IF(Таблица6[[#This Row],[Дата замовлення]]=\"\",\"\",Таблица6[[#This Row],[Дата замовлення]]+Таблица6[[#This Row],[Рек. термін викон]])","v":""},null,null,{"$f":"IF(Таблица6[[#This Row],[% Заверш.]]=\"\",\"\",Таблица6[[#This Row],[% Заверш.]])","v":""}]
[null,448,null,null,null,null,null,null,null,null,null,{"$f":"IF(Таблица6[[#This Row],[Дата замовлення]]=\"\",\"\",Таблица6[[#This Row],[Дата замовлення]]+Таблица6[[#This Row],[Рек. термін викон]])","v":""},null,null,{"$f":"IF(Таблица6[[#This Row],[% Заверш.]]=\"\",\"\",Таблица6[[#This Row],[% Заверш.]])","v":""}]
[null,449,null,null,null,null,null,null,null,null,null,{"$f":"IF(Таблица6[[#This Row],[Дата замовлення]]=\"\",\"\",Таблица6[[#This Row],[Дата замовлення]]+Таблица6[[#This Row],[Рек. термін викон]])","v":""},null,null,{"$f":"IF(Таблица6[[#This Row],[% Заверш.]]=\"\",\"\",Таблица6[[#This Row],[% Заверш.]])","v":""}]
[null,450,null,null,null,null,null,null,null,null,null,{"$f":"IF(Таблица6[[#This Row],[Дата замовлення]]=\"\",\"\",Таблица6[[#This Row],[Дата замовлення]]+Таблица6[[#This Row],[Рек. термін викон]])","v":""},null,null,{"$f":"IF(Таблица6[[#This Row],[% Заверш.]]=\"\",\"\",Таблица6[[#This Row],[% Заверш.]])","v":""}]
[null,451,null,null,null,null,null,null,null,null,null,{"$f":"IF(Таблица6[[#This Row],[Дата замовлення]]=\"\",\"\",Таблица6[[#This Row],[Дата замовлення]]+Таблица6[[#This Row],[Рек. термін викон]])","v":""},null,null,{"$f":"IF(Таблица6[[#This Row],[% Заверш.]]=\"\",\"\",Таблица6[[#This Row],[% Заверш.]])","v":""}]
[null,452,null,null,null,null,null,null,null,null,null,{"$f":"IF(Таблица6[[#This Row],[Дата замовлення]]=\"\",\"\",Таблица6[[#This Row],[Дата замовлення]]+Таблица6[[#This Row],[Рек. термін викон]])","v":""},null,null,{"$f":"IF(Таблица6[[#This Row],[% Заверш.]]=\"\",\"\",Таблица6[[#This Row],[% Заверш.]])","v":""}]
[null,453,null,null,null,null,null,null,null,null,null,{"$f":"IF(Таблица6[[#This Row],[Дата замовлення]]=\"\",\"\",Таблица6[[#This Row],[Дата замовлення]]+Таблица6[[#This Row],[Рек. термін викон]])","v":""},null,null,{"$f":"IF(Таблица6[[#This Row],[% Заверш.]]=\"\",\"\",Таблица6[[#This Row],[% Заверш.]])","v":""}]
[null,454,null,null,null,null,null,null,null,null,null,{"$f":"IF(Таблица6[[#This Row],[Дата замовлення]]=\"\",\"\",Таблица6[[#This Row],[Дата замовлення]]+Таблица6[[#This Row],[Рек. термін викон]])","v":""},null,null,{"$f":"IF(Таблица6[[#This Row],[% Заверш.]]=\"\",\"\",Таблица6[[#This Row],[% Заверш.]])","v":""}]
[null,455,null,null,null,null,null,null,null,null,null,{"$f":"IF(Таблица6[[#This Row],[Дата замовлення]]=\"\",\"\",Таблица6[[#This Row],[Дата замовлення]]+Таблица6[[#This Row],[Рек. термін викон]])","v":""},null,null,{"$f":"IF(Таблица6[[#This Row],[% Заверш.]]=\"\",\"\",Таблица6[[#This Row],[% Заверш.]])","v":""}]
[null,456,null,null,null,null,null,null,null,null,null,{"$f":"IF(Таблица6[[#This Row],[Дата замовлення]]=\"\",\"\",Таблица6[[#This Row],[Дата замовлення]]+Таблица6[[#This Row],[Рек. термін викон]])","v":""},null,null,{"$f":"IF(Таблица6[[#This Row],[% Заверш.]]=\"\",\"\",Таблица6[[#This Row],[% Заверш.]])","v":""}]
[null,457,null,null,null,null,null,null,null,null,null,{"$f":"IF(Таблица6[[#This Row],[Дата замовлення]]=\"\",\"\",Таблица6[[#This Row],[Дата замовлення]]+Таблица6[[#This Row],[Рек. термін викон]])","v":""},null,null,{"$f":"IF(Таблица6[[#This Row],[% Заверш.]]=\"\",\"\",Таблица6[[#This Row],[% Заверш.]])","v":""}]
[null,458,null,null,null,null,null,null,null,null,null,{"$f":"IF(Таблица6[[#This Row],[Дата замовлення]]=\"\",\"\",Таблица6[[#This Row],[Дата замовлення]]+Таблица6[[#This Row],[Рек. термін викон]])","v":""},null,null,{"$f":"IF(Таблица6[[#This Row],[% Заверш.]]=\"\",\"\",Таблица6[[#This Row],[% Заверш.]])","v":""}]
[null,459,null,null,null,null,null,null,null,null,null,{"$f":"IF(Таблица6[[#This Row],[Дата замовлення]]=\"\",\"\",Таблица6[[#This Row],[Дата замовлення]]+Таблица6[[#This Row],[Рек. термін викон]])","v":""},null,null,{"$f":"IF(Таблица6[[#This Row],[% Заверш.]]=\"\",\"\",Таблица6[[#This Row],[% Заверш.]])","v":""}]
[null,460,null,null,null,null,null,null,null,null,null,{"$f":"IF(Таблица6[[#This Row],[Дата замовлення]]=\"\",\"\",Таблица6[[#This Row],[Дата замовлення]]+Таблица6[[#This Row],[Рек. термін викон]])","v":""},null,null,{"$f":"IF(Таблица6[[#This Row],[% Заверш.]]=\"\",\"\",Таблица6[[#This Row],[% Заверш.]])","v":""}]
[null,461,null,null,null,null,null,null,null,null,null,{"$f":"IF(Таблица6[[#This Row],[Дата замовлення]]=\"\",\"\",Таблица6[[#This Row],[Дата замовлення]]+Таблица6[[#This Row],[Рек. термін викон]])","v":""},null,null,{"$f":"IF(Таблица6[[#This Row],[% Заверш.]]=\"\",\"\",Таблица6[[#This Row],[% Заверш.]])","v":""}]
[null,462,null,null,null,null,null,null,null,null,null,{"$f":"IF(Таблица6[[#This Row],[Дата замовлення]]=\"\",\"\",Таблица6[[#This Row],[Дата замовлення]]+Таблица6[[#This Row],[Рек. термін викон]])","v":""},null,null,{"$f":"IF(Таблица6[[#This Row],[% Заверш.]]=\"\",\"\",Таблица6[[#This Row],[% Заверш.]])","v":""}]
[null,463,null,null,null,null,null,null,null,null,null,{"$f":"IF(Таблица6[[#This Row],[Дата замовлення]]=\"\",\"\",Таблица6[[#This Row],[Дата замовлення]]+Таблица6[[#This Row],[Рек. термін викон]])","v":""},null,null,{"$f":"IF(Таблица6[[#This Row],[% Заверш.]]=\"\",\"\",Таблица6[[#This Row],[% Заверш.]])","v":""}]
[null,464,null,null,null,null,null,null,null,null,null,{"$f":"IF(Таблица6[[#This Row],[Дата замовлення]]=\"\",\"\",Таблица6[[#This Row],[Дата замовлення]]+Таблица6[[#This Row],[Рек. термін викон]])","v":""},null,null,{"$f":"IF(Таблица6[[#This Row],[% Заверш.]]=\"\",\"\",Таблица6[[#This Row],[% Заверш.]])","v":""}]
[null,465,null,null,null,null,null,null,null,null,null,{"$f":"IF(Таблица6[[#This Row],[Дата замовлення]]=\"\",\"\",Таблица6[[#This Row],[Дата замовлення]]+Таблица6[[#This Row],[Рек. термін викон]])","v":""},null,null,{"$f":"IF(Таблица6[[#This Row],[% Заверш.]]=\"\",\"\",Таблица6[[#This Row],[% Заверш.]])","v":""}]
[null,466,null,null,null,null,null,null,null,null,null,{"$f":"IF(Таблица6[[#This Row],[Дата замовлення]]=\"\",\"\",Таблица6[[#This Row],[Дата замовлення]]+Таблица6[[#This Row],[Рек. термін викон]])","v":""},null,null,{"$f":"IF(Таблица6[[#This Row],[% Заверш.]]=\"\",\"\",Таблица6[[#This Row],[% Заверш.]])","v":""}]
[null,467,null,null,null,null,null,null,null,null,null,{"$f":"IF(Таблица6[[#This Row],[Дата замовлення]]=\"\",\"\",Таблица6[[#This Row],[Дата замовлення]]+Таблица6[[#This Row],[Рек. термін викон]])","v":""},null,null,{"$f":"IF(Таблица6[[#This Row],[% Заверш.]]=\"\",\"\",Таблица6[[#This Row],[% Заверш.]])","v":""}]
[null,468,null,null,null,null,null,null,null,null,null,{"$f":"IF(Таблица6[[#This Row],[Дата замовлення]]=\"\",\"\",Таблица6[[#This Row],[Дата замовлення]]+Таблица6[[#This Row],[Рек. термін викон]])","v":""},null,null,{"$f":"IF(Таблица6[[#This Row],[% Заверш.]]=\"\",\"\",Таблица6[[#This Row],[% Заверш.]])","v":""}]
[null,469,null,null,null,null,null,null,null,null,null,{"$f":"IF(Таблица6[[#This Row],[Дата замовлення]]=\"\",\"\",Таблица6[[#This Row],[Дата замовлення]]+Таблица6[[#This Row],[Рек. термін викон]])","v":""},null,null,{"$f":"IF(Таблица6[[#This Row],[% Заверш.]]=\"\",\"\",Таблица6[[#This Row],[% Заверш.]])","v":""}]
[null,470,null,null,null,null,null,null,null,null,null,{"$f":"IF(Таблица6[[#This Row],[Дата замовлення]]=\"\",\"\",Таблица6[[#This Row],[Дата замовлення]]+Таблица6[[#This Row],[Рек. термін викон]])","v":""},null,null,{"$f":"IF(Таблица6[[#This Row],[% Заверш.]]=\"\",\"\",Таблица6[[#This Row],[% Заверш.]])","v":""}]
[null,471,null,null,null,null,null,null,null,null,null,{"$f":"IF(Таблица6[[#This Row],[Дата замовлення]]=\"\",\"\",Таблица6[[#This Row],[Дата замовлення]]+Таблица6[[#This Row],[Рек. термін викон]])","v":""},null,null,{"$f":"IF(Таблица6[[#This Row],[% Заверш.]]=\"\",\"\",Таблица6[[#This Row],[% Заверш.]])","v":""}]
[null,472,null,null,null,null,null,null,null,null,null,{"$f":"IF(Таблица6[[#This Row],[Дата замовлення]]=\"\",\"\",Таблица6[[#This Row],[Дата замовлення]]+Таблица6[[#This Row],[Рек. термін викон]])","v":""},null,null,{"$f":"IF(Таблица6[[#This Row],[% Заверш.]]=\"\",\"\",Таблица6[[#This Row],[% Заверш.]])","v":""}]
[null,473,null,null,null,null,null,null,null,null,null,{"$f":"IF(Таблица6[[#This Row],[Дата замовлення]]=\"\",\"\",Таблица6[[#This Row],[Дата замовлення]]+Таблица6[[#This Row],[Рек. термін викон]])","v":""},null,null,{"$f":"IF(Таблица6[[#This Row],[% Заверш.]]=\"\",\"\",Таблица6[[#This Row],[% Заверш.]])","v":""}]
[null,474,null,null,null,null,null,null,null,null,null,{"$f":"IF(Таблица6[[#This Row],[Дата замовлення]]=\"\",\"\",Таблица6[[#This Row],[Дата замовлення]]+Таблица6[[#This Row],[Рек. термін викон]])","v":""},null,null,{"$f":"IF(Таблица6[[#This Row],[% Заверш.]]=\"\",\"\",Таблица6[[#This Row],[% Заверш.]])","v":""}]
[null,475,null,null,null,null,null,null,null,null,null,{"$f":"IF(Таблица6[[#This Row],[Дата замовлення]]=\"\",\"\",Таблица6[[#This Row],[Дата замовлення]]+Таблица6[[#This Row],[Рек. термін викон]])","v":""},null,null,{"$f":"IF(Таблица6[[#This Row],[% Заверш.]]=\"\",\"\",Таблица6[[#This Row],[% Заверш.]])","v":""}]
[null,476,null,null,null,null,null,null,null,null,null,{"$f":"IF(Таблица6[[#This Row],[Дата замовлення]]=\"\",\"\",Таблица6[[#This Row],[Дата замовлення]]+Таблица6[[#This Row],[Рек. термін викон]])","v":""},null,null,{"$f":"IF(Таблица6[[#This Row],[% Заверш.]]=\"\",\"\",Таблица6[[#This Row],[% Заверш.]])","v":""}]
[null,477,null,null,null,null,null,null,null,null,null,{"$f":"IF(Таблица6[[#This Row],[Дата замовлення]]=\"\",\"\",Таблица6[[#This Row],[Дата замовлення]]+Таблица6[[#This Row],[Рек. термін викон]])","v":""},null,null,{"$f":"IF(Таблица6[[#This Row],[% Заверш.]]=\"\",\"\",Таблица6[[#This Row],[% Заверш.]])","v":""}]
[null,478,null,null,null,null,null,null,null,null,null,{"$f":"IF(Таблица6[[#This Row],[Дата замовлення]]=\"\",\"\",Таблица6[[#This Row],[Дата замовлення]]+Таблица6[[#This Row],[Рек. термін викон]])","v":""},null,null,{"$f":"IF(Таблица6[[#This Row],[% Заверш.]]=\"\",\"\",Таблица6[[#This Row],[% Заверш.]])","v":""}]
[null,479,null,null,null,null,null,null,null,null,null,{"$f":"IF(Таблица6[[#This Row],[Дата замовлення]]=\"\",\"\",Таблица6[[#This Row],[Дата замовлення]]+Таблица6[[#This Row],[Рек. термін викон]])","v":""},null,null,{"$f":"IF(Таблица6[[#This Row],[% Заверш.]]=\"\",\"\",Таблица6[[#This Row],[% Заверш.]])","v":""}]
[null,480,null,null,null,null,null,null,null,null,null,{"$f":"IF(Таблица6[[#This Row],[Дата замовлення]]=\"\",\"\",Таблица6[[#This Row],[Дата замовлення]]+Таблица6[[#This Row],[Рек. термін викон]])","v":""},null,null,{"$f":"IF(Таблица6[[#This Row],[% Заверш.]]=\"\",\"\",Таблица6[[#This Row],[% Заверш.]])","v":""}]
[null,481,null,null,null,null,null,null,null,null,null,{"$f":"IF(Таблица6[[#This Row],[Дата замовлення]]=\"\",\"\",Таблица6[[#This Row],[Дата замовлення]]+Таблица6[[#This Row],[Рек. термін викон]])","v":""},null,null,{"$f":"IF(Таблица6[[#This Row],[% Заверш.]]=\"\",\"\",Таблица6[[#This Row],[% Заверш.]])","v":""}]
[null,482,null,null,null,null,null,null,null,null,null,{"$f":"IF(Таблица6[[#This Row],[Дата замовлення]]=\"\",\"\",Таблица6[[#This Row],[Дата замовлення]]+Таблица6[[#This Row],[Рек. термін викон]])","v":""},null,null,{"$f":"IF(Таблица6[[#This Row],[% Заверш.]]=\"\",\"\",Таблица6[[#This Row],[% Заверш.]])","v":""}]
[null,483,null,null,null,null,null,null,null,null,null,{"$f":"IF(Таблица6[[#This Row],[Дата замовлення]]=\"\",\"\",Таблица6[[#This Row],[Дата замовлення]]+Таблица6[[#This Row],[Рек. термін викон]])","v":""},null,null,{"$f":"IF(Таблица6[[#This Row],[% Заверш.]]=\"\",\"\",Таблица6[[#This Row],[% Заверш.]])","v":""}]
[null,484,null,null,null,null,null,null,null,null,null,{"$f":"IF(Таблица6[[#This Row],[Дата замовлення]]=\"\",\"\",Таблица6[[#This Row],[Дата замовлення]]+Таблица6[[#This Row],[Рек. термін викон]])","v":""},null,null,{"$f":"IF(Таблица6[[#This Row],[% Заверш.]]=\"\",\"\",Таблица6[[#This Row],[% Заверш.]])","v":""}]
[null,485,null,null,null,null,null,null,null,null,null,{"$f":"IF(Таблица6[[#This Row],[Дата замовлення]]=\"\",\"\",Таблица6[[#This Row],[Дата замовлення]]+Таблица6[[#This Row],[Рек. термін викон]])","v":""},null,null,{"$f":"IF(Таблица6[[#This Row],[% Заверш.]]=\"\",\"\",Таблица6[[#This Row],[% Заверш.]])","v":""}]
[null,486,null,null,null,null,null,null,null,null,null,{"$f":"IF(Таблица6[[#This Row],[Дата замовлення]]=\"\",\"\",Таблица6[[#This Row],[Дата замовлення]]+Таблица6[[#This Row],[Рек. термін викон]])","v":""},null,null,{"$f":"IF(Таблица6[[#This Row],[% Заверш.]]=\"\",\"\",Таблица6[[#This Row],[% Заверш.]])","v":""}]
[null,487,null,null,null,null,null,null,null,null,null,{"$f":"IF(Таблица6[[#This Row],[Дата замовлення]]=\"\",\"\",Таблица6[[#This Row],[Дата замовлення]]+Таблица6[[#This Row],[Рек. термін викон]])","v":""},null,null,{"$f":"IF(Таблица6[[#This Row],[% Заверш.]]=\"\",\"\",Таблица6[[#This Row],[% Заверш.]])","v":""}]
[null,488,null,null,null,null,null,null,null,null,null,{"$f":"IF(Таблица6[[#This Row],[Дата замовлення]]=\"\",\"\",Таблица6[[#This Row],[Дата замовлення]]+Таблица6[[#This Row],[Рек. термін викон]])","v":""},null,null,{"$f":"IF(Таблица6[[#This Row],[% Заверш.]]=\"\",\"\",Таблица6[[#This Row],[% Заверш.]])","v":""}]
[null,489,null,null,null,null,null,null,null,null,null,{"$f":"IF(Таблица6[[#This Row],[Дата замовлення]]=\"\",\"\",Таблица6[[#This Row],[Дата замовлення]]+Таблица6[[#This Row],[Рек. термін викон]])","v":""},null,null,{"$f":"IF(Таблица6[[#This Row],[% Заверш.]]=\"\",\"\",Таблица6[[#This Row],[% Заверш.]])","v":""}]
[null,490,null,null,null,null,null,null,null,null,null,{"$f":"IF(Таблица6[[#This Row],[Дата замовлення]]=\"\",\"\",Таблица6[[#This Row],[Дата замовлення]]+Таблица6[[#This Row],[Рек. термін викон]])","v":""},null,null,{"$f":"IF(Таблица6[[#This Row],[% Заверш.]]=\"\",\"\",Таблица6[[#This Row],[% Заверш.]])","v":""}]
[null,491,null,null,null,null,null,null,null,null,null,{"$f":"IF(Таблица6[[#This Row],[Дата замовлення]]=\"\",\"\",Таблица6[[#This Row],[Дата замовлення]]+Таблица6[[#This Row],[Рек. термін викон]])","v":""},null,null,{"$f":"IF(Таблица6[[#This Row],[% Заверш.]]=\"\",\"\",Таблица6[[#This Row],[% Заверш.]])","v":""}]
[null,492,null,null,null,null,null,null,null,null,null,{"$f":"IF(Таблица6[[#This Row],[Дата замовлення]]=\"\",\"\",Таблица6[[#This Row],[Дата замовлення]]+Таблица6[[#This Row],[Рек. термін викон]])","v":""},null,null,{"$f":"IF(Таблица6[[#This Row],[% Заверш.]]=\"\",\"\",Таблица6[[#This Row],[% Заверш.]])","v":""}]
[null,493,null,null,null,null,null,null,null,null,null,{"$f":"IF(Таблица6[[#This Row],[Дата замовлення]]=\"\",\"\",Таблица6[[#This Row],[Дата замовлення]]+Таблица6[[#This Row],[Рек. термін викон]])","v":""},null,null,{"$f":"IF(Таблица6[[#This Row],[% Заверш.]]=\"\",\"\",Таблица6[[#This Row],[% Заверш.]])","v":""}]
[null,494,null,null,null,null,null,null,null,null,null,{"$f":"IF(Таблица6[[#This Row],[Дата замовлення]]=\"\",\"\",Таблица6[[#This Row],[Дата замовлення]]+Таблица6[[#This Row],[Рек. термін викон]])","v":""},null,null,{"$f":"IF(Таблица6[[#This Row],[% Заверш.]]=\"\",\"\",Таблица6[[#This Row],[% Заверш.]])","v":""}]
[null,495,null,null,null,null,null,null,null,null,null,{"$f":"IF(Таблица6[[#This Row],[Дата замовлення]]=\"\",\"\",Таблица6[[#This Row],[Дата замовлення]]+Таблица6[[#This Row],[Рек. термін викон]])","v":""},null,null,{"$f":"IF(Таблица6[[#This Row],[% Заверш.]]=\"\",\"\",Таблица6[[#This Row],[% Заверш.]])","v":""}]
[null,496,null,null,null,null,null,null,null,null,null,{"$f":"IF(Таблица6[[#This Row],[Дата замовлення]]=\"\",\"\",Таблица6[[#This Row],[Дата замовлення]]+Таблица6[[#This Row],[Рек. термін викон]])","v":""},null,null,{"$f":"IF(Таблица6[[#This Row],[% Заверш.]]=\"\",\"\",Таблица6[[#This Row],[% Заверш.]])","v":""}]
[null,497,null,null,null,null,null,null,null,null,null,{"$f":"IF(Таблица6[[#This Row],[Дата замовлення]]=\"\",\"\",Таблица6[[#This Row],[Дата замовлення]]+Таблица6[[#This Row],[Рек. термін викон]])","v":""},null,null,{"$f":"IF(Таблица6[[#This Row],[% Заверш.]]=\"\",\"\",Таблица6[[#This Row],[% Заверш.]])","v":""}]
[null,498,null,null,null,null,null,null,null,null,null,{"$f":"IF(Таблица6[[#This Row],[Дата замовлення]]=\"\",\"\",Таблица6[[#This Row],[Дата замовлення]]+Таблица6[[#This Row],[Рек. термін викон]])","v":""},null,null,{"$f":"IF(Таблица6[[#This Row],[% Заверш.]]=\"\",\"\",Таблица6[[#This Row],[% Заверш.]])","v":""}]
[null,499,null,null,null,null,null,null,null,null,null,{"$f":"IF(Таблица6[[#This Row],[Дата замовлення]]=\"\",\"\",Таблица6[[#This Row],[Дата замовлення]]+Таблица6[[#This Row],[Рек. термін викон]])","v":""},null,null,{"$f":"IF(Таблица6[[#This Row],[% Заверш.]]=\"\",\"\",Таблица6[[#This Row],[% Заверш.]])","v":""}]
[null,500,null,null,null,null,null,null,null,null,null,{"$f":"IF(Таблица6[[#This Row],[Дата замовлення]]=\"\",\"\",Таблица6[[#This Row],[Дата замовлення]]+Таблица6[[#This Row],[Рек. термін викон]])","v":""},null,null,{"$f":"IF(Таблица6[[#This Row],[% Заверш.]]=\"\",\"\",Таблица6[[#This Row],[% Заверш.]])","v":""}]
[null,501,null,null,null,null,null,null,null,null,null,{"$f":"IF(Таблица6[[#This Row],[Дата замовлення]]=\"\",\"\",Таблица6[[#This Row],[Дата замовлення]]+Таблица6[[#This Row],[Рек. термін викон]])","v":""},null,null,{"$f":"IF(Таблица6[[#This Row],[% Заверш.]]=\"\",\"\",Таблица6[[#This Row],[% Заверш.]])","v":""}]
[null,502,null,null,null,null,null,null,null,null,null,{"$f":"IF(Таблица6[[#This Row],[Дата замовлення]]=\"\",\"\",Таблица6[[#This Row],[Дата замовлення]]+Таблица6[[#This Row],[Рек. термін викон]])","v":""},null,null,{"$f":"IF(Таблица6[[#This Row],[% Заверш.]]=\"\",\"\",Таблица6[[#This Row],[% Заверш.]])","v":""}]
[null,503,null,null,null,null,null,null,null,null,null,{"$f":"IF(Таблица6[[#This Row],[Дата замовлення]]=\"\",\"\",Таблица6[[#This Row],[Дата замовлення]]+Таблица6[[#This Row],[Рек. термін викон]])","v":""},null,null,{"$f":"IF(Таблица6[[#This Row],[% Заверш.]]=\"\",\"\",Таблица6[[#This Row],[% Заверш.]])","v":""}]
[null,504,null,null,null,null,null,null,null,null,null,{"$f":"IF(Таблица6[[#This Row],[Дата замовлення]]=\"\",\"\",Таблица6[[#This Row],[Дата замовлення]]+Таблица6[[#This Row],[Рек. термін викон]])","v":""},null,null,{"$f":"IF(Таблица6[[#This Row],[% Заверш.]]=\"\",\"\",Таблица6[[#This Row],[% Заверш.]])","v":""}]
[null,505,null,null,null,null,null,null,null,null,null,{"$f":"IF(Таблица6[[#This Row],[Дата замовлення]]=\"\",\"\",Таблица6[[#This Row],[Дата замовлення]]+Таблица6[[#This Row],[Рек. термін викон]])","v":""},null,null,{"$f":"IF(Таблица6[[#This Row],[% Заверш.]]=\"\",\"\",Таблица6[[#This Row],[% Заверш.]])","v":""}]
[null,506,null,null,null,null,null,null,null,null,null,{"$f":"IF(Таблица6[[#This Row],[Дата замовлення]]=\"\",\"\",Таблица6[[#This Row],[Дата замовлення]]+Таблица6[[#This Row],[Рек. термін викон]])","v":""},null,null,{"$f":"IF(Таблица6[[#This Row],[% Заверш.]]=\"\",\"\",Таблица6[[#This Row],[% Заверш.]])","v":""}]
[null,507,null,null,null,null,null,null,null,null,null,{"$f":"IF(Таблица6[[#This Row],[Дата замовлення]]=\"\",\"\",Таблица6[[#This Row],[Дата замовлення]]+Таблица6[[#This Row],[Рек. термін викон]])","v":""},null,null,{"$f":"IF(Таблица6[[#This Row],[% Заверш.]]=\"\",\"\",Таблица6[[#This Row],[% Заверш.]])","v":""}]
[null,508,null,null,null,null,null,null,null,null,null,{"$f":"IF(Таблица6[[#This Row],[Дата замовлення]]=\"\",\"\",Таблица6[[#This Row],[Дата замовлення]]+Таблица6[[#This Row],[Рек. термін викон]])","v":""},null,null,{"$f":"IF(Таблица6[[#This Row],[% Заверш.]]=\"\",\"\",Таблица6[[#This Row],[% Заверш.]])","v":""}]
[null,509,null,null,null,null,null,null,null,null,null,{"$f":"IF(Таблица6[[#This Row],[Дата замовлення]]=\"\",\"\",Таблица6[[#This Row],[Дата замовлення]]+Таблица6[[#This Row],[Рек. термін викон]])","v":""},null,null,{"$f":"IF(Таблица6[[#This Row],[% Заверш.]]=\"\",\"\",Таблица6[[#This Row],[% Заверш.]])","v":""}]
[null,510,null,null,null,null,null,null,null,null,null,{"$f":"IF(Таблица6[[#This Row],[Дата замовлення]]=\"\",\"\",Таблица6[[#This Row],[Дата замовлення]]+Таблица6[[#This Row],[Рек. термін викон]])","v":""},null,null,{"$f":"IF(Таблица6[[#This Row],[% Заверш.]]=\"\",\"\",Таблица6[[#This Row],[% Заверш.]])","v":""}]
[null,511,null,null,null,null,null,null,null,null,null,{"$f":"IF(Таблица6[[#This Row],[Дата замовлення]]=\"\",\"\",Таблица6[[#This Row],[Дата замовлення]]+Таблица6[[#This Row],[Рек. термін викон]])","v":""},null,null,{"$f":"IF(Таблица6[[#This Row],[% Заверш.]]=\"\",\"\",Таблица6[[#This Row],[% Заверш.]])","v":""}]
[null,512,null,null,null,null,null,null,null,null,null,{"$f":"IF(Таблица6[[#This Row],[Дата замовлення]]=\"\",\"\",Таблица6[[#This Row],[Дата замовлення]]+Таблица6[[#This Row],[Рек. термін викон]])","v":""},null,null,{"$f":"IF(Таблица6[[#This Row],[% Заверш.]]=\"\",\"\",Таблица6[[#This Row],[% Заверш.]])","v":""}]
[null,513,null,null,null,null,null,null,null,null,null,{"$f":"IF(Таблица6[[#This Row],[Дата замовлення]]=\"\",\"\",Таблица6[[#This Row],[Дата замовлення]]+Таблица6[[#This Row],[Рек. термін викон]])","v":""},null,null,{"$f":"IF(Таблица6[[#This Row],[% Заверш.]]=\"\",\"\",Таблица6[[#This Row],[% Заверш.]])","v":""}]
[null,514,null,null,null,null,null,null,null,null,null,{"$f":"IF(Таблица6[[#This Row],[Дата замовлення]]=\"\",\"\",Таблица6[[#This Row],[Дата замовлення]]+Таблица6[[#This Row],[Рек. термін викон]])","v":""},null,null,{"$f":"IF(Таблица6[[#This Row],[% Заверш.]]=\"\",\"\",Таблица6[[#This Row],[% Заверш.]])","v":""}]
[null,515,null,null,null,null,null,null,null,null,null,{"$f":"IF(Таблица6[[#This Row],[Дата замовлення]]=\"\",\"\",Таблица6[[#This Row],[Дата замовлення]]+Таблица6[[#This Row],[Рек. термін викон]])","v":""},null,null,{"$f":"IF(Таблица6[[#This Row],[% Заверш.]]=\"\",\"\",Таблица6[[#This Row],[% Заверш.]])","v":""}]
[null,516,null,null,null,null,null,null,null,null,null,{"$f":"IF(Таблица6[[#This Row],[Дата замовлення]]=\"\",\"\",Таблица6[[#This Row],[Дата замовлення]]+Таблица6[[#This Row],[Рек. термін викон]])","v":""},null,null,{"$f":"IF(Таблица6[[#This Row],[% Заверш.]]=\"\",\"\",Таблица6[[#This Row],[% Заверш.]])","v":""}]
[null,517,null,null,null,null,null,null,null,null,null,{"$f":"IF(Таблица6[[#This Row],[Дата замовлення]]=\"\",\"\",Таблица6[[#This Row],[Дата замовлення]]+Таблица6[[#This Row],[Рек. термін викон]])","v":""},null,null,{"$f":"IF(Таблица6[[#This Row],[% Заверш.]]=\"\",\"\",Таблица6[[#This Row],[% Заверш.]])","v":""}]
[null,518,null,null,null,null,null,null,null,null,null,{"$f":"IF(Таблица6[[#This Row],[Дата замовлення]]=\"\",\"\",Таблица6[[#This Row],[Дата замовлення]]+Таблица6[[#This Row],[Рек. термін викон]])","v":""},null,null,{"$f":"IF(Таблица6[[#This Row],[% Заверш.]]=\"\",\"\",Таблица6[[#This Row],[% Заверш.]])","v":""}]
[null,519,null,null,null,null,null,null,null,null,null,{"$f":"IF(Таблица6[[#This Row],[Дата замовлення]]=\"\",\"\",Таблица6[[#This Row],[Дата замовлення]]+Таблица6[[#This Row],[Рек. термін викон]])","v":""},null,null,{"$f":"IF(Таблица6[[#This Row],[% Заверш.]]=\"\",\"\",Таблица6[[#This Row],[% Заверш.]])","v":""}]
[null,520,null,null,null,null,null,null,null,null,null,{"$f":"IF(Таблица6[[#This Row],[Дата замовлення]]=\"\",\"\",Таблица6[[#This Row],[Дата замовлення]]+Таблица6[[#This Row],[Рек. термін викон]])","v":""},null,null,{"$f":"IF(Таблица6[[#This Row],[% Заверш.]]=\"\",\"\",Таблица6[[#This Row],[% Заверш.]])","v":""}]
[null,521,null,null,null,null,null,null,null,null,null,{"$f":"IF(Таблица6[[#This Row],[Дата замовлення]]=\"\",\"\",Таблица6[[#This Row],[Дата замовлення]]+Таблица6[[#This Row],[Рек. термін викон]])","v":""},null,null,{"$f":"IF(Таблица6[[#This Row],[% Заверш.]]=\"\",\"\",Таблица6[[#This Row],[% Заверш.]])","v":""}]
[null,522,null,null,null,null,null,null,null,null,null,{"$f":"IF(Таблица6[[#This Row],[Дата замовлення]]=\"\",\"\",Таблица6[[#This Row],[Дата замовлення]]+Таблица6[[#This Row],[Рек. термін викон]])","v":""},null,null,{"$f":"IF(Таблица6[[#This Row],[% Заверш.]]=\"\",\"\",Таблица6[[#This Row],[% Заверш.]])","v":""}]
[null,523,null,null,null,null,null,null,null,null,null,{"$f":"IF(Таблица6[[#This Row],[Дата замовлення]]=\"\",\"\",Таблица6[[#This Row],[Дата замовлення]]+Таблица6[[#This Row],[Рек. термін викон]])","v":""},null,null,{"$f":"IF(Таблица6[[#This Row],[% Заверш.]]=\"\",\"\",Таблица6[[#This Row],[% Заверш.]])","v":""}]
[null,524,null,null,null,null,null,null,null,null,null,{"$f":"IF(Таблица6[[#This Row],[Дата замовлення]]=\"\",\"\",Таблица6[[#This Row],[Дата замовлення]]+Таблица6[[#This Row],[Рек. термін викон]])","v":""},null,null,{"$f":"IF(Таблица6[[#This Row],[% Заверш.]]=\"\",\"\",Таблица6[[#This Row],[% Заверш.]])","v":""}]
[null,525,null,null,null,null,null,null,null,null,null,{"$f":"IF(Таблица6[[#This Row],[Дата замовлення]]=\"\",\"\",Таблица6[[#This Row],[Дата замовлення]]+Таблица6[[#This Row],[Рек. термін викон]])","v":""},null,null,{"$f":"IF(Таблица6[[#This Row],[% Заверш.]]=\"\",\"\",Таблица6[[#This Row],[% Заверш.]])","v":""}]
[null,526,null,null,null,null,null,null,null,null,null,{"$f":"IF(Таблица6[[#This Row],[Дата замовлення]]=\"\",\"\",Таблица6[[#This Row],[Дата замовлення]]+Таблица6[[#This Row],[Рек. термін викон]])","v":""},null,null,{"$f":"IF(Таблица6[[#This Row],[% Заверш.]]=\"\",\"\",Таблица6[[#This Row],[% Заверш.]])","v":""}]
[null,527,null,null,null,null,null,null,null,null,null,{"$f":"IF(Таблица6[[#This Row],[Дата замовлення]]=\"\",\"\",Таблица6[[#This Row],[Дата замовлення]]+Таблица6[[#This Row],[Рек. термін викон]])","v":""},null,null,{"$f":"IF(Таблица6[[#This Row],[% Заверш.]]=\"\",\"\",Таблица6[[#This Row],[% Заверш.]])","v":""}]
[null,528,null,null,null,null,null,null,null,null,null,{"$f":"IF(Таблица6[[#This Row],[Дата замовлення]]=\"\",\"\",Таблица6[[#This Row],[Дата замовлення]]+Таблица6[[#This Row],[Рек. термін викон]])","v":""},null,null,{"$f":"IF(Таблица6[[#This Row],[% Заверш.]]=\"\",\"\",Таблица6[[#This Row],[% Заверш.]])","v":""}]
[null,529,null,null,null,null,null,null,null,null,null,{"$f":"IF(Таблица6[[#This Row],[Дата замовлення]]=\"\",\"\",Таблица6[[#This Row],[Дата замовлення]]+Таблица6[[#This Row],[Рек. термін викон]])","v":""},null,null,{"$f":"IF(Таблица6[[#This Row],[% Заверш.]]=\"\",\"\",Таблица6[[#This Row],[% Заверш.]])","v":""}]
[null,530,null,null,null,null,null,null,null,null,null,{"$f":"IF(Таблица6[[#This Row],[Дата замовлення]]=\"\",\"\",Таблица6[[#This Row],[Дата замовлення]]+Таблица6[[#This Row],[Рек. термін викон]])","v":""},null,null,{"$f":"IF(Таблица6[[#This Row],[% Заверш.]]=\"\",\"\",Таблица6[[#This Row],[% Заверш.]])","v":""}]
[null,531,null,null,null,null,null,null,null,null,null,{"$f":"IF(Таблица6[[#This Row],[Дата замовлення]]=\"\",\"\",Таблица6[[#This Row],[Дата замовлення]]+Таблица6[[#This Row],[Рек. термін викон]])","v":""},null,null,{"$f":"IF(Таблица6[[#This Row],[% Заверш.]]=\"\",\"\",Таблица6[[#This Row],[% Заверш.]])","v":""}]
[null,532,null,null,null,null,null,null,null,null,null,{"$f":"IF(Таблица6[[#This Row],[Дата замовлення]]=\"\",\"\",Таблица6[[#This Row],[Дата замовлення]]+Таблица6[[#This Row],[Рек. термін викон]])","v":""},null,null,{"$f":"IF(Таблица6[[#This Row],[% Заверш.]]=\"\",\"\",Таблица6[[#This Row],[% Заверш.]])","v":""}]
[null,533,null,null,null,null,null,null,null,null,null,{"$f":"IF(Таблица6[[#This Row],[Дата замовлення]]=\"\",\"\",Таблица6[[#This Row],[Дата замовлення]]+Таблица6[[#This Row],[Рек. термін викон]])","v":""},null,null,{"$f":"IF(Таблица6[[#This Row],[% Заверш.]]=\"\",\"\",Таблица6[[#This Row],[% Заверш.]])","v":""}]
[null,534,null,null,null,null,null,null,null,null,null,{"$f":"IF(Таблица6[[#This Row],[Дата замовлення]]=\"\",\"\",Таблица6[[#This Row],[Дата замовлення]]+Таблица6[[#This Row],[Рек. термін викон]])","v":""},null,null,{"$f":"IF(Таблица6[[#This Row],[% Заверш.]]=\"\",\"\",Таблица6[[#This Row],[% Заверш.]])","v":""}]
[null,535,null,null,null,null,null,null,null,null,null,{"$f":"IF(Таблица6[[#This Row],[Дата замовлення]]=\"\",\"\",Таблица6[[#This Row],[Дата замовлення]]+Таблица6[[#This Row],[Рек. термін викон]])","v":""},null,null,{"$f":"IF(Таблица6[[#This Row],[% Заверш.]]=\"\",\"\",Таблица6[[#This Row],[% Заверш.]])","v":""}]
[null,536,null,null,null,null,null,null,null,null,null,{"$f":"IF(Таблица6[[#This Row],[Дата замовлення]]=\"\",\"\",Таблица6[[#This Row],[Дата замовлення]]+Таблица6[[#This Row],[Рек. термін викон]])","v":""},null,null,{"$f":"IF(Таблица6[[#This Row],[% Заверш.]]=\"\",\"\",Таблица6[[#This Row],[% Заверш.]])","v":""}]
[null,537,null,null,null,null,null,null,null,null,null,{"$f":"IF(Таблица6[[#This Row],[Дата замовлення]]=\"\",\"\",Таблица6[[#This Row],[Дата замовлення]]+Таблица6[[#This Row],[Рек. термін викон]])","v":""},null,null,{"$f":"IF(Таблица6[[#This Row],[% Заверш.]]=\"\",\"\",Таблица6[[#This Row],[% Заверш.]])","v":""}]
[null,538,null,null,null,null,null,null,null,null,null,{"$f":"IF(Таблица6[[#This Row],[Дата замовлення]]=\"\",\"\",Таблица6[[#This Row],[Дата замовлення]]+Таблица6[[#This Row],[Рек. термін викон]])","v":""},null,null,{"$f":"IF(Таблица6[[#This Row],[% Заверш.]]=\"\",\"\",Таблица6[[#This Row],[% Заверш.]])","v":""}]
[null,539,null,null,null,null,null,null,null,null,null,{"$f":"IF(Таблица6[[#This Row],[Дата замовлення]]=\"\",\"\",Таблица6[[#This Row],[Дата замовлення]]+Таблица6[[#This Row],[Рек. термін викон]])","v":""},null,null,{"$f":"IF(Таблица6[[#This Row],[% Заверш.]]=\"\",\"\",Таблица6[[#This Row],[% Заверш.]])","v":""}]
[null,540,null,null,null,null,null,null,null,null,null,{"$f":"IF(Таблица6[[#This Row],[Дата замовлення]]=\"\",\"\",Таблица6[[#This Row],[Дата замовлення]]+Таблица6[[#This Row],[Рек. термін викон]])","v":""},null,null,{"$f":"IF(Таблица6[[#This Row],[% Заверш.]]=\"\",\"\",Таблица6[[#This Row],[% Заверш.]])","v":""}]
[null,541,null,null,null,null,null,null,null,null,null,{"$f":"IF(Таблица6[[#This Row],[Дата замовлення]]=\"\",\"\",Таблица6[[#This Row],[Дата замовлення]]+Таблица6[[#This Row],[Рек. термін викон]])","v":""},null,null,{"$f":"IF(Таблица6[[#This Row],[% Заверш.]]=\"\",\"\",Таблица6[[#This Row],[% Заверш.]])","v":""}]
[null,542,null,null,null,null,null,null,null,null,null,{"$f":"IF(Таблица6[[#This Row],[Дата замовлення]]=\"\",\"\",Таблица6[[#This Row],[Дата замовлення]]+Таблица6[[#This Row],[Рек. термін викон]])","v":""},null,null,{"$f":"IF(Таблица6[[#This Row],[% Заверш.]]=\"\",\"\",Таблица6[[#This Row],[% Заверш.]])","v":""}]
[null,543,null,null,null,null,null,null,null,null,null,{"$f":"IF(Таблица6[[#This Row],[Дата замовлення]]=\"\",\"\",Таблица6[[#This Row],[Дата замовлення]]+Таблица6[[#This Row],[Рек. термін викон]])","v":""},null,null,{"$f":"IF(Таблица6[[#This Row],[% Заверш.]]=\"\",\"\",Таблица6[[#This Row],[% Заверш.]])","v":""}]
[null,544,null,null,null,null,null,null,null,null,null,{"$f":"IF(Таблица6[[#This Row],[Дата замовлення]]=\"\",\"\",Таблица6[[#This Row],[Дата замовлення]]+Таблица6[[#This Row],[Рек. термін викон]])","v":""},null,null,{"$f":"IF(Таблица6[[#This Row],[% Заверш.]]=\"\",\"\",Таблица6[[#This Row],[% Заверш.]])","v":""}]
[null,545,null,null,null,null,null,null,null,null,null,{"$f":"IF(Таблица6[[#This Row],[Дата замовлення]]=\"\",\"\",Таблица6[[#This Row],[Дата замовлення]]+Таблица6[[#This Row],[Рек. термін викон]])","v":""},null,null,{"$f":"IF(Таблица6[[#This Row],[% Заверш.]]=\"\",\"\",Таблица6[[#This Row],[% Заверш.]])","v":""}]
[null,546,null,null,null,null,null,null,null,null,null,{"$f":"IF(Таблица6[[#This Row],[Дата замовлення]]=\"\",\"\",Таблица6[[#This Row],[Дата замовлення]]+Таблица6[[#This Row],[Рек. термін викон]])","v":""},null,null,{"$f":"IF(Таблица6[[#This Row],[% Заверш.]]=\"\",\"\",Таблица6[[#This Row],[% Заверш.]])","v":""}]
[null,547,null,null,null,null,null,null,null,null,null,{"$f":"IF(Таблица6[[#This Row],[Дата замовлення]]=\"\",\"\",Таблица6[[#This Row],[Дата замовлення]]+Таблица6[[#This Row],[Рек. термін викон]])","v":""},null,null,{"$f":"IF(Таблица6[[#This Row],[% Заверш.]]=\"\",\"\",Таблица6[[#This Row],[% Заверш.]])","v":""}]
[null,548,null,null,null,null,null,null,null,null,null,{"$f":"IF(Таблица6[[#This Row],[Дата замовлення]]=\"\",\"\",Таблица6[[#This Row],[Дата замовлення]]+Таблица6[[#This Row],[Рек. термін викон]])","v":""},null,null,{"$f":"IF(Таблица6[[#This Row],[% Заверш.]]=\"\",\"\",Таблица6[[#This Row],[% Заверш.]])","v":""}]
[null,549,null,null,null,null,null,null,null,null,null,{"$f":"IF(Таблица6[[#This Row],[Дата замовлення]]=\"\",\"\",Таблица6[[#This Row],[Дата замовлення]]+Таблица6[[#This Row],[Рек. термін викон]])","v":""},null,null,{"$f":"IF(Таблица6[[#This Row],[% Заверш.]]=\"\",\"\",Таблица6[[#This Row],[% Заверш.]])","v":""}]
[null,550,null,null,null,null,null,null,null,null,null,{"$f":"IF(Таблица6[[#This Row],[Дата замовлення]]=\"\",\"\",Таблица6[[#This Row],[Дата замовлення]]+Таблица6[[#This Row],[Рек. термін викон]])","v":""},null,null,{"$f":"IF(Таблица6[[#This Row],[% Заверш.]]=\"\",\"\",Таблица6[[#This Row],[% Заверш.]])","v":""}]
[null,551,null,null,null,null,null,null,null,null,null,{"$f":"IF(Таблица6[[#This Row],[Дата замовлення]]=\"\",\"\",Таблица6[[#This Row],[Дата замовлення]]+Таблица6[[#This Row],[Рек. термін викон]])","v":""},null,null,{"$f":"IF(Таблица6[[#This Row],[% Заверш.]]=\"\",\"\",Таблица6[[#This Row],[% Заверш.]])","v":""}]
[null,552,null,null,null,null,null,null,null,null,null,{"$f":"IF(Таблица6[[#This Row],[Дата замовлення]]=\"\",\"\",Таблица6[[#This Row],[Дата замовлення]]+Таблица6[[#This Row],[Рек. термін викон]])","v":""},null,null,{"$f":"IF(Таблица6[[#This Row],[% Заверш.]]=\"\",\"\",Таблица6[[#This Row],[% Заверш.]])","v":""}]
[null,553,null,null,null,null,null,null,null,null,null,{"$f":"IF(Таблица6[[#This Row],[Дата замовлення]]=\"\",\"\",Таблица6[[#This Row],[Дата замовлення]]+Таблица6[[#This Row],[Рек. термін викон]])","v":""},null,null,{"$f":"IF(Таблица6[[#This Row],[% Заверш.]]=\"\",\"\",Таблица6[[#This Row],[% Заверш.]])","v":""}]
[null,554,null,null,null,null,null,null,null,null,null,{"$f":"IF(Таблица6[[#This Row],[Дата замовлення]]=\"\",\"\",Таблица6[[#This Row],[Дата замовлення]]+Таблица6[[#This Row],[Рек. термін викон]])","v":""},null,null,{"$f":"IF(Таблица6[[#This Row],[% Заверш.]]=\"\",\"\",Таблица6[[#This Row],[% Заверш.]])","v":""}]
[null,555,null,null,null,null,null,null,null,null,null,{"$f":"IF(Таблица6[[#This Row],[Дата замовлення]]=\"\",\"\",Таблица6[[#This Row],[Дата замовлення]]+Таблица6[[#This Row],[Рек. термін викон]])","v":""},null,null,{"$f":"IF(Таблица6[[#This Row],[% Заверш.]]=\"\",\"\",Таблица6[[#This Row],[% Заверш.]])","v":""}]
[null,556,null,null,null,null,null,null,null,null,null,{"$f":"IF(Таблица6[[#This Row],[Дата замовлення]]=\"\",\"\",Таблица6[[#This Row],[Дата замовлення]]+Таблица6[[#This Row],[Рек. термін викон]])","v":""},null,null,{"$f":"IF(Таблица6[[#This Row],[% Заверш.]]=\"\",\"\",Таблица6[[#This Row],[% Заверш.]])","v":""}]
[null,557,null,null,null,null,null,null,null,null,null,{"$f":"IF(Таблица6[[#This Row],[Дата замовлення]]=\"\",\"\",Таблица6[[#This Row],[Дата замовлення]]+Таблица6[[#This Row],[Рек. термін викон]])","v":""},null,null,{"$f":"IF(Таблица6[[#This Row],[% Заверш.]]=\"\",\"\",Таблица6[[#This Row],[% Заверш.]])","v":""}]
[null,558,null,null,null,null,null,null,null,null,null,{"$f":"IF(Таблица6[[#This Row],[Дата замовлення]]=\"\",\"\",Таблица6[[#This Row],[Дата замовлення]]+Таблица6[[#This Row],[Рек. термін викон]])","v":""},null,null,{"$f":"IF(Таблица6[[#This Row],[% Заверш.]]=\"\",\"\",Таблица6[[#This Row],[% Заверш.]])","v":""}]
[null,559,null,null,null,null,null,null,null,null,null,{"$f":"IF(Таблица6[[#This Row],[Дата замовлення]]=\"\",\"\",Таблица6[[#This Row],[Дата замовлення]]+Таблица6[[#This Row],[Рек. термін викон]])","v":""},null,null,{"$f":"IF(Таблица6[[#This Row],[% Заверш.]]=\"\",\"\",Таблица6[[#This Row],[% Заверш.]])","v":""}]
[null,560,null,null,null,null,null,null,null,null,null,{"$f":"IF(Таблица6[[#This Row],[Дата замовлення]]=\"\",\"\",Таблица6[[#This Row],[Дата замовлення]]+Таблица6[[#This Row],[Рек. термін викон]])","v":""},null,null,{"$f":"IF(Таблица6[[#This Row],[% Заверш.]]=\"\",\"\",Таблица6[[#This Row],[% Заверш.]])","v":""}]
[null,561,null,null,null,null,null,null,null,null,null,{"$f":"IF(Таблица6[[#This Row],[Дата замовлення]]=\"\",\"\",Таблица6[[#This Row],[Дата замовлення]]+Таблица6[[#This Row],[Рек. термін викон]])","v":""},null,null,{"$f":"IF(Таблица6[[#This Row],[% Заверш.]]=\"\",\"\",Таблица6[[#This Row],[% Заверш.]])","v":""}]
[null,562,null,null,null,null,null,null,null,null,null,{"$f":"IF(Таблица6[[#This Row],[Дата замовлення]]=\"\",\"\",Таблица6[[#This Row],[Дата замовлення]]+Таблица6[[#This Row],[Рек. термін викон]])","v":""},null,null,{"$f":"IF(Таблица6[[#This Row],[% Заверш.]]=\"\",\"\",Таблица6[[#This Row],[% Заверш.]])","v":""}]
[null,563,null,null,null,null,null,null,null,null,null,{"$f":"IF(Таблица6[[#This Row],[Дата замовлення]]=\"\",\"\",Таблица6[[#This Row],[Дата замовлення]]+Таблица6[[#This Row],[Рек. термін викон]])","v":""},null,null,{"$f":"IF(Таблица6[[#This Row],[% Заверш.]]=\"\",\"\",Таблица6[[#This Row],[% Заверш.]])","v":""}]
[null,564,null,null,null,null,null,null,null,null,null,{"$f":"IF(Таблица6[[#This Row],[Дата замовлення]]=\"\",\"\",Таблица6[[#This Row],[Дата замовлення]]+Таблица6[[#This Row],[Рек. термін викон]])","v":""},null,null,{"$f":"IF(Таблица6[[#This Row],[% Заверш.]]=\"\",\"\",Таблица6[[#This Row],[% Заверш.]])","v":""}]
[null,565,null,null,null,null,null,null,null,null,null,{"$f":"IF(Таблица6[[#This Row],[Дата замовлення]]=\"\",\"\",Таблица6[[#This Row],[Дата замовлення]]+Таблица6[[#This Row],[Рек. термін викон]])","v":""},null,null,{"$f":"IF(Таблица6[[#This Row],[% Заверш.]]=\"\",\"\",Таблица6[[#This Row],[% Заверш.]])","v":""}]
[null,566,null,null,null,null,null,null,null,null,null,{"$f":"IF(Таблица6[[#This Row],[Дата замовлення]]=\"\",\"\",Таблица6[[#This Row],[Дата замовлення]]+Таблица6[[#This Row],[Рек. термін викон]])","v":""},null,null,{"$f":"IF(Таблица6[[#This Row],[% Заверш.]]=\"\",\"\",Таблица6[[#This Row],[% Заверш.]])","v":""}]
[null,567,null,null,null,null,null,null,null,null,null,{"$f":"IF(Таблица6[[#This Row],[Дата замовлення]]=\"\",\"\",Таблица6[[#This Row],[Дата замовлення]]+Таблица6[[#This Row],[Рек. термін викон]])","v":""},null,null,{"$f":"IF(Таблица6[[#This Row],[% Заверш.]]=\"\",\"\",Таблица6[[#This Row],[% Заверш.]])","v":""}]
[null,568,null,null,null,null,null,null,null,null,null,{"$f":"IF(Таблица6[[#This Row],[Дата замовлення]]=\"\",\"\",Таблица6[[#This Row],[Дата замовлення]]+Таблица6[[#This Row],[Рек. термін викон]])","v":""},null,null,{"$f":"IF(Таблица6[[#This Row],[% Заверш.]]=\"\",\"\",Таблица6[[#This Row],[% Заверш.]])","v":""}]
[null,569,null,null,null,null,null,null,null,null,null,{"$f":"IF(Таблица6[[#This Row],[Дата замовлення]]=\"\",\"\",Таблица6[[#This Row],[Дата замовлення]]+Таблица6[[#This Row],[Рек. термін викон]])","v":""},null,null,{"$f":"IF(Таблица6[[#This Row],[% Заверш.]]=\"\",\"\",Таблица6[[#This Row],[% Заверш.]])","v":""}]
[null,570,null,null,null,null,null,null,null,null,null,{"$f":"IF(Таблица6[[#This Row],[Дата замовлення]]=\"\",\"\",Таблица6[[#This Row],[Дата замовлення]]+Таблица6[[#This Row],[Рек. термін викон]])","v":""},null,null,{"$f":"IF(Таблица6[[#This Row],[% Заверш.]]=\"\",\"\",Таблица6[[#This Row],[% Заверш.]])","v":""}]
[null,571,null,null,null,null,null,null,null,null,null,{"$f":"IF(Таблица6[[#This Row],[Дата замовлення]]=\"\",\"\",Таблица6[[#This Row],[Дата замовлення]]+Таблица6[[#This Row],[Рек. термін викон]])","v":""},null,null,{"$f":"IF(Таблица6[[#This Row],[% Заверш.]]=\"\",\"\",Таблица6[[#This Row],[% Заверш.]])","v":""}]
[null,572,null,null,null,null,null,null,null,null,null,{"$f":"IF(Таблица6[[#This Row],[Дата замовлення]]=\"\",\"\",Таблица6[[#This Row],[Дата замовлення]]+Таблица6[[#This Row],[Рек. термін викон]])","v":""},null,null,{"$f":"IF(Таблица6[[#This Row],[% Заверш.]]=\"\",\"\",Таблица6[[#This Row],[% Заверш.]])","v":""}]
[null,573,null,null,null,null,null,null,null,null,null,{"$f":"IF(Таблица6[[#This Row],[Дата замовлення]]=\"\",\"\",Таблица6[[#This Row],[Дата замовлення]]+Таблица6[[#This Row],[Рек. термін викон]])","v":""},null,null,{"$f":"IF(Таблица6[[#This Row],[% Заверш.]]=\"\",\"\",Таблица6[[#This Row],[% Заверш.]])","v":""}]
[null,574,null,null,null,null,null,null,null,null,null,{"$f":"IF(Таблица6[[#This Row],[Дата замовлення]]=\"\",\"\",Таблица6[[#This Row],[Дата замовлення]]+Таблица6[[#This Row],[Рек. термін викон]])","v":""},null,null,{"$f":"IF(Таблица6[[#This Row],[% Заверш.]]=\"\",\"\",Таблица6[[#This Row],[% Заверш.]])","v":""}]
[null,575,null,null,null,null,null,null,null,null,null,{"$f":"IF(Таблица6[[#This Row],[Дата замовлення]]=\"\",\"\",Таблица6[[#This Row],[Дата замовлення]]+Таблица6[[#This Row],[Рек. термін викон]])","v":""},null,null,{"$f":"IF(Таблица6[[#This Row],[% Заверш.]]=\"\",\"\",Таблица6[[#This Row],[% Заверш.]])","v":""}]
[null,576,null,null,null,null,null,null,null,null,null,{"$f":"IF(Таблица6[[#This Row],[Дата замовлення]]=\"\",\"\",Таблица6[[#This Row],[Дата замовлення]]+Таблица6[[#This Row],[Рек. термін викон]])","v":""},null,null,{"$f":"IF(Таблица6[[#This Row],[% Заверш.]]=\"\",\"\",Таблица6[[#This Row],[% Заверш.]])","v":""}]
[null,577,null,null,null,null,null,null,null,null,null,{"$f":"IF(Таблица6[[#This Row],[Дата замовлення]]=\"\",\"\",Таблица6[[#This Row],[Дата замовлення]]+Таблица6[[#This Row],[Рек. термін викон]])","v":""},null,null,{"$f":"IF(Таблица6[[#This Row],[% Заверш.]]=\"\",\"\",Таблица6[[#This Row],[% Заверш.]])","v":""}]
[null,578,null,null,null,null,null,null,null,null,null,{"$f":"IF(Таблица6[[#This Row],[Дата замовлення]]=\"\",\"\",Таблица6[[#This Row],[Дата замовлення]]+Таблица6[[#This Row],[Рек. термін викон]])","v":""},null,null,{"$f":"IF(Таблица6[[#This Row],[% Заверш.]]=\"\",\"\",Таблица6[[#This Row],[% Заверш.]])","v":""}]
[null,579,null,null,null,null,null,null,null,null,null,{"$f":"IF(Таблица6[[#This Row],[Дата замовлення]]=\"\",\"\",Таблица6[[#This Row],[Дата замовлення]]+Таблица6[[#This Row],[Рек. термін викон]])","v":""},null,null,{"$f":"IF(Таблица6[[#This Row],[% Заверш.]]=\"\",\"\",Таблица6[[#This Row],[% Заверш.]])","v":""}]
[null,580,null,null,null,null,null,null,null,null,null,{"$f":"IF(Таблица6[[#This Row],[Дата замовлення]]=\"\",\"\",Таблица6[[#This Row],[Дата замовлення]]+Таблица6[[#This Row],[Рек. термін викон]])","v":""},null,null,{"$f":"IF(Таблица6[[#This Row],[% Заверш.]]=\"\",\"\",Таблица6[[#This Row],[% Заверш.]])","v":""}]
[null,581,null,null,null,null,null,null,null,null,null,{"$f":"IF(Таблица6[[#This Row],[Дата замовлення]]=\"\",\"\",Таблица6[[#This Row],[Дата замовлення]]+Таблица6[[#This Row],[Рек. термін викон]])","v":""},null,null,{"$f":"IF(Таблица6[[#This Row],[% Заверш.]]=\"\",\"\",Таблица6[[#This Row],[% Заверш.]])","v":""}]
[null,582,null,null,null,null,null,null,null,null,null,{"$f":"IF(Таблица6[[#This Row],[Дата замовлення]]=\"\",\"\",Таблица6[[#This Row],[Дата замовлення]]+Таблица6[[#This Row],[Рек. термін викон]])","v":""},null,null,{"$f":"IF(Таблица6[[#This Row],[% Заверш.]]=\"\",\"\",Таблица6[[#This Row],[% Заверш.]])","v":""}]
[null,583,null,null,null,null,null,null,null,null,null,{"$f":"IF(Таблица6[[#This Row],[Дата замовлення]]=\"\",\"\",Таблица6[[#This Row],[Дата замовлення]]+Таблица6[[#This Row],[Рек. термін викон]])","v":""},null,null,{"$f":"IF(Таблица6[[#This Row],[% Заверш.]]=\"\",\"\",Таблица6[[#This Row],[% Заверш.]])","v":""}]
[null,584,null,null,null,null,null,null,null,null,null,{"$f":"IF(Таблица6[[#This Row],[Дата замовлення]]=\"\",\"\",Таблица6[[#This Row],[Дата замовлення]]+Таблица6[[#This Row],[Рек. термін викон]])","v":""},null,null,{"$f":"IF(Таблица6[[#This Row],[% Заверш.]]=\"\",\"\",Таблица6[[#This Row],[% Заверш.]])","v":""}]
[null,585,null,null,null,null,null,null,null,null,null,{"$f":"IF(Таблица6[[#This Row],[Дата замовлення]]=\"\",\"\",Таблица6[[#This Row],[Дата замовлення]]+Таблица6[[#This Row],[Рек. термін викон]])","v":""},null,null,{"$f":"IF(Таблица6[[#This Row],[% Заверш.]]=\"\",\"\",Таблица6[[#This Row],[% Заверш.]])","v":""}]
[null,586,null,null,null,null,null,null,null,null,null,{"$f":"IF(Таблица6[[#This Row],[Дата замовлення]]=\"\",\"\",Таблица6[[#This Row],[Дата замовлення]]+Таблица6[[#This Row],[Рек. термін викон]])","v":""},null,null,{"$f":"IF(Таблица6[[#This Row],[% Заверш.]]=\"\",\"\",Таблица6[[#This Row],[% Заверш.]])","v":""}]
[null,587,null,null,null,null,null,null,null,null,null,{"$f":"IF(Таблица6[[#This Row],[Дата замовлення]]=\"\",\"\",Таблица6[[#This Row],[Дата замовлення]]+Таблица6[[#This Row],[Рек. термін викон]])","v":""},null,null,{"$f":"IF(Таблица6[[#This Row],[% Заверш.]]=\"\",\"\",Таблица6[[#This Row],[% Заверш.]])","v":""}]
[null,588,null,null,null,null,null,null,null,null,null,{"$f":"IF(Таблица6[[#This Row],[Дата замовлення]]=\"\",\"\",Таблица6[[#This Row],[Дата замовлення]]+Таблица6[[#This Row],[Рек. термін викон]])","v":""},null,null,{"$f":"IF(Таблица6[[#This Row],[% Заверш.]]=\"\",\"\",Таблица6[[#This Row],[% Заверш.]])","v":""}]
[null,589,null,null,null,null,null,null,null,null,null,{"$f":"IF(Таблица6[[#This Row],[Дата замовлення]]=\"\",\"\",Таблица6[[#This Row],[Дата замовлення]]+Таблица6[[#This Row],[Рек. термін викон]])","v":""},null,null,{"$f":"IF(Таблица6[[#This Row],[% Заверш.]]=\"\",\"\",Таблица6[[#This Row],[% Заверш.]])","v":""}]
[null,590,null,null,null,null,null,null,null,null,null,{"$f":"IF(Таблица6[[#This Row],[Дата замовлення]]=\"\",\"\",Таблица6[[#This Row],[Дата замовлення]]+Таблица6[[#This Row],[Рек. термін викон]])","v":""},null,null,{"$f":"IF(Таблица6[[#This Row],[% Заверш.]]=\"\",\"\",Таблица6[[#This Row],[% Заверш.]])","v":""}]
[null,591,null,null,null,null,null,null,null,null,null,{"$f":"IF(Таблица6[[#This Row],[Дата замовлення]]=\"\",\"\",Таблица6[[#This Row],[Дата замовлення]]+Таблица6[[#This Row],[Рек. термін викон]])","v":""},null,null,{"$f":"IF(Таблица6[[#This Row],[% Заверш.]]=\"\",\"\",Таблица6[[#This Row],[% Заверш.]])","v":""}]
[null,592,null,null,null,null,null,null,null,null,null,{"$f":"IF(Таблица6[[#This Row],[Дата замовлення]]=\"\",\"\",Таблица6[[#This Row],[Дата замовлення]]+Таблица6[[#This Row],[Рек. термін викон]])","v":""},null,null,{"$f":"IF(Таблица6[[#This Row],[% Заверш.]]=\"\",\"\",Таблица6[[#This Row],[% Заверш.]])","v":""}]
[null,593,null,null,null,null,null,null,null,null,null,{"$f":"IF(Таблица6[[#This Row],[Дата замовлення]]=\"\",\"\",Таблица6[[#This Row],[Дата замовлення]]+Таблица6[[#This Row],[Рек. термін викон]])","v":""},null,null,{"$f":"IF(Таблица6[[#This Row],[% Заверш.]]=\"\",\"\",Таблица6[[#This Row],[% Заверш.]])","v":""}]
[null,594,null,null,null,null,null,null,null,null,null,{"$f":"IF(Таблица6[[#This Row],[Дата замовлення]]=\"\",\"\",Таблица6[[#This Row],[Дата замовлення]]+Таблица6[[#This Row],[Рек. термін викон]])","v":""},null,null,{"$f":"IF(Таблица6[[#This Row],[% Заверш.]]=\"\",\"\",Таблица6[[#This Row],[% Заверш.]])","v":""}]
[null,595,null,null,null,null,null,null,null,null,null,{"$f":"IF(Таблица6[[#This Row],[Дата замовлення]]=\"\",\"\",Таблица6[[#This Row],[Дата замовлення]]+Таблица6[[#This Row],[Рек. термін викон]])","v":""},null,null,{"$f":"IF(Таблица6[[#This Row],[% Заверш.]]=\"\",\"\",Таблица6[[#This Row],[% Заверш.]])","v":""}]
[null,596,null,null,null,null,null,null,null,null,null,{"$f":"IF(Таблица6[[#This Row],[Дата замовлення]]=\"\",\"\",Таблица6[[#This Row],[Дата замовлення]]+Таблица6[[#This Row],[Рек. термін викон]])","v":""},null,null,{"$f":"IF(Таблица6[[#This Row],[% Заверш.]]=\"\",\"\",Таблица6[[#This Row],[% Заверш.]])","v":""}]
[null,597,null,null,null,null,null,null,null,null,null,{"$f":"IF(Таблица6[[#This Row],[Дата замовлення]]=\"\",\"\",Таблица6[[#This Row],[Дата замовлення]]+Таблица6[[#This Row],[Рек. термін викон]])","v":""},null,null,{"$f":"IF(Таблица6[[#This Row],[% Заверш.]]=\"\",\"\",Таблица6[[#This Row],[% Заверш.]])","v":""}]
[null,598,null,null,null,null,null,null,null,null,null,{"$f":"IF(Таблица6[[#This Row],[Дата замовлення]]=\"\",\"\",Таблица6[[#This Row],[Дата замовлення]]+Таблица6[[#This Row],[Рек. термін викон]])","v":""},null,null,{"$f":"IF(Таблица6[[#This Row],[% Заверш.]]=\"\",\"\",Таблица6[[#This Row],[% Заверш.]])","v":""}]
[null,599,null,null,null,null,null,null,null,null,null,{"$f":"IF(Таблица6[[#This Row],[Дата замовлення]]=\"\",\"\",Таблица6[[#This Row],[Дата замовлення]]+Таблица6[[#This Row],[Рек. термін викон]])","v":""},null,null,{"$f":"IF(Таблица6[[#This Row],[% Заверш.]]=\"\",\"\",Таблица6[[#This Row],[% Заверш.]])","v":""}]
[null,600,null,null,null,null,null,null,null,null,null,{"$f":"IF(Таблица6[[#This Row],[Дата замовлення]]=\"\",\"\",Таблица6[[#This Row],[Дата замовлення]]+Таблица6[[#This Row],[Рек. термін викон]])","v":""},null,null,{"$f":"IF(Таблица6[[#This Row],[% Заверш.]]=\"\",\"\",Таблица6[[#This Row],[% Заверш.]])","v":""}]
[null,601,null,null,null,null,null,null,null,null,null,{"$f":"IF(Таблица6[[#This Row],[Дата замовлення]]=\"\",\"\",Таблица6[[#This Row],[Дата замовлення]]+Таблица6[[#This Row],[Рек. термін викон]])","v":""},null,null,{"$f":"IF(Таблица6[[#This Row],[% Заверш.]]=\"\",\"\",Таблица6[[#This Row],[% Заверш.]])","v":""}]
[null,602,null,null,null,null,null,null,null,null,null,{"$f":"IF(Таблица6[[#This Row],[Дата замовлення]]=\"\",\"\",Таблица6[[#This Row],[Дата замовлення]]+Таблица6[[#This Row],[Рек. термін викон]])","v":""},null,null,{"$f":"IF(Таблица6[[#This Row],[% Заверш.]]=\"\",\"\",Таблица6[[#This Row],[% Заверш.]])","v":""}]
[null,603,null,null,null,null,null,null,null,null,null,{"$f":"IF(Таблица6[[#This Row],[Дата замовлення]]=\"\",\"\",Таблица6[[#This Row],[Дата замовлення]]+Таблица6[[#This Row],[Рек. термін викон]])","v":""},null,null,{"$f":"IF(Таблица6[[#This Row],[% Заверш.]]=\"\",\"\",Таблица6[[#This Row],[% Заверш.]])","v":""}]
[null,604,null,null,null,null,null,null,null,null,null,{"$f":"IF(Таблица6[[#This Row],[Дата замовлення]]=\"\",\"\",Таблица6[[#This Row],[Дата замовлення]]+Таблица6[[#This Row],[Рек. термін викон]])","v":""},null,null,{"$f":"IF(Таблица6[[#This Row],[% Заверш.]]=\"\",\"\",Таблица6[[#This Row],[% Заверш.]])","v":""}]
[null,605,null,null,null,null,null,null,null,null,null,{"$f":"IF(Таблица6[[#This Row],[Дата замовлення]]=\"\",\"\",Таблица6[[#This Row],[Дата замовлення]]+Таблица6[[#This Row],[Рек. термін викон]])","v":""},null,null,{"$f":"IF(Таблица6[[#This Row],[% Заверш.]]=\"\",\"\",Таблица6[[#This Row],[% Заверш.]])","v":""}]
[null,606,null,null,null,null,null,null,null,null,null,{"$f":"IF(Таблица6[[#This Row],[Дата замовлення]]=\"\",\"\",Таблица6[[#This Row],[Дата замовлення]]+Таблица6[[#This Row],[Рек. термін викон]])","v":""},null,null,{"$f":"IF(Таблица6[[#This Row],[% Заверш.]]=\"\",\"\",Таблица6[[#This Row],[% Заверш.]])","v":""}]
[null,null,null,null,null,null,null,null,null,null,null,{"$f":"IF(Таблица6[[#This Row],[Дата замовлення]]=\"\",\"\",Таблица6[[#This Row],[Дата замовлення]]+Таблица6[[#This Row],[Рек. термін викон]])","v":""},null,null,{"$f":"IF(Таблица6[[#This Row],[% Заверш.]]=\"\",\"\",Таблица6[[#This Row],[% Заверш.]])","v":""}]
[null,null,null,null,null,null,null,null,null,null,null,{"$f":"IF(Таблица6[[#This Row],[Дата замовлення]]=\"\",\"\",Таблица6[[#This Row],[Дата замовлення]]+Таблица6[[#This Row],[Рек. термін викон]])","v":""},null,null,{"$f":"IF(Таблица6[[#This Row],[% Заверш.]]=\"\",\"\",Таблица6[[#This Row],[% Заверш.]])","v":""}]
[null,null,null,null,null,null,null,null,null,null,null,{"$f":"IF(Таблица6[[#This Row],[Дата замовлення]]=\"\",\"\",Таблица6[[#This Row],[Дата замовлення]]+Таблица6[[#This Row],[Рек. термін викон]])","v":""},null,null,{"$f":"IF(Таблица6[[#This Row],[% Заверш.]]=\"\",\"\",Таблица6[[#This Row],[% Заверш.]])","v":""}]
[null,null,null,null,null,null,null,null,null,null,null,{"$f":"IF(Таблица6[[#This Row],[Дата замовлення]]=\"\",\"\",Таблица6[[#This Row],[Дата замовлення]]+Таблица6[[#This Row],[Рек. термін викон]])","v":""},null,null,{"$f":"IF(Таблица6[[#This Row],[% Заверш.]]=\"\",\"\",Таблица6[[#This Row],[% Заверш.]])","v":""}]
[null,null,null,null,null,null,null,null,null,null,null,{"$f":"IF(Таблица6[[#This Row],[Дата замовлення]]=\"\",\"\",Таблица6[[#This Row],[Дата замовлення]]+Таблица6[[#This Row],[Рек. термін викон]])","v":""},null,null,{"$f":"IF(Таблица6[[#This Row],[% Заверш.]]=\"\",\"\",Таблица6[[#This Row],[% Заверш.]])","v":""}]
[null,null,null,null,null,null,null,null,null,null,null,{"$f":"IF(Таблица6[[#This Row],[Дата замовлення]]=\"\",\"\",Таблица6[[#This Row],[Дата замовлення]]+Таблица6[[#This Row],[Рек. термін викон]])","v":""},null,null,{"$f":"IF(Таблица6[[#This Row],[% Заверш.]]=\"\",\"\",Таблица6[[#This Row],[% Заверш.]])","v":""}]
[null,null,null,null,null,null,null,null,null,null,null,{"$f":"IF(Таблица6[[#This Row],[Дата замовлення]]=\"\",\"\",Таблица6[[#This Row],[Дата замовлення]]+Таблица6[[#This Row],[Рек. термін викон]])","v":""},null,null,{"$f":"IF(Таблица6[[#This Row],[% Заверш.]]=\"\",\"\",Таблица6[[#This Row],[% Заверш.]])","v":""}]
[null,null,null,null,null,null,null,null,null,null,null,{"$f":"IF(Таблица6[[#This Row],[Дата замовлення]]=\"\",\"\",Таблица6[[#This Row],[Дата замовлення]]+Таблица6[[#This Row],[Рек. термін викон]])","v":""},null,null,{"$f":"IF(Таблица6[[#This Row],[% Заверш.]]=\"\",\"\",Таблица6[[#This Row],[% Заверш.]])","v":""}]
[null,null,null,null,null,null,null,null,null,null,null,{"$f":"IF(Таблица6[[#This Row],[Дата замовлення]]=\"\",\"\",Таблица6[[#This Row],[Дата замовлення]]+Таблица6[[#This Row],[Рек. термін викон]])","v":""},null,null,{"$f":"IF(Таблица6[[#This Row],[% Заверш.]]=\"\",\"\",Таблица6[[#This Row],[% Заверш.]])","v":""}]
[null,null,null,null,null,null,null,null,null,null,null,{"$f":"IF(Таблица6[[#This Row],[Дата замовлення]]=\"\",\"\",Таблица6[[#This Row],[Дата замовлення]]+Таблица6[[#This Row],[Рек. термін викон]])","v":""},null,null,{"$f":"IF(Таблица6[[#This Row],[% Заверш.]]=\"\",\"\",Таблица6[[#This Row],[% Заверш.]])","v":""}]
[null,null,null,null,null,null,null,null,null,null,null,{"$f":"IF(Таблица6[[#This Row],[Дата замовлення]]=\"\",\"\",Таблица6[[#This Row],[Дата замовлення]]+Таблица6[[#This Row],[Рек. термін викон]])","v":""},null,null,{"$f":"IF(Таблица6[[#This Row],[% Заверш.]]=\"\",\"\",Таблица6[[#This Row],[% Заверш.]])","v":""}]
[null,null,null,null,null,null,null,null,null,null,null,{"$f":"IF(Таблица6[[#This Row],[Дата замовлення]]=\"\",\"\",Таблица6[[#This Row],[Дата замовлення]]+Таблица6[[#This Row],[Рек. термін викон]])","v":""},null,null,{"$f":"IF(Таблица6[[#This Row],[% Заверш.]]=\"\",\"\",Таблица6[[#This Row],[% Заверш.]])","v":""}]
[null,null,null,null,null,null,null,null,null,null,null,{"$f":"IF(Таблица6[[#This Row],[Дата замовлення]]=\"\",\"\",Таблица6[[#This Row],[Дата замовлення]]+Таблица6[[#This Row],[Рек. термін викон]])","v":""},null,null,{"$f":"IF(Таблица6[[#This Row],[% Заверш.]]=\"\",\"\",Таблица6[[#This Row],[% Заверш.]])","v":""}]
[null,null,null,null,null,null,null,null,null,null,null,{"$f":"IF(Таблица6[[#This Row],[Дата замовлення]]=\"\",\"\",Таблица6[[#This Row],[Дата замовлення]]+Таблица6[[#This Row],[Рек. термін викон]])","v":""},null,null,{"$f":"IF(Таблица6[[#This Row],[% Заверш.]]=\"\",\"\",Таблица6[[#This Row],[% Заверш.]])","v":""}]
[null,null,null,null,null,null,null,null,null,null,null,{"$f":"IF(Таблица6[[#This Row],[Дата замовлення]]=\"\",\"\",Таблица6[[#This Row],[Дата замовлення]]+Таблица6[[#This Row],[Рек. термін викон]])","v":""},null,null,{"$f":"IF(Таблица6[[#This Row],[% Заверш.]]=\"\",\"\",Таблица6[[#This Row],[% Заверш.]])","v":""}]
[null,null,null,null,null,null,null,null,null,null,null,{"$f":"IF(Таблица6[[#This Row],[Дата замовлення]]=\"\",\"\",Таблица6[[#This Row],[Дата замовлення]]+Таблица6[[#This Row],[Рек. термін викон]])","v":""},null,null,{"$f":"IF(Таблица6[[#This Row],[% Заверш.]]=\"\",\"\",Таблица6[[#This Row],[% Заверш.]])","v":""}]
[null,null,null,null,null,null,null,null,null,null,null,{"$f":"IF(Таблица6[[#This Row],[Дата замовлення]]=\"\",\"\",Таблица6[[#This Row],[Дата замовлення]]+Таблица6[[#This Row],[Рек. термін викон]])","v":""},null,null,{"$f":"IF(Таблица6[[#This Row],[% Заверш.]]=\"\",\"\",Таблица6[[#This Row],[% Заверш.]])","v":""}]
[null,null,null,null,null,null,null,null,null,null,null,{"$f":"IF(Таблица6[[#This Row],[Дата замовлення]]=\"\",\"\",Таблица6[[#This Row],[Дата замовлення]]+Таблица6[[#This Row],[Рек. термін викон]])","v":""},null,null,{"$f":"IF(Таблица6[[#This Row],[% Заверш.]]=\"\",\"\",Таблица6[[#This Row],[% Заверш.]])","v":""}]
[null,null,null,null,null,null,null,null,null,null,null,{"$f":"IF(Таблица6[[#This Row],[Дата замовлення]]=\"\",\"\",Таблица6[[#This Row],[Дата замовлення]]+Таблица6[[#This Row],[Рек. термін викон]])","v":""},null,null,{"$f":"IF(Таблица6[[#This Row],[% Заверш.]]=\"\",\"\",Таблица6[[#This Row],[% Заверш.]])","v":""}]
[null,null,null,null,null,null,null,null,null,null,null,{"$f":"IF(Таблица6[[#This Row],[Дата замовлення]]=\"\",\"\",Таблица6[[#This Row],[Дата замовлення]]+Таблица6[[#This Row],[Рек. термін викон]])","v":""},null,null,{"$f":"IF(Таблица6[[#This Row],[% Заверш.]]=\"\",\"\",Таблица6[[#This Row],[% Заверш.]])","v":""}]
[null,null,null,null,null,null,null,null,null,null,null,{"$f":"IF(Таблица6[[#This Row],[Дата замовлення]]=\"\",\"\",Таблица6[[#This Row],[Дата замовлення]]+Таблица6[[#This Row],[Рек. термін викон]])","v":""},null,null,{"$f":"IF(Таблица6[[#This Row],[% Заверш.]]=\"\",\"\",Таблица6[[#This Row],[% Заверш.]])","v":""}]
[null,null,null,null,null,null,null,null,null,null,null,{"$f":"IF(Таблица6[[#This Row],[Дата замовлення]]=\"\",\"\",Таблица6[[#This Row],[Дата замовлення]]+Таблица6[[#This Row],[Рек. термін викон]])","v":""},null,null,{"$f":"IF(Таблица6[[#This Row],[% Заверш.]]=\"\",\"\",Таблица6[[#This Row],[% Заверш.]])","v":""}]
[null,null,null,null,null,null,null,null,null,null,null,{"$f":"IF(Таблица6[[#This Row],[Дата замовлення]]=\"\",\"\",Таблица6[[#This Row],[Дата замовлення]]+Таблица6[[#This Row],[Рек. термін викон]])","v":""},null,null,{"$f":"IF(Таблица6[[#This Row],[% Заверш.]]=\"\",\"\",Таблица6[[#This Row],[% Заверш.]])","v":""}]
[null,null,null,null,null,null,null,null,null,null,null,{"$f":"IF(Таблица6[[#This Row],[Дата замовлення]]=\"\",\"\",Таблица6[[#This Row],[Дата замовлення]]+Таблица6[[#This Row],[Рек. термін викон]])","v":""},null,null,{"$f":"IF(Таблица6[[#This Row],[% Заверш.]]=\"\",\"\",Таблица6[[#This Row],[% Заверш.]])","v":""}]
[null,null,null,null,null,null,null,null,null,null,null,{"$f":"IF(Таблица6[[#This Row],[Дата замовлення]]=\"\",\"\",Таблица6[[#This Row],[Дата замовлення]]+Таблица6[[#This Row],[Рек. термін викон]])","v":""},null,null,{"$f":"IF(Таблица6[[#This Row],[% Заверш.]]=\"\",\"\",Таблица6[[#This Row],[% Заверш.]])","v":""}]
[null,null,null,null,null,null,null,null,null,null,null,{"$f":"IF(Таблица6[[#This Row],[Дата замовлення]]=\"\",\"\",Таблица6[[#This Row],[Дата замовлення]]+Таблица6[[#This Row],[Рек. термін викон]])","v":""},null,null,{"$f":"IF(Таблица6[[#This Row],[% Заверш.]]=\"\",\"\",Таблица6[[#This Row],[% Заверш.]])","v":""}]
[null,null,null,null,null,null,null,null,null,null,null,{"$f":"IF(Таблица6[[#This Row],[Дата замовлення]]=\"\",\"\",Таблица6[[#This Row],[Дата замовлення]]+Таблица6[[#This Row],[Рек. термін викон]])","v":""},null,null,{"$f":"IF(Таблица6[[#This Row],[% Заверш.]]=\"\",\"\",Таблица6[[#This Row],[% Заверш.]])","v":""}]
[null,null,null,null,null,null,null,null,null,null,null,{"$f":"IF(Таблица6[[#This Row],[Дата замовлення]]=\"\",\"\",Таблица6[[#This Row],[Дата замовлення]]+Таблица6[[#This Row],[Рек. термін викон]])","v":""},null,null,{"$f":"IF(Таблица6[[#This Row],[% Заверш.]]=\"\",\"\",Таблица6[[#This Row],[% Заверш.]])","v":""}]
[null,null,null,null,null,null,null,null,null,null,null,{"$f":"IF(Таблица6[[#This Row],[Дата замовлення]]=\"\",\"\",Таблица6[[#This Row],[Дата замовлення]]+Таблица6[[#This Row],[Рек. термін викон]])","v":""},null,null,{"$f":"IF(Таблица6[[#This Row],[% Заверш.]]=\"\",\"\",Таблица6[[#This Row],[% Заверш.]])","v":""}]
[null,null,null,null,null,null,null,null,null,null,null,{"$f":"IF(Таблица6[[#This Row],[Дата замовлення]]=\"\",\"\",Таблица6[[#This Row],[Дата замовлення]]+Таблица6[[#This Row],[Рек. термін викон]])","v":""},null,null,{"$f":"IF(Таблица6[[#This Row],[% Заверш.]]=\"\",\"\",Таблица6[[#This Row],[% Заверш.]])","v":""}]
[null,null,null,null,null,null,null,null,null,null,null,{"$f":"IF(Таблица6[[#This Row],[Дата замовлення]]=\"\",\"\",Таблица6[[#This Row],[Дата замовлення]]+Таблица6[[#This Row],[Рек. термін викон]])","v":""},null,null,{"$f":"IF(Таблица6[[#This Row],[% Заверш.]]=\"\",\"\",Таблица6[[#This Row],[% Заверш.]])","v":""}]
[null,null,null,null,null,null,null,null,null,null,null,{"$f":"IF(Таблица6[[#This Row],[Дата замовлення]]=\"\",\"\",Таблица6[[#This Row],[Дата замовлення]]+Таблица6[[#This Row],[Рек. термін викон]])","v":""},null,null,{"$f":"IF(Таблица6[[#This Row],[% Заверш.]]=\"\",\"\",Таблица6[[#This Row],[% Заверш.]])","v":""}]
[null,null,null,null,null,null,null,null,null,null,null,{"$f":"IF(Таблица6[[#This Row],[Дата замовлення]]=\"\",\"\",Таблица6[[#This Row],[Дата замовлення]]+Таблица6[[#This Row],[Рек. термін викон]])","v":""},null,null,{"$f":"IF(Таблица6[[#This Row],[% Заверш.]]=\"\",\"\",Таблица6[[#This Row],[% Заверш.]])","v":""}]
[null,null,null,null,null,null,null,null,null,null,null,{"$f":"IF(Таблица6[[#This Row],[Дата замовлення]]=\"\",\"\",Таблица6[[#This Row],[Дата замовлення]]+Таблица6[[#This Row],[Рек. термін викон]])","v":""},null,null,{"$f":"IF(Таблица6[[#This Row],[% Заверш.]]=\"\",\"\",Таблица6[[#This Row],[% Заверш.]])","v":""}]
[null,null,null,null,null,null,null,null,null,null,null,{"$f":"IF(Таблица6[[#This Row],[Дата замовлення]]=\"\",\"\",Таблица6[[#This Row],[Дата замовлення]]+Таблица6[[#This Row],[Рек. термін викон]])","v":""},null,null,{"$f":"IF(Таблица6[[#This Row],[% Заверш.]]=\"\",\"\",Таблица6[[#This Row],[% Заверш.]])","v":""}]
[null,null,null,null,null,null,null,null,null,null,null,{"$f":"IF(Таблица6[[#This Row],[Дата замовлення]]=\"\",\"\",Таблица6[[#This Row],[Дата замовлення]]+Таблица6[[#This Row],[Рек. термін викон]])","v":""},null,null,{"$f":"IF(Таблица6[[#This Row],[% Заверш.]]=\"\",\"\",Таблица6[[#This Row],[% Заверш.]])","v":""}]
[null,null,null,null,null,null,null,null,null,null,null,{"$f":"IF(Таблица6[[#This Row],[Дата замовлення]]=\"\",\"\",Таблица6[[#This Row],[Дата замовлення]]+Таблица6[[#This Row],[Рек. термін викон]])","v":""},null,null,{"$f":"IF(Таблица6[[#This Row],[% Заверш.]]=\"\",\"\",Таблица6[[#This Row],[% Заверш.]])","v":""}]
[null,null,null,null,null,null,null,null,null,null,null,{"$f":"IF(Таблица6[[#This Row],[Дата замовлення]]=\"\",\"\",Таблица6[[#This Row],[Дата замовлення]]+Таблица6[[#This Row],[Рек. термін викон]])","v":""},null,null,{"$f":"IF(Таблица6[[#This Row],[% Заверш.]]=\"\",\"\",Таблица6[[#This Row],[% Заверш.]])","v":""}]
[null,null,null,null,null,null,null,null,null,null,null,{"$f":"IF(Таблица6[[#This Row],[Дата замовлення]]=\"\",\"\",Таблица6[[#This Row],[Дата замовлення]]+Таблица6[[#This Row],[Рек. термін викон]])","v":""},null,null,{"$f":"IF(Таблица6[[#This Row],[% Заверш.]]=\"\",\"\",Таблица6[[#This Row],[% Заверш.]])","v":""}]
[null,null,null,null,null,null,null,null,null,null,null,{"$f":"IF(Таблица6[[#This Row],[Дата замовлення]]=\"\",\"\",Таблица6[[#This Row],[Дата замовлення]]+Таблица6[[#This Row],[Рек. термін викон]])","v":""},null,null,{"$f":"IF(Таблица6[[#This Row],[% Заверш.]]=\"\",\"\",Таблица6[[#This Row],[% Заверш.]])","v":""}]
[null,null,null,null,null,null,null,null,null,null,null,{"$f":"IF(Таблица6[[#This Row],[Дата замовлення]]=\"\",\"\",Таблица6[[#This Row],[Дата замовлення]]+Таблица6[[#This Row],[Рек. термін викон]])","v":""},null,null,{"$f":"IF(Таблица6[[#This Row],[% Заверш.]]=\"\",\"\",Таблица6[[#This Row],[% Заверш.]])","v":""}]
[null,null,null,null,null,null,null,null,null,null,null,{"$f":"IF(Таблица6[[#This Row],[Дата замовлення]]=\"\",\"\",Таблица6[[#This Row],[Дата замовлення]]+Таблица6[[#This Row],[Рек. термін викон]])","v":""},null,null,{"$f":"IF(Таблица6[[#This Row],[% Заверш.]]=\"\",\"\",Таблица6[[#This Row],[% Заверш.]])","v":""}]
[null,null,null,null,null,null,null,null,null,null,null,{"$f":"IF(Таблица6[[#This Row],[Дата замовлення]]=\"\",\"\",Таблица6[[#This Row],[Дата замовлення]]+Таблица6[[#This Row],[Рек. термін викон]])","v":""},null,null,{"$f":"IF(Таблица6[[#This Row],[% Заверш.]]=\"\",\"\",Таблица6[[#This Row],[% Заверш.]])","v":""}]
[null,null,null,null,null,null,null,null,null,null,null,{"$f":"IF(Таблица6[[#This Row],[Дата замовлення]]=\"\",\"\",Таблица6[[#This Row],[Дата замовлення]]+Таблица6[[#This Row],[Рек. термін викон]])","v":""},null,null,{"$f":"IF(Таблица6[[#This Row],[% Заверш.]]=\"\",\"\",Таблица6[[#This Row],[% Заверш.]])","v":""}]
[null,null,null,null,null,null,null,null,null,null,null,{"$f":"IF(Таблица6[[#This Row],[Дата замовлення]]=\"\",\"\",Таблица6[[#This Row],[Дата замовлення]]+Таблица6[[#This Row],[Рек. термін викон]])","v":""},null,null,{"$f":"IF(Таблица6[[#This Row],[% Заверш.]]=\"\",\"\",Таблица6[[#This Row],[% Заверш.]])","v":""}]
[null,null,null,null,null,null,null,null,null,null,null,{"$f":"IF(Таблица6[[#This Row],[Дата замовлення]]=\"\",\"\",Таблица6[[#This Row],[Дата замовлення]]+Таблица6[[#This Row],[Рек. термін викон]])","v":""},null,null,{"$f":"IF(Таблица6[[#This Row],[% Заверш.]]=\"\",\"\",Таблица6[[#This Row],[% Заверш.]])","v":""}]
[null,null,null,null,null,null,null,null,null,null,null,{"$f":"IF(Таблица6[[#This Row],[Дата замовлення]]=\"\",\"\",Таблица6[[#This Row],[Дата замовлення]]+Таблица6[[#This Row],[Рек. термін викон]])","v":""},null,null,{"$f":"IF(Таблица6[[#This Row],[% Заверш.]]=\"\",\"\",Таблица6[[#This Row],[% Заверш.]])","v":""}]
[null,null,null,null,null,null,null,null,null,null,null,{"$f":"IF(Таблица6[[#This Row],[Дата замовлення]]=\"\",\"\",Таблица6[[#This Row],[Дата замовлення]]+Таблица6[[#This Row],[Рек. термін викон]])","v":""},null,null,{"$f":"IF(Таблица6[[#This Row],[% Заверш.]]=\"\",\"\",Таблица6[[#This Row],[% Заверш.]])","v":""}]
[null,null,null,null,null,null,null,null,null,null,null,{"$f":"IF(Таблица6[[#This Row],[Дата замовлення]]=\"\",\"\",Таблица6[[#This Row],[Дата замовлення]]+Таблица6[[#This Row],[Рек. термін викон]])","v":""},null,null,{"$f":"IF(Таблица6[[#This Row],[% Заверш.]]=\"\",\"\",Таблица6[[#This Row],[% Заверш.]])","v":""}]
[null,null,null,null,null,null,null,null,null,null,null,{"$f":"IF(Таблица6[[#This Row],[Дата замовлення]]=\"\",\"\",Таблица6[[#This Row],[Дата замовлення]]+Таблица6[[#This Row],[Рек. термін викон]])","v":""},null,null,{"$f":"IF(Таблица6[[#This Row],[% Заверш.]]=\"\",\"\",Таблица6[[#This Row],[% Заверш.]])","v":""}]
[null,null,null,null,null,null,null,null,null,null,null,{"$f":"IF(Таблица6[[#This Row],[Дата замовлення]]=\"\",\"\",Таблица6[[#This Row],[Дата замовлення]]+Таблица6[[#This Row],[Рек. термін викон]])","v":""},null,null,{"$f":"IF(Таблица6[[#This Row],[% Заверш.]]=\"\",\"\",Таблица6[[#This Row],[% Заверш.]])","v":""}]
[null,null,null,null,null,null,null,null,null,null,null,{"$f":"IF(Таблица6[[#This Row],[Дата замовлення]]=\"\",\"\",Таблица6[[#This Row],[Дата замовлення]]+Таблица6[[#This Row],[Рек. термін викон]])","v":""},null,null,{"$f":"IF(Таблица6[[#This Row],[% Заверш.]]=\"\",\"\",Таблица6[[#This Row],[% Заверш.]])","v":""}]
[null,null,null,null,null,null,null,null,null,null,null,{"$f":"IF(Таблица6[[#This Row],[Дата замовлення]]=\"\",\"\",Таблица6[[#This Row],[Дата замовлення]]+Таблица6[[#This Row],[Рек. термін викон]])","v":""},null,null,{"$f":"IF(Таблица6[[#This Row],[% Заверш.]]=\"\",\"\",Таблица6[[#This Row],[% Заверш.]])","v":""}]
[null,null,null,null,null,null,null,null,null,null,null,{"$f":"IF(Таблица6[[#This Row],[Дата замовлення]]=\"\",\"\",Таблица6[[#This Row],[Дата замовлення]]+Таблица6[[#This Row],[Рек. термін викон]])","v":""},null,null,{"$f":"IF(Таблица6[[#This Row],[% Заверш.]]=\"\",\"\",Таблица6[[#This Row],[% Заверш.]])","v":""}]
[null,null,null,null,null,null,null,null,null,null,null,{"$f":"IF(Таблица6[[#This Row],[Дата замовлення]]=\"\",\"\",Таблица6[[#This Row],[Дата замовлення]]+Таблица6[[#This Row],[Рек. термін викон]])","v":""},null,null,{"$f":"IF(Таблица6[[#This Row],[% Заверш.]]=\"\",\"\",Таблица6[[#This Row],[% Заверш.]])","v":""}]
[null,null,null,null,null,null,null,null,null,null,null,{"$f":"IF(Таблица6[[#This Row],[Дата замовлення]]=\"\",\"\",Таблица6[[#This Row],[Дата замовлення]]+Таблица6[[#This Row],[Рек. термін викон]])","v":""},null,null,{"$f":"IF(Таблица6[[#This Row],[% Заверш.]]=\"\",\"\",Таблица6[[#This Row],[% Заверш.]])","v":""}]
[null,null,null,null,null,null,null,null,null,null,null,{"$f":"IF(Таблица6[[#This Row],[Дата замовлення]]=\"\",\"\",Таблица6[[#This Row],[Дата замовлення]]+Таблица6[[#This Row],[Рек. термін викон]])","v":""},null,null,{"$f":"IF(Таблица6[[#This Row],[% Заверш.]]=\"\",\"\",Таблица6[[#This Row],[% Заверш.]])","v":""}]
[null,null,null,null,null,null,null,null,null,null,null,{"$f":"IF(Таблица6[[#This Row],[Дата замовлення]]=\"\",\"\",Таблица6[[#This Row],[Дата замовлення]]+Таблица6[[#This Row],[Рек. термін викон]])","v":""},null,null,{"$f":"IF(Таблица6[[#This Row],[% Заверш.]]=\"\",\"\",Таблица6[[#This Row],[% Заверш.]])","v":""}]
[null,null,null,null,null,null,null,null,null,null,null,{"$f":"IF(Таблица6[[#This Row],[Дата замовлення]]=\"\",\"\",Таблица6[[#This Row],[Дата замовлення]]+Таблица6[[#This Row],[Рек. термін викон]])","v":""},null,null,{"$f":"IF(Таблица6[[#This Row],[% Заверш.]]=\"\",\"\",Таблица6[[#This Row],[% Заверш.]])","v":""}]
[null,null,null,null,null,null,null,null,null,null,null,{"$f":"IF(Таблица6[[#This Row],[Дата замовлення]]=\"\",\"\",Таблица6[[#This Row],[Дата замовлення]]+Таблица6[[#This Row],[Рек. термін викон]])","v":""},null,null,{"$f":"IF(Таблица6[[#This Row],[% Заверш.]]=\"\",\"\",Таблица6[[#This Row],[% Заверш.]])","v":""}]
[null,null,null,null,null,null,null,null,null,null,null,{"$f":"IF(Таблица6[[#This Row],[Дата замовлення]]=\"\",\"\",Таблица6[[#This Row],[Дата замовлення]]+Таблица6[[#This Row],[Рек. термін викон]])","v":""},null,null,{"$f":"IF(Таблица6[[#This Row],[% Заверш.]]=\"\",\"\",Таблица6[[#This Row],[% Заверш.]])","v":""}]
[null,null,null,null,null,null,null,null,null,null,null,{"$f":"IF(Таблица6[[#This Row],[Дата замовлення]]=\"\",\"\",Таблица6[[#This Row],[Дата замовлення]]+Таблица6[[#This Row],[Рек. термін викон]])","v":""},null,null,{"$f":"IF(Таблица6[[#This Row],[% Заверш.]]=\"\",\"\",Таблица6[[#This Row],[% Заверш.]])","v":""}]
[null,null,null,null,null,null,null,null,null,null,null,{"$f":"IF(Таблица6[[#This Row],[Дата замовлення]]=\"\",\"\",Таблица6[[#This Row],[Дата замовлення]]+Таблица6[[#This Row],[Рек. термін викон]])","v":""},null,null,{"$f":"IF(Таблица6[[#This Row],[% Заверш.]]=\"\",\"\",Таблица6[[#This Row],[% Заверш.]])","v":""}]
[null,null,null,null,null,null,null,null,null,null,null,{"$f":"IF(Таблица6[[#This Row],[Дата замовлення]]=\"\",\"\",Таблица6[[#This Row],[Дата замовлення]]+Таблица6[[#This Row],[Рек. термін викон]])","v":""},null,null,{"$f":"IF(Таблица6[[#This Row],[% Заверш.]]=\"\",\"\",Таблица6[[#This Row],[% Заверш.]])","v":""}]
[null,null,null,null,null,null,null,null,null,null,null,{"$f":"IF(Таблица6[[#This Row],[Дата замовлення]]=\"\",\"\",Таблица6[[#This Row],[Дата замовлення]]+Таблица6[[#This Row],[Рек. термін викон]])","v":""},null,null,{"$f":"IF(Таблица6[[#This Row],[% Заверш.]]=\"\",\"\",Таблица6[[#This Row],[% Заверш.]])","v":""}]
[null,null,null,null,null,null,null,null,null,null,null,{"$f":"IF(Таблица6[[#This Row],[Дата замовлення]]=\"\",\"\",Таблица6[[#This Row],[Дата замовлення]]+Таблица6[[#This Row],[Рек. термін викон]])","v":""},null,null,{"$f":"IF(Таблица6[[#This Row],[% Заверш.]]=\"\",\"\",Таблица6[[#This Row],[% Заверш.]])","v":""}]
[null,null,null,null,null,null,null,null,null,null,null,{"$f":"IF(Таблица6[[#This Row],[Дата замовлення]]=\"\",\"\",Таблица6[[#This Row],[Дата замовлення]]+Таблица6[[#This Row],[Рек. термін викон]])","v":""},null,null,{"$f":"IF(Таблица6[[#This Row],[% Заверш.]]=\"\",\"\",Таблица6[[#This Row],[% Заверш.]])","v":""}]
[null,null,null,null,null,null,null,null,null,null,null,{"$f":"IF(Таблица6[[#This Row],[Дата замовлення]]=\"\",\"\",Таблица6[[#This Row],[Дата замовлення]]+Таблица6[[#This Row],[Рек. термін викон]])","v":""},null,null,{"$f":"IF(Таблица6[[#This Row],[% Заверш.]]=\"\",\"\",Таблица6[[#This Row],[% Заверш.]])","v":""}]
[null,null,null,null,null,null,null,null,null,null,null,{"$f":"IF(Таблица6[[#This Row],[Дата замовлення]]=\"\",\"\",Таблица6[[#This Row],[Дата замовлення]]+Таблица6[[#This Row],[Рек. термін викон]])","v":""},null,null,{"$f":"IF(Таблица6[[#This Row],[% Заверш.]]=\"\",\"\",Таблица6[[#This Row],[% Заверш.]])","v":""}]
[null,null,null,null,null,null,null,null,null,null,null,{"$f":"IF(Таблица6[[#This Row],[Дата замовлення]]=\"\",\"\",Таблица6[[#This Row],[Дата замовлення]]+Таблица6[[#This Row],[Рек. термін викон]])","v":""},null,null,{"$f":"IF(Таблица6[[#This Row],[% Заверш.]]=\"\",\"\",Таблица6[[#This Row],[% Заверш.]])","v":""}]
[null,null,null,null,null,null,null,null,null,null,null,{"$f":"IF(Таблица6[[#This Row],[Дата замовлення]]=\"\",\"\",Таблица6[[#This Row],[Дата замовлення]]+Таблица6[[#This Row],[Рек. термін викон]])","v":""},null,null,{"$f":"IF(Таблица6[[#This Row],[% Заверш.]]=\"\",\"\",Таблица6[[#This Row],[% Заверш.]])","v":""}]
[null,null,null,null,null,null,null,null,null,null,null,{"$f":"IF(Таблица6[[#This Row],[Дата замовлення]]=\"\",\"\",Таблица6[[#This Row],[Дата замовлення]]+Таблица6[[#This Row],[Рек. термін викон]])","v":""},null,null,{"$f":"IF(Таблица6[[#This Row],[% Заверш.]]=\"\",\"\",Таблица6[[#This Row],[% Заверш.]])","v":""}]
[null,null,null,null,null,null,null,null,null,null,null,{"$f":"IF(Таблица6[[#This Row],[Дата замовлення]]=\"\",\"\",Таблица6[[#This Row],[Дата замовлення]]+Таблица6[[#This Row],[Рек. термін викон]])","v":""},null,null,{"$f":"IF(Таблица6[[#This Row],[% Заверш.]]=\"\",\"\",Таблица6[[#This Row],[% Заверш.]])","v":""}]
[null,null,null,null,null,null,null,null,null,null,null,{"$f":"IF(Таблица6[[#This Row],[Дата замовлення]]=\"\",\"\",Таблица6[[#This Row],[Дата замовлення]]+Таблица6[[#This Row],[Рек. термін викон]])","v":""},null,null,{"$f":"IF(Таблица6[[#This Row],[% Заверш.]]=\"\",\"\",Таблица6[[#This Row],[% Заверш.]])","v":""}]
[null,null,null,null,null,null,null,null,null,null,null,{"$f":"IF(Таблица6[[#This Row],[Дата замовлення]]=\"\",\"\",Таблица6[[#This Row],[Дата замовлення]]+Таблица6[[#This Row],[Рек. термін викон]])","v":""},null,null,{"$f":"IF(Таблица6[[#This Row],[% Заверш.]]=\"\",\"\",Таблица6[[#This Row],[% Заверш.]])","v":""}]
[null,null,null,null,null,null,null,null,null,null,null,{"$f":"IF(Таблица6[[#This Row],[Дата замовлення]]=\"\",\"\",Таблица6[[#This Row],[Дата замовлення]]+Таблица6[[#This Row],[Рек. термін викон]])","v":""},null,null,{"$f":"IF(Таблица6[[#This Row],[% Заверш.]]=\"\",\"\",Таблица6[[#This Row],[% Заверш.]])","v":""}]
[null,null,null,null,null,null,null,null,null,null,null,{"$f":"IF(Таблица6[[#This Row],[Дата замовлення]]=\"\",\"\",Таблица6[[#This Row],[Дата замовлення]]+Таблица6[[#This Row],[Рек. термін викон]])","v":""},null,null,{"$f":"IF(Таблица6[[#This Row],[% Заверш.]]=\"\",\"\",Таблица6[[#This Row],[% Заверш.]])","v":""}]
[null,null,null,null,null,null,null,null,null,null,null,{"$f":"IF(Таблица6[[#This Row],[Дата замовлення]]=\"\",\"\",Таблица6[[#This Row],[Дата замовлення]]+Таблица6[[#This Row],[Рек. термін викон]])","v":""},null,null,{"$f":"IF(Таблица6[[#This Row],[% Заверш.]]=\"\",\"\",Таблица6[[#This Row],[% Заверш.]])","v":""}]
[null,null,null,null,null,null,null,null,null,null,null,{"$f":"IF(Таблица6[[#This Row],[Дата замовлення]]=\"\",\"\",Таблица6[[#This Row],[Дата замовлення]]+Таблица6[[#This Row],[Рек. термін викон]])","v":""},null,null,{"$f":"IF(Таблица6[[#This Row],[% Заверш.]]=\"\",\"\",Таблица6[[#This Row],[% Заверш.]])","v":""}]
[null,null,null,null,null,null,null,null,null,null,null,{"$f":"IF(Таблица6[[#This Row],[Дата замовлення]]=\"\",\"\",Таблица6[[#This Row],[Дата замовлення]]+Таблица6[[#This Row],[Рек. термін викон]])","v":""},null,null,{"$f":"IF(Таблица6[[#This Row],[% Заверш.]]=\"\",\"\",Таблица6[[#This Row],[% Заверш.]])","v":""}]
[null,null,null,null,null,null,null,null,null,null,null,{"$f":"IF(Таблица6[[#This Row],[Дата замовлення]]=\"\",\"\",Таблица6[[#This Row],[Дата замовлення]]+Таблица6[[#This Row],[Рек. термін викон]])","v":""}]

{"sheet":"noDel","index":1,"n_rows":12,"n_cols":7,"rows_kept":12,"cut":false,"hidden":false,"merged":[]}
[]
[]
[null,"Вид роботи","Приріотет","Замовник","Запланований термін виконання","Стан","% Завершення"]
[null,"Експертиза","Низький ","СК \"Країна\"",1,"Не почато",0]
[null,"Акт огляду","Середній","СК \"Арсенал\"",3,"Виконується",0.25]
[null,"Калькуляція","Високий","СК \"АСКА\"",5,"Відкладено",0.5]
[null,"Вартість залишків",null,"СК \"Уніка\"",7,"Завершене",0.75]
[null,"Ринкова вартість",null,"СК \"УПСК\"",10,null,1]
[null,"Актуалізований звіт",null,"СК \"АХА\"",15]
[null,null,null,"СК \"Євроінс Україна\"",20]
[null,null,null,"Фізична Особа"]
[null,null,null,"Ін. Юридична особа"]